Workbook

Sheet DB
E1: ΔΗΛΩΣΕΙΣ ΣΥΜΜΕΤΟΧΗΣ OPEN ΚΕΦΑΛΛΗΝΙΑΚΟΥ ΟΑ
A2: # | B2: α/α | C2: Κατηγ. | D2: Α.Μ. | E2: Ονοματεπώνυμο | F2: Σύλλογος | G2: Βαθμοί | H2: Έτος
A3: 1 | B3: =IF(C3=C2,B2+1,1) -> 1 | C3: MS | E3: =IF($D3>0,VLOOKUP($D3,Μητρώο!$A:$F,3,FALSE),"") ->  | F3: =IF($D3>0,VLOOKUP($D3,Μητρώο!$A:$F,5,FALSE),"") ->  | G3: =IF(COUNTIF(Rankings!$B:$B,RIGHT($C3,2)&"-"&$D3)>0,IF($D3>0,VLOOKUP(RIGHT($C3,2)&"-"&$D3,Rankings!$B:$G,6,FALSE),""),0) -> 0 | H3: =IF($D3>0,VLOOKUP($D3,Μητρώο!$A:$F,4,FALSE),"") -> 
A4: 2 | B4: =IF(C4=C3,B3+1,1) -> 1 | E4: =IF($D4>0,VLOOKUP($D4,Μητρώο!$A:$F,3,FALSE),"") ->  | F4: =IF($D4>0,VLOOKUP($D4,Μητρώο!$A:$F,5,FALSE),"") ->  | G4: =IF(COUNTIF(Rankings!$B:$B,RIGHT($C4,2)&"-"&$D4)>0,IF($D4>0,VLOOKUP(RIGHT($C4,2)&"-"&$D4,Rankings!$B:$G,6,FALSE),""),0) -> 0 | H4: =IF($D4>0,VLOOKUP($D4,Μητρώο!$A:$F,4,FALSE),"") -> 
A5: 3 | B5: 2 | E5: =IF($D5>0,VLOOKUP($D5,Μητρώο!$A:$F,3,FALSE),"") ->  | F5: =IF($D5>0,VLOOKUP($D5,Μητρώο!$A:$F,5,FALSE),"") ->  | G5: =IF(COUNTIF(Rankings!$B:$B,RIGHT($C5,2)&"-"&$D5)>0,IF($D5>0,VLOOKUP(RIGHT($C5,2)&"-"&$D5,Rankings!$B:$G,6,FALSE),""),0) -> 0 | H5: =IF($D5>0,VLOOKUP($D5,Μητρώο!$A:$F,4,FALSE),"") -> 
A6: 4 | B6: 3 | E6: =IF($D6>0,VLOOKUP($D6,Μητρώο!$A:$F,3,FALSE),"") ->  | F6: =IF($D6>0,VLOOKUP($D6,Μητρώο!$A:$F,5,FALSE),"") ->  | G6: =IF(COUNTIF(Rankings!$B:$B,RIGHT($C6,2)&"-"&$D6)>0,IF($D6>0,VLOOKUP(RIGHT($C6,2)&"-"&$D6,Rankings!$B:$G,6,FALSE),""),0) -> 0 | H6: =IF($D6>0,VLOOKUP($D6,Μητρώο!$A:$F,4,FALSE),"") -> 
A7: 5 | B7: 4 | E7: =IF($D7>0,VLOOKUP($D7,Μητρώο!$A:$F,3,FALSE),"") ->  | F7: =IF($D7>0,VLOOKUP($D7,Μητρώο!$A:$F,5,FALSE),"") ->  | G7: =IF(COUNTIF(Rankings!$B:$B,RIGHT($C7,2)&"-"&$D7)>0,IF($D7>0,VLOOKUP(RIGHT($C7,2)&"-"&$D7,Rankings!$B:$G,6,FALSE),""),0) -> 0 | H7: =IF($D7>0,VLOOKUP($D7,Μητρώο!$A:$F,4,FALSE),"") -> 
A8: 6 | B8: 5 | E8: =IF($D8>0,VLOOKUP($D8,Μητρώο!$A:$F,3,FALSE),"") ->  | F8: =IF($D8>0,VLOOKUP($D8,Μητρώο!$A:$F,5,FALSE),"") ->  | G8: =IF(COUNTIF(Rankings!$B:$B,RIGHT($C8,2)&"-"&$D8)>0,IF($D8>0,VLOOKUP(RIGHT($C8,2)&"-"&$D8,Rankings!$B:$G,6,FALSE),""),0) -> 0 | H8: =IF($D8>0,VLOOKUP($D8,Μητρώο!$A:$F,4,FALSE),"") -> 
A9: 7 | B9: 6 | E9: =IF($D9>0,VLOOKUP($D9,Μητρώο!$A:$F,3,FALSE),"") ->  | F9: =IF($D9>0,VLOOKUP($D9,Μητρώο!$A:$F,5,FALSE),"") ->  | G9: =IF(COUNTIF(Rankings!$B:$B,RIGHT($C9,2)&"-"&$D9)>0,IF($D9>0,VLOOKUP(RIGHT($C9,2)&"-"&$D9,Rankings!$B:$G,6,FALSE),""),0) -> 0 | H9: =IF($D9>0,VLOOKUP($D9,Μητρώο!$A:$F,4,FALSE),"") -> 
A10: 8 | B10: 7 | E10: =IF($D10>0,VLOOKUP($D10,Μητρώο!$A:$F,3,FALSE),"") ->  | F10: =IF($D10>0,VLOOKUP($D10,Μητρώο!$A:$F,5,FALSE),"") ->  | G10: =IF(COUNTIF(Rankings!$B:$B,RIGHT($C10,2)&"-"&$D10)>0,IF($D10>0,VLOOKUP(RIGHT($C10,2)&"-"&$D10,Rankings!$B:$G,6,FALSE),""),0) -> 0 | H10: =IF($D10>0,VLOOKUP($D10,Μητρώο!$A:$F,4,FALSE),"") -> 
A11: 9 | B11: 8 | E11: =IF($D11>0,VLOOKUP($D11,Μητρώο!$A:$F,3,FALSE),"") ->  | F11: =IF($D11>0,VLOOKUP($D11,Μητρώο!$A:$F,5,FALSE),"") ->  | G11: =IF(COUNTIF(Rankings!$B:$B,RIGHT($C11,2)&"-"&$D11)>0,IF($D11>0,VLOOKUP(RIGHT($C11,2)&"-"&$D11,Rankings!$B:$G,6,FALSE),""),0) -> 0 | H11: =IF($D11>0,VLOOKUP($D11,Μητρώο!$A:$F,4,FALSE),"") -> 
A12: 10 | B12: 9 | E12: =IF($D12>0,VLOOKUP($D12,Μητρώο!$A:$F,3,FALSE),"") ->  | F12: =IF($D12>0,VLOOKUP($D12,Μητρώο!$A:$F,5,FALSE),"") ->  | G12: =IF(COUNTIF(Rankings!$B:$B,RIGHT($C12,2)&"-"&$D12)>0,IF($D12>0,VLOOKUP(RIGHT($C12,2)&"-"&$D12,Rankings!$B:$G,6,FALSE),""),0) -> 0 | H12: =IF($D12>0,VLOOKUP($D12,Μητρώο!$A:$F,4,FALSE),"") -> 
A13: 11 | B13: 10 | E13: =IF($D13>0,VLOOKUP($D13,Μητρώο!$A:$F,3,FALSE),"") ->  | F13: =IF($D13>0,VLOOKUP($D13,Μητρώο!$A:$F,5,FALSE),"") ->  | G13: =IF(COUNTIF(Rankings!$B:$B,RIGHT($C13,2)&"-"&$D13)>0,IF($D13>0,VLOOKUP(RIGHT($C13,2)&"-"&$D13,Rankings!$B:$G,6,FALSE),""),0) -> 0 | H13: =IF($D13>0,VLOOKUP($D13,Μητρώο!$A:$F,4,FALSE),"") -> 
A14: 12 | B14: 11 | E14: =IF($D14>0,VLOOKUP($D14,Μητρώο!$A:$F,3,FALSE),"") ->  | F14: =IF($D14>0,VLOOKUP($D14,Μητρώο!$A:$F,5,FALSE),"") ->  | G14: =IF(COUNTIF(Rankings!$B:$B,RIGHT($C14,2)&"-"&$D14)>0,IF($D14>0,VLOOKUP(RIGHT($C14,2)&"-"&$D14,Rankings!$B:$G,6,FALSE),""),0) -> 0 | H14: =IF($D14>0,VLOOKUP($D14,Μητρώο!$A:$F,4,FALSE),"") -> 
A15: 13 | B15: 12 | E15: =IF($D15>0,VLOOKUP($D15,Μητρώο!$A:$F,3,FALSE),"") ->  | F15: =IF($D15>0,VLOOKUP($D15,Μητρώο!$A:$F,5,FALSE),"") ->  | G15: =IF(COUNTIF(Rankings!$B:$B,RIGHT($C15,2)&"-"&$D15)>0,IF($D15>0,VLOOKUP(RIGHT($C15,2)&"-"&$D15,Rankings!$B:$G,6,FALSE),""),0) -> 0 | H15: =IF($D15>0,VLOOKUP($D15,Μητρώο!$A:$F,4,FALSE),"") -> 
A16: 14 | B16: 13 | E16: =IF($D16>0,VLOOKUP($D16,Μητρώο!$A:$F,3,FALSE),"") ->  | F16: =IF($D16>0,VLOOKUP($D16,Μητρώο!$A:$F,5,FALSE),"") ->  | G16: =IF(COUNTIF(Rankings!$B:$B,RIGHT($C16,2)&"-"&$D16)>0,IF($D16>0,VLOOKUP(RIGHT($C16,2)&"-"&$D16,Rankings!$B:$G,6,FALSE),""),0) -> 0 | H16: =IF($D16>0,VLOOKUP($D16,Μητρώο!$A:$F,4,FALSE),"") -> 
A17: 15 | B17: 14 | E17: =IF($D17>0,VLOOKUP($D17,Μητρώο!$A:$F,3,FALSE),"") ->  | F17: =IF($D17>0,VLOOKUP($D17,Μητρώο!$A:$F,5,FALSE),"") ->  | G17: =IF(COUNTIF(Rankings!$B:$B,RIGHT($C17,2)&"-"&$D17)>0,IF($D17>0,VLOOKUP(RIGHT($C17,2)&"-"&$D17,Rankings!$B:$G,6,FALSE),""),0) -> 0 | H17: =IF($D17>0,VLOOKUP($D17,Μητρώο!$A:$F,4,FALSE),"") -> 
A18: 16 | B18: 15 | E18: =IF($D18>0,VLOOKUP($D18,Μητρώο!$A:$F,3,FALSE),"") ->  | F18: =IF($D18>0,VLOOKUP($D18,Μητρώο!$A:$F,5,FALSE),"") ->  | G18: =IF(COUNTIF(Rankings!$B:$B,RIGHT($C18,2)&"-"&$D18)>0,IF($D18>0,VLOOKUP(RIGHT($C18,2)&"-"&$D18,Rankings!$B:$G,6,FALSE),""),0) -> 0 | H18: =IF($D18>0,VLOOKUP($D18,Μητρώο!$A:$F,4,FALSE),"") -> 
A19: 17 | B19: 16 | E19: =IF($D19>0,VLOOKUP($D19,Μητρώο!$A:$F,3,FALSE),"") ->  | F19: =IF($D19>0,VLOOKUP($D19,Μητρώο!$A:$F,5,FALSE),"") ->  | G19: =IF(COUNTIF(Rankings!$B:$B,RIGHT($C19,2)&"-"&$D19)>0,IF($D19>0,VLOOKUP(RIGHT($C19,2)&"-"&$D19,Rankings!$B:$G,6,FALSE),""),0) -> 0 | H19: =IF($D19>0,VLOOKUP($D19,Μητρώο!$A:$F,4,FALSE),"") -> 
A20: 18 | B20: 17 | E20: =IF($D20>0,VLOOKUP($D20,Μητρώο!$A:$F,3,FALSE),"") ->  | F20: =IF($D20>0,VLOOKUP($D20,Μητρώο!$A:$F,5,FALSE),"") ->  | H20: =IF($D20>0,VLOOKUP($D20,Μητρώο!$A:$F,4,FALSE),"") -> 
A21: 19 | B21: 18 | E21: =IF($D21>0,VLOOKUP($D21,Μητρώο!$A:$F,3,FALSE),"") ->  | F21: =IF($D21>0,VLOOKUP($D21,Μητρώο!$A:$F,5,FALSE),"") ->  | H21: =IF($D21>0,VLOOKUP($D21,Μητρώο!$A:$F,4,FALSE),"") -> 
A22: 20 | B22: 19 | E22: =IF($D22>0,VLOOKUP($D22,Μητρώο!$A:$F,3,FALSE),"") ->  | F22: =IF($D22>0,VLOOKUP($D22,Μητρώο!$A:$F,5,FALSE),"") ->  | H22: =IF($D22>0,VLOOKUP($D22,Μητρώο!$A:$F,4,FALSE),"") -> 
A23: 21 | B23: 20 | E23: =IF($D23>0,VLOOKUP($D23,Μητρώο!$A:$F,3,FALSE),"") ->  | F23: =IF($D23>0,VLOOKUP($D23,Μητρώο!$A:$F,5,FALSE),"") ->  | H23: =IF($D23>0,VLOOKUP($D23,Μητρώο!$A:$F,4,FALSE),"") -> 
A24: 22 | B24: 21 | E24: =IF($D24>0,VLOOKUP($D24,Μητρώο!$A:$F,3,FALSE),"") ->  | F24: =IF($D24>0,VLOOKUP($D24,Μητρώο!$A:$F,5,FALSE),"") ->  | H24: =IF($D24>0,VLOOKUP($D24,Μητρώο!$A:$F,4,FALSE),"") -> 
A25: 23 | B25: 22 | E25: =IF($D25>0,VLOOKUP($D25,Μητρώο!$A:$F,3,FALSE),"") ->  | F25: =IF($D25>0,VLOOKUP($D25,Μητρώο!$A:$F,5,FALSE),"") ->  | H25: =IF($D25>0,VLOOKUP($D25,Μητρώο!$A:$F,4,FALSE),"") -> 
A26: 24 | B26: 23 | E26: =IF($D26>0,VLOOKUP($D26,Μητρώο!$A:$F,3,FALSE),"") ->  | F26: =IF($D26>0,VLOOKUP($D26,Μητρώο!$A:$F,5,FALSE),"") ->  | H26: =IF($D26>0,VLOOKUP($D26,Μητρώο!$A:$F,4,FALSE),"") -> 
A27: 25 | B27: 24 | E27: =IF($D27>0,VLOOKUP($D27,Μητρώο!$A:$F,3,FALSE),"") ->  | F27: =IF($D27>0,VLOOKUP($D27,Μητρώο!$A:$F,5,FALSE),"") ->  | H27: =IF($D27>0,VLOOKUP($D27,Μητρώο!$A:$F,4,FALSE),"") -> 
A28: 26 | B28: 25 | E28: =IF($D28>0,VLOOKUP($D28,Μητρώο!$A:$F,3,FALSE),"") ->  | F28: =IF($D28>0,VLOOKUP($D28,Μητρώο!$A:$F,5,FALSE),"") ->  | H28: =IF($D28>0,VLOOKUP($D28,Μητρώο!$A:$F,4,FALSE),"") -> 
A29: 27 | B29: 26 | E29: =IF($D29>0,VLOOKUP($D29,Μητρώο!$A:$F,3,FALSE),"") ->  | F29: =IF($D29>0,VLOOKUP($D29,Μητρώο!$A:$F,5,FALSE),"") ->  | H29: =IF($D29>0,VLOOKUP($D29,Μητρώο!$A:$F,4,FALSE),"") -> 
A30: 28 | B30: 27 | E30: =IF($D30>0,VLOOKUP($D30,Μητρώο!$A:$F,3,FALSE),"") ->  | F30: =IF($D30>0,VLOOKUP($D30,Μητρώο!$A:$F,5,FALSE),"") ->  | H30: =IF($D30>0,VLOOKUP($D30,Μητρώο!$A:$F,4,FALSE),"") -> 
A31: 29 | B31: 28 | E31: =IF($D31>0,VLOOKUP($D31,Μητρώο!$A:$F,3,FALSE),"") ->  | F31: =IF($D31>0,VLOOKUP($D31,Μητρώο!$A:$F,5,FALSE),"") ->  | H31: =IF($D31>0,VLOOKUP($D31,Μητρώο!$A:$F,4,FALSE),"") -> 
A32: 30 | B32: 29 | E32: =IF($D32>0,VLOOKUP($D32,Μητρώο!$A:$F,3,FALSE),"") ->  | F32: =IF($D32>0,VLOOKUP($D32,Μητρώο!$A:$F,5,FALSE),"") ->  | H32: =IF($D32>0,VLOOKUP($D32,Μητρώο!$A:$F,4,FALSE),"") -> 
A33: 31 | B33: 30 | E33: =IF($D33>0,VLOOKUP($D33,Μητρώο!$A:$F,3,FALSE),"") ->  | F33: =IF($D33>0,VLOOKUP($D33,Μητρώο!$A:$F,5,FALSE),"") ->  | H33: =IF($D33>0,VLOOKUP($D33,Μητρώο!$A:$F,4,FALSE),"") -> 
A34: 32 | B34: 31 | E34: =IF($D34>0,VLOOKUP($D34,Μητρώο!$A:$F,3,FALSE),"") ->  | F34: =IF($D34>0,VLOOKUP($D34,Μητρώο!$A:$F,5,FALSE),"") ->  | H34: =IF($D34>0,VLOOKUP($D34,Μητρώο!$A:$F,4,FALSE),"") -> 
A35: 33 | B35: 32 | E35: =IF($D35>0,VLOOKUP($D35,Μητρώο!$A:$F,3,FALSE),"") ->  | F35: =IF($D35>0,VLOOKUP($D35,Μητρώο!$A:$F,5,FALSE),"") ->  | H35: =IF($D35>0,VLOOKUP($D35,Μητρώο!$A:$F,4,FALSE),"") -> 
A36: 34 | B36: 33 | E36: =IF($D36>0,VLOOKUP($D36,Μητρώο!$A:$F,3,FALSE),"") ->  | F36: =IF($D36>0,VLOOKUP($D36,Μητρώο!$A:$F,5,FALSE),"") ->  | H36: =IF($D36>0,VLOOKUP($D36,Μητρώο!$A:$F,4,FALSE),"") -> 
A37: 35 | B37: 34 | E37: =IF($D37>0,VLOOKUP($D37,Μητρώο!$A:$F,3,FALSE),"") ->  | F37: =IF($D37>0,VLOOKUP($D37,Μητρώο!$A:$F,5,FALSE),"") ->  | H37: =IF($D37>0,VLOOKUP($D37,Μητρώο!$A:$F,4,FALSE),"") -> 
A38: 36 | B38: 35 | E38: =IF($D38>0,VLOOKUP($D38,Μητρώο!$A:$F,3,FALSE),"") ->  | F38: =IF($D38>0,VLOOKUP($D38,Μητρώο!$A:$F,5,FALSE),"") ->  | H38: =IF($D38>0,VLOOKUP($D38,Μητρώο!$A:$F,4,FALSE),"") -> 
A39: 37 | B39: 36 | E39: =IF($D39>0,VLOOKUP($D39,Μητρώο!$A:$F,3,FALSE),"") ->  | F39: =IF($D39>0,VLOOKUP($D39,Μητρώο!$A:$F,5,FALSE),"") ->  | H39: =IF($D39>0,VLOOKUP($D39,Μητρώο!$A:$F,4,FALSE),"") -> 
A40: 38 | B40: 37 | E40: =IF($D40>0,VLOOKUP($D40,Μητρώο!$A:$F,3,FALSE),"") ->  | F40: =IF($D40>0,VLOOKUP($D40,Μητρώο!$A:$F,5,FALSE),"") ->  | H40: =IF($D40>0,VLOOKUP($D40,Μητρώο!$A:$F,4,FALSE),"") -> 
A41: 39 | B41: 38 | E41: =IF($D41>0,VLOOKUP($D41,Μητρώο!$A:$F,3,FALSE),"") ->  | F41: =IF($D41>0,VLOOKUP($D41,Μητρώο!$A:$F,5,FALSE),"") ->  | H41: =IF($D41>0,VLOOKUP($D41,Μητρώο!$A:$F,4,FALSE),"") -> 
A42: 40 | B42: 39 | E42: =IF($D42>0,VLOOKUP($D42,Μητρώο!$A:$F,3,FALSE),"") ->  | F42: =IF($D42>0,VLOOKUP($D42,Μητρώο!$A:$F,5,FALSE),"") ->  | G42: =IF(COUNTIF(Rankings!$B:$B,RIGHT($C42,2)&"-"&$D42)>0,IF($D42>0,VLOOKUP(RIGHT($C42,2)&"-"&$D42,Rankings!$B:$G,6,FALSE),""),0) -> 0 | H42: =IF($D42>0,VLOOKUP($D42,Μητρώο!$A:$F,4,FALSE),"") -> 
A43: 41 | B43: 40 | E43: =IF($D43>0,VLOOKUP($D43,Μητρώο!$A:$F,3,FALSE),"") ->  | F43: =IF($D43>0,VLOOKUP($D43,Μητρώο!$A:$F,5,FALSE),"") ->  | G43: =IF(COUNTIF(Rankings!$B:$B,RIGHT($C43,2)&"-"&$D43)>0,IF($D43>0,VLOOKUP(RIGHT($C43,2)&"-"&$D43,Rankings!$B:$G,6,FALSE),""),0) -> 0 | H43: =IF($D43>0,VLOOKUP($D43,Μητρώο!$A:$F,4,FALSE),"") -> 
A44: 42 | B44: 41
A45: 43 | B45: 42
A46: 44 | B46: 43
A47: 45 | B47: 44 | E47: =IF($D47>0,VLOOKUP($D47,Μητρώο!$A:$F,3,FALSE),"") ->  | F47: =IF($D47>0,VLOOKUP($D47,Μητρώο!$A:$F,5,FALSE),"") ->  | G47: =IF(COUNTIF(Rankings!$B:$B,RIGHT($C47,2)&"-"&$D47)>0,IF($D47>0,VLOOKUP(RIGHT($C47,2)&"-"&$D47,Rankings!$B:$G,6,FALSE),""),0) -> 0 | H47: =IF($D47>0,VLOOKUP($D47,Μητρώο!$A:$F,4,FALSE),"") -> 
A48: 46 | B48: 45 | E48: =IF($D48>0,VLOOKUP($D48,Μητρώο!$A:$F,3,FALSE),"") ->  | F48: =IF($D48>0,VLOOKUP($D48,Μητρώο!$A:$F,5,FALSE),"") ->  | G48: =IF(COUNTIF(Rankings!$B:$B,RIGHT($C48,2)&"-"&$D48)>0,IF($D48>0,VLOOKUP(RIGHT($C48,2)&"-"&$D48,Rankings!$B:$G,6,FALSE),""),0) -> 0 | H48: =IF($D48>0,VLOOKUP($D48,Μητρώο!$A:$F,4,FALSE),"") -> 
A49: 47 | B49: 46 | E49: =IF($D49>0,VLOOKUP($D49,Μητρώο!$A:$F,3,FALSE),"") ->  | F49: =IF($D49>0,VLOOKUP($D49,Μητρώο!$A:$F,5,FALSE),"") ->  | G49: =IF(COUNTIF(Rankings!$B:$B,RIGHT($C49,2)&"-"&$D49)>0,IF($D49>0,VLOOKUP(RIGHT($C49,2)&"-"&$D49,Rankings!$B:$G,6,FALSE),""),0) -> 0 | H49: =IF($D49>0,VLOOKUP($D49,Μητρώο!$A:$F,4,FALSE),"") -> 
A50: 48 | B50: 47 | E50: =IF($D50>0,VLOOKUP($D50,Μητρώο!$A:$F,3,FALSE),"") ->  | F50: =IF($D50>0,VLOOKUP($D50,Μητρώο!$A:$F,5,FALSE),"") ->  | G50: =IF(COUNTIF(Rankings!$B:$B,RIGHT($C50,2)&"-"&$D50)>0,IF($D50>0,VLOOKUP(RIGHT($C50,2)&"-"&$D50,Rankings!$B:$G,6,FALSE),""),0) -> 0 | H50: =IF($D50>0,VLOOKUP($D50,Μητρώο!$A:$F,4,FALSE),"") -> 
A51: 49 | B51: 48 | E51: =IF($D51>0,VLOOKUP($D51,Μητρώο!$A:$F,3,FALSE),"") ->  | F51: =IF($D51>0,VLOOKUP($D51,Μητρώο!$A:$F,5,FALSE),"") ->  | G51: =IF(COUNTIF(Rankings!$B:$B,RIGHT($C51,2)&"-"&$D51)>0,IF($D51>0,VLOOKUP(RIGHT($C51,2)&"-"&$D51,Rankings!$B:$G,6,FALSE),""),0) -> 0 | H51: =IF($D51>0,VLOOKUP($D51,Μητρώο!$A:$F,4,FALSE),"") -> 
A52: 50 | B52: 49 | E52: =IF($D52>0,VLOOKUP($D52,Μητρώο!$A:$F,3,FALSE),"") ->  | F52: =IF($D52>0,VLOOKUP($D52,Μητρώο!$A:$F,5,FALSE),"") ->  | G52: =IF(COUNTIF(Rankings!$B:$B,RIGHT($C52,2)&"-"&$D52)>0,IF($D52>0,VLOOKUP(RIGHT($C52,2)&"-"&$D52,Rankings!$B:$G,6,FALSE),""),0) -> 0 | H52: =IF($D52>0,VLOOKUP($D52,Μητρώο!$A:$F,4,FALSE),"") -> 
A53: 51 | B53: 50 | E53: =IF($D53>0,VLOOKUP($D53,Μητρώο!$A:$F,3,FALSE),"") ->  | F53: =IF($D53>0,VLOOKUP($D53,Μητρώο!$A:$F,5,FALSE),"") ->  | G53: =IF(COUNTIF(Rankings!$B:$B,RIGHT($C53,2)&"-"&$D53)>0,IF($D53>0,VLOOKUP(RIGHT($C53,2)&"-"&$D53,Rankings!$B:$G,6,FALSE),""),0) -> 0 | H53: =IF($D53>0,VLOOKUP($D53,Μητρώο!$A:$F,4,FALSE),"") -> 
A54: 52 | B54: 51 | E54: =IF($D54>0,VLOOKUP($D54,Μητρώο!$A:$F,3,FALSE),"") ->  | F54: =IF($D54>0,VLOOKUP($D54,Μητρώο!$A:$F,5,FALSE),"") ->  | G54: =IF(COUNTIF(Rankings!$B:$B,RIGHT($C54,2)&"-"&$D54)>0,IF($D54>0,VLOOKUP(RIGHT($C54,2)&"-"&$D54,Rankings!$B:$G,6,FALSE),""),0) -> 0 | H54: =IF($D54>0,VLOOKUP($D54,Μητρώο!$A:$F,4,FALSE),"") -> 
A55: 53 | B55: 52 | E55: =IF($D55>0,VLOOKUP($D55,Μητρώο!$A:$F,3,FALSE),"") ->  | F55: =IF($D55>0,VLOOKUP($D55,Μητρώο!$A:$F,5,FALSE),"") ->  | G55: =IF(COUNTIF(Rankings!$B:$B,RIGHT($C55,2)&"-"&$D55)>0,IF($D55>0,VLOOKUP(RIGHT($C55,2)&"-"&$D55,Rankings!$B:$G,6,FALSE),""),0) -> 0 | H55: =IF($D55>0,VLOOKUP($D55,Μητρώο!$A:$F,4,FALSE),"") -> 
A56: 54 | B56: 53 | E56: =IF($D56>0,VLOOKUP($D56,Μητρώο!$A:$F,3,FALSE),"") ->  | F56: =IF($D56>0,VLOOKUP($D56,Μητρώο!$A:$F,5,FALSE),"") ->  | G56: =IF(COUNTIF(Rankings!$B:$B,RIGHT($C56,2)&"-"&$D56)>0,IF($D56>0,VLOOKUP(RIGHT($C56,2)&"-"&$D56,Rankings!$B:$G,6,FALSE),""),0) -> 0 | H56: =IF($D56>0,VLOOKUP($D56,Μητρώο!$A:$F,4,FALSE),"") -> 
A57: 55 | B57: 54 | E57: =IF($D57>0,VLOOKUP($D57,Μητρώο!$A:$F,3,FALSE),"") ->  | F57: =IF($D57>0,VLOOKUP($D57,Μητρώο!$A:$F,5,FALSE),"") ->  | G57: =IF(COUNTIF(Rankings!$B:$B,RIGHT($C57,2)&"-"&$D57)>0,IF($D57>0,VLOOKUP(RIGHT($C57,2)&"-"&$D57,Rankings!$B:$G,6,FALSE),""),0) -> 0 | H57: =IF($D57>0,VLOOKUP($D57,Μητρώο!$A:$F,4,FALSE),"") -> 
A58: 56 | B58: 55 | E58: =IF($D58>0,VLOOKUP($D58,Μητρώο!$A:$F,3,FALSE),"") ->  | F58: =IF($D58>0,VLOOKUP($D58,Μητρώο!$A:$F,5,FALSE),"") ->  | G58: =IF(COUNTIF(Rankings!$B:$B,RIGHT($C58,2)&"-"&$D58)>0,IF($D58>0,VLOOKUP(RIGHT($C58,2)&"-"&$D58,Rankings!$B:$G,6,FALSE),""),0) -> 0 | H58: =IF($D58>0,VLOOKUP($D58,Μητρώο!$A:$F,4,FALSE),"") -> 
A59: 57 | B59: 56 | E59: =IF($D59>0,VLOOKUP($D59,Μητρώο!$A:$F,3,FALSE),"") ->  | F59: =IF($D59>0,VLOOKUP($D59,Μητρώο!$A:$F,5,FALSE),"") ->  | G59: =IF(COUNTIF(Rankings!$B:$B,RIGHT($C59,2)&"-"&$D59)>0,IF($D59>0,VLOOKUP(RIGHT($C59,2)&"-"&$D59,Rankings!$B:$G,6,FALSE),""),0) -> 0 | H59: =IF($D59>0,VLOOKUP($D59,Μητρώο!$A:$F,4,FALSE),"") -> 
A60: 58 | B60: 57 | E60: =IF($D60>0,VLOOKUP($D60,Μητρώο!$A:$F,3,FALSE),"") ->  | F60: =IF($D60>0,VLOOKUP($D60,Μητρώο!$A:$F,5,FALSE),"") ->  | G60: =IF(COUNTIF(Rankings!$B:$B,RIGHT($C60,2)&"-"&$D60)>0,IF($D60>0,VLOOKUP(RIGHT($C60,2)&"-"&$D60,Rankings!$B:$G,6,FALSE),""),0) -> 0 | H60: =IF($D60>0,VLOOKUP($D60,Μητρώο!$A:$F,4,FALSE),"") -> 
A61: 59 | B61: 58 | E61: =IF($D61>0,VLOOKUP($D61,Μητρώο!$A:$F,3,FALSE),"") ->  | F61: =IF($D61>0,VLOOKUP($D61,Μητρώο!$A:$F,5,FALSE),"") ->  | G61: =IF(COUNTIF(Rankings!$B:$B,RIGHT($C61,2)&"-"&$D61)>0,IF($D61>0,VLOOKUP(RIGHT($C61,2)&"-"&$D61,Rankings!$B:$G,6,FALSE),""),0) -> 0 | H61: =IF($D61>0,VLOOKUP($D61,Μητρώο!$A:$F,4,FALSE),"") -> 
A62: 60 | B62: 59 | E62: =IF($D62>0,VLOOKUP($D62,Μητρώο!$A:$F,3,FALSE),"") ->  | F62: =IF($D62>0,VLOOKUP($D62,Μητρώο!$A:$F,5,FALSE),"") ->  | G62: =IF(COUNTIF(Rankings!$B:$B,RIGHT($C62,2)&"-"&$D62)>0,IF($D62>0,VLOOKUP(RIGHT($C62,2)&"-"&$D62,Rankings!$B:$G,6,FALSE),""),0) -> 0 | H62: =IF($D62>0,VLOOKUP($D62,Μητρώο!$A:$F,4,FALSE),"") -> 
A63: 61 | B63: 60 | E63: =IF($D63>0,VLOOKUP($D63,Μητρώο!$A:$F,3,FALSE),"") ->  | F63: =IF($D63>0,VLOOKUP($D63,Μητρώο!$A:$F,5,FALSE),"") ->  | G63: =IF(COUNTIF(Rankings!$B:$B,RIGHT($C63,2)&"-"&$D63)>0,IF($D63>0,VLOOKUP(RIGHT($C63,2)&"-"&$D63,Rankings!$B:$G,6,FALSE),""),0) -> 0 | H63: =IF($D63>0,VLOOKUP($D63,Μητρώο!$A:$F,4,FALSE),"") -> 
A64: 62 | B64: 61 | E64: =IF($D64>0,VLOOKUP($D64,Μητρώο!$A:$F,3,FALSE),"") ->  | F64: =IF($D64>0,VLOOKUP($D64,Μητρώο!$A:$F,5,FALSE),"") ->  | G64: =IF(COUNTIF(Rankings!$B:$B,RIGHT($C64,2)&"-"&$D64)>0,IF($D64>0,VLOOKUP(RIGHT($C64,2)&"-"&$D64,Rankings!$B:$G,6,FALSE),""),0) -> 0 | H64: =IF($D64>0,VLOOKUP($D64,Μητρώο!$A:$F,4,FALSE),"") -> 
A65: 63 | B65: 62 | E65: =IF($D65>0,VLOOKUP($D65,Μητρώο!$A:$F,3,FALSE),"") ->  | F65: =IF($D65>0,VLOOKUP($D65,Μητρώο!$A:$F,5,FALSE),"") ->  | G65: =IF(COUNTIF(Rankings!$B:$B,RIGHT($C65,2)&"-"&$D65)>0,IF($D65>0,VLOOKUP(RIGHT($C65,2)&"-"&$D65,Rankings!$B:$G,6,FALSE),""),0) -> 0 | H65: =IF($D65>0,VLOOKUP($D65,Μητρώο!$A:$F,4,FALSE),"") -> 
A66: 64 | B66: 63 | E66: =IF($D66>0,VLOOKUP($D66,Μητρώο!$A:$F,3,FALSE),"") ->  | F66: =IF($D66>0,VLOOKUP($D66,Μητρώο!$A:$F,5,FALSE),"") ->  | G66: =IF(COUNTIF(Rankings!$B:$B,RIGHT($C66,2)&"-"&$D66)>0,IF($D66>0,VLOOKUP(RIGHT($C66,2)&"-"&$D66,Rankings!$B:$G,6,FALSE),""),0) -> 0 | H66: =IF($D66>0,VLOOKUP($D66,Μητρώο!$A:$F,4,FALSE),"") -> 
A67: 65 | B67: 64 | E67: =IF($D67>0,VLOOKUP($D67,Μητρώο!$A:$F,3,FALSE),"") ->  | F67: =IF($D67>0,VLOOKUP($D67,Μητρώο!$A:$F,5,FALSE),"") ->  | G67: =IF(COUNTIF(Rankings!$B:$B,RIGHT($C67,2)&"-"&$D67)>0,IF($D67>0,VLOOKUP(RIGHT($C67,2)&"-"&$D67,Rankings!$B:$G,6,FALSE),""),0) -> 0 | H67: =IF($D67>0,VLOOKUP($D67,Μητρώο!$A:$F,4,FALSE),"") -> 
A68: 66 | B68: =IF(C68=C67,B67+1,1) -> 65 | E68: =IF($D68>0,VLOOKUP($D68,Μητρώο!$A:$F,3,FALSE),"") ->  | F68: =IF($D68>0,VLOOKUP($D68,Μητρώο!$A:$F,5,FALSE),"") ->  | G68: =IF(COUNTIF(Rankings!$B:$B,RIGHT($C68,2)&"-"&$D68)>0,IF($D68>0,VLOOKUP(RIGHT($C68,2)&"-"&$D68,Rankings!$B:$G,6,FALSE),""),0) -> 0 | H68: =IF($D68>0,VLOOKUP($D68,Μητρώο!$A:$F,4,FALSE),"") -> 
A69: 67 | B69: 66 | E69: =IF($D69>0,VLOOKUP($D69,Μητρώο!$A:$F,3,FALSE),"") ->  | F69: =IF($D69>0,VLOOKUP($D69,Μητρώο!$A:$F,5,FALSE),"") ->  | G69: =IF(COUNTIF(Rankings!$B:$B,RIGHT($C69,2)&"-"&$D69)>0,IF($D69>0,VLOOKUP(RIGHT($C69,2)&"-"&$D69,Rankings!$B:$G,6,FALSE),""),0) -> 0 | H69: =IF($D69>0,VLOOKUP($D69,Μητρώο!$A:$F,4,FALSE),"") -> 
A70: 68 | B70: 67 | E70: =IF($D70>0,VLOOKUP($D70,Μητρώο!$A:$F,3,FALSE),"") ->  | F70: =IF($D70>0,VLOOKUP($D70,Μητρώο!$A:$F,5,FALSE),"") ->  | G70: =IF(COUNTIF(Rankings!$B:$B,RIGHT($C70,2)&"-"&$D70)>0,IF($D70>0,VLOOKUP(RIGHT($C70,2)&"-"&$D70,Rankings!$B:$G,6,FALSE),""),0) -> 0 | H70: =IF($D70>0,VLOOKUP($D70,Μητρώο!$A:$F,4,FALSE),"") -> 
A71: 69 | B71: 68 | E71: =IF($D71>0,VLOOKUP($D71,Μητρώο!$A:$F,3,FALSE),"") ->  | F71: =IF($D71>0,VLOOKUP($D71,Μητρώο!$A:$F,5,FALSE),"") ->  | G71: =IF(COUNTIF(Rankings!$B:$B,RIGHT($C71,2)&"-"&$D71)>0,IF($D71>0,VLOOKUP(RIGHT($C71,2)&"-"&$D71,Rankings!$B:$G,6,FALSE),""),0) -> 0 | H71: =IF($D71>0,VLOOKUP($D71,Μητρώο!$A:$F,4,FALSE),"") -> 
A72: 70 | B72: 69 | E72: =IF($D72>0,VLOOKUP($D72,Μητρώο!$A:$F,3,FALSE),"") ->  | F72: =IF($D72>0,VLOOKUP($D72,Μητρώο!$A:$F,5,FALSE),"") ->  | G72: =IF(COUNTIF(Rankings!$B:$B,RIGHT($C72,2)&"-"&$D72)>0,IF($D72>0,VLOOKUP(RIGHT($C72,2)&"-"&$D72,Rankings!$B:$G,6,FALSE),""),0) -> 0 | H72: =IF($D72>0,VLOOKUP($D72,Μητρώο!$A:$F,4,FALSE),"") -> 
A73: 71 | B73: 70 | E73: =IF($D73>0,VLOOKUP($D73,Μητρώο!$A:$F,3,FALSE),"") ->  | F73: =IF($D73>0,VLOOKUP($D73,Μητρώο!$A:$F,5,FALSE),"") ->  | G73: =IF(COUNTIF(Rankings!$B:$B,RIGHT($C73,2)&"-"&$D73)>0,IF($D73>0,VLOOKUP(RIGHT($C73,2)&"-"&$D73,Rankings!$B:$G,6,FALSE),""),0) -> 0 | H73: =IF($D73>0,VLOOKUP($D73,Μητρώο!$A:$F,4,FALSE),"") -> 
A74: 72 | B74: 71 | E74: =IF($D74>0,VLOOKUP($D74,Μητρώο!$A:$F,3,FALSE),"") ->  | F74: =IF($D74>0,VLOOKUP($D74,Μητρώο!$A:$F,5,FALSE),"") ->  | G74: =IF(COUNTIF(Rankings!$B:$B,RIGHT($C74,2)&"-"&$D74)>0,IF($D74>0,VLOOKUP(RIGHT($C74,2)&"-"&$D74,Rankings!$B:$G,6,FALSE),""),0) -> 0 | H74: =IF($D74>0,VLOOKUP($D74,Μητρώο!$A:$F,4,FALSE),"") -> 
A75: 73 | B75: 72 | E75: =IF($D75>0,VLOOKUP($D75,Μητρώο!$A:$F,3,FALSE),"") ->  | F75: =IF($D75>0,VLOOKUP($D75,Μητρώο!$A:$F,5,FALSE),"") ->  | G75: =IF(COUNTIF(Rankings!$B:$B,RIGHT($C75,2)&"-"&$D75)>0,IF($D75>0,VLOOKUP(RIGHT($C75,2)&"-"&$D75,Rankings!$B:$G,6,FALSE),""),0) -> 0 | H75: =IF($D75>0,VLOOKUP($D75,Μητρώο!$A:$F,4,FALSE),"") -> 
A76: 74 | B76: 73 | E76: =IF($D76>0,VLOOKUP($D76,Μητρώο!$A:$F,3,FALSE),"") ->  | F76: =IF($D76>0,VLOOKUP($D76,Μητρώο!$A:$F,5,FALSE),"") ->  | G76: =IF(COUNTIF(Rankings!$B:$B,RIGHT($C76,2)&"-"&$D76)>0,IF($D76>0,VLOOKUP(RIGHT($C76,2)&"-"&$D76,Rankings!$B:$G,6,FALSE),""),0) -> 0 | H76: =IF($D76>0,VLOOKUP($D76,Μητρώο!$A:$F,4,FALSE),"") -> 
A77: 75 | B77: 74 | E77: =IF($D77>0,VLOOKUP($D77,Μητρώο!$A:$F,3,FALSE),"") ->  | F77: =IF($D77>0,VLOOKUP($D77,Μητρώο!$A:$F,5,FALSE),"") ->  | G77: =IF(COUNTIF(Rankings!$B:$B,RIGHT($C77,2)&"-"&$D77)>0,IF($D77>0,VLOOKUP(RIGHT($C77,2)&"-"&$D77,Rankings!$B:$G,6,FALSE),""),0) -> 0 | H77: =IF($D77>0,VLOOKUP($D77,Μητρώο!$A:$F,4,FALSE),"") -> 
A78: 76 | B78: 75 | E78: =IF($D78>0,VLOOKUP($D78,Μητρώο!$A:$F,3,FALSE),"") ->  | F78: =IF($D78>0,VLOOKUP($D78,Μητρώο!$A:$F,5,FALSE),"") ->  | G78: =IF(COUNTIF(Rankings!$B:$B,RIGHT($C78,2)&"-"&$D78)>0,IF($D78>0,VLOOKUP(RIGHT($C78,2)&"-"&$D78,Rankings!$B:$G,6,FALSE),""),0) -> 0 | H78: =IF($D78>0,VLOOKUP($D78,Μητρώο!$A:$F,4,FALSE),"") -> 
A79: 77 | B79: 76 | E79: =IF($D79>0,VLOOKUP($D79,Μητρώο!$A:$F,3,FALSE),"") ->  | F79: =IF($D79>0,VLOOKUP($D79,Μητρώο!$A:$F,5,FALSE),"") ->  | G79: =IF(COUNTIF(Rankings!$B:$B,RIGHT($C79,2)&"-"&$D79)>0,IF($D79>0,VLOOKUP(RIGHT($C79,2)&"-"&$D79,Rankings!$B:$G,6,FALSE),""),0) -> 0 | H79: =IF($D79>0,VLOOKUP($D79,Μητρώο!$A:$F,4,FALSE),"") -> 
A80: 78 | B80: 77 | E80: =IF($D80>0,VLOOKUP($D80,Μητρώο!$A:$F,3,FALSE),"") ->  | F80: =IF($D80>0,VLOOKUP($D80,Μητρώο!$A:$F,5,FALSE),"") ->  | G80: =IF(COUNTIF(Rankings!$B:$B,RIGHT($C80,2)&"-"&$D80)>0,IF($D80>0,VLOOKUP(RIGHT($C80,2)&"-"&$D80,Rankings!$B:$G,6,FALSE),""),0) -> 0 | H80: =IF($D80>0,VLOOKUP($D80,Μητρώο!$A:$F,4,FALSE),"") -> 
A81: 79 | B81: 78 | E81: =IF($D81>0,VLOOKUP($D81,Μητρώο!$A:$F,3,FALSE),"") ->  | F81: =IF($D81>0,VLOOKUP($D81,Μητρώο!$A:$F,5,FALSE),"") ->  | G81: =IF(COUNTIF(Rankings!$B:$B,RIGHT($C81,2)&"-"&$D81)>0,IF($D81>0,VLOOKUP(RIGHT($C81,2)&"-"&$D81,Rankings!$B:$G,6,FALSE),""),0) -> 0 | H81: =IF($D81>0,VLOOKUP($D81,Μητρώο!$A:$F,4,FALSE),"") -> 
A82: 80 | B82: 79 | E82: =IF($D82>0,VLOOKUP($D82,Μητρώο!$A:$F,3,FALSE),"") ->  | F82: =IF($D82>0,VLOOKUP($D82,Μητρώο!$A:$F,5,FALSE),"") ->  | G82: =IF(COUNTIF(Rankings!$B:$B,RIGHT($C82,2)&"-"&$D82)>0,IF($D82>0,VLOOKUP(RIGHT($C82,2)&"-"&$D82,Rankings!$B:$G,6,FALSE),""),0) -> 0 | H82: =IF($D82>0,VLOOKUP($D82,Μητρώο!$A:$F,4,FALSE),"") -> 
A83: 81 | B83: 80 | E83: =IF($D83>0,VLOOKUP($D83,Μητρώο!$A:$F,3,FALSE),"") ->  | F83: =IF($D83>0,VLOOKUP($D83,Μητρώο!$A:$F,5,FALSE),"") ->  | G83: =IF(COUNTIF(Rankings!$B:$B,RIGHT($C83,2)&"-"&$D83)>0,IF($D83>0,VLOOKUP(RIGHT($C83,2)&"-"&$D83,Rankings!$B:$G,6,FALSE),""),0) -> 0 | H83: =IF($D83>0,VLOOKUP($D83,Μητρώο!$A:$F,4,FALSE),"") -> 
A84: 82 | B84: 81 | E84: =IF($D84>0,VLOOKUP($D84,Μητρώο!$A:$F,3,FALSE),"") ->  | F84: =IF($D84>0,VLOOKUP($D84,Μητρώο!$A:$F,5,FALSE),"") ->  | G84: =IF(COUNTIF(Rankings!$B:$B,RIGHT($C84,2)&"-"&$D84)>0,IF($D84>0,VLOOKUP(RIGHT($C84,2)&"-"&$D84,Rankings!$B:$G,6,FALSE),""),0) -> 0 | H84: =IF($D84>0,VLOOKUP($D84,Μητρώο!$A:$F,4,FALSE),"") -> 
A85: 83 | B85: 82 | E85: =IF($D85>0,VLOOKUP($D85,Μητρώο!$A:$F,3,FALSE),"") ->  | F85: =IF($D85>0,VLOOKUP($D85,Μητρώο!$A:$F,5,FALSE),"") ->  | G85: =IF(COUNTIF(Rankings!$B:$B,RIGHT($C85,2)&"-"&$D85)>0,IF($D85>0,VLOOKUP(RIGHT($C85,2)&"-"&$D85,Rankings!$B:$G,6,FALSE),""),0) -> 0 | H85: =IF($D85>0,VLOOKUP($D85,Μητρώο!$A:$F,4,FALSE),"") -> 
A86: 84 | B86: 83 | E86: =IF($D86>0,VLOOKUP($D86,Μητρώο!$A:$F,3,FALSE),"") ->  | F86: =IF($D86>0,VLOOKUP($D86,Μητρώο!$A:$F,5,FALSE),"") ->  | G86: =IF(COUNTIF(Rankings!$B:$B,RIGHT($C86,2)&"-"&$D86)>0,IF($D86>0,VLOOKUP(RIGHT($C86,2)&"-"&$D86,Rankings!$B:$G,6,FALSE),""),0) -> 0 | H86: =IF($D86>0,VLOOKUP($D86,Μητρώο!$A:$F,4,FALSE),"") -> 
A87: 85 | B87: 84 | E87: =IF($D87>0,VLOOKUP($D87,Μητρώο!$A:$F,3,FALSE),"") ->  | F87: =IF($D87>0,VLOOKUP($D87,Μητρώο!$A:$F,5,FALSE),"") ->  | G87: =IF(COUNTIF(Rankings!$B:$B,RIGHT($C87,2)&"-"&$D87)>0,IF($D87>0,VLOOKUP(RIGHT($C87,2)&"-"&$D87,Rankings!$B:$G,6,FALSE),""),0) -> 0 | H87: =IF($D87>0,VLOOKUP($D87,Μητρώο!$A:$F,4,FALSE),"") -> 
A88: 86 | B88: 85 | E88: =IF($D88>0,VLOOKUP($D88,Μητρώο!$A:$F,3,FALSE),"") ->  | F88: =IF($D88>0,VLOOKUP($D88,Μητρώο!$A:$F,5,FALSE),"") ->  | G88: =IF(COUNTIF(Rankings!$B:$B,RIGHT($C88,2)&"-"&$D88)>0,IF($D88>0,VLOOKUP(RIGHT($C88,2)&"-"&$D88,Rankings!$B:$G,6,FALSE),""),0) -> 0 | H88: =IF($D88>0,VLOOKUP($D88,Μητρώο!$A:$F,4,FALSE),"") -> 
A89: 87 | B89: 86 | E89: =IF($D89>0,VLOOKUP($D89,Μητρώο!$A:$F,3,FALSE),"") ->  | F89: =IF($D89>0,VLOOKUP($D89,Μητρώο!$A:$F,5,FALSE),"") ->  | G89: =IF(COUNTIF(Rankings!$B:$B,RIGHT($C89,2)&"-"&$D89)>0,IF($D89>0,VLOOKUP(RIGHT($C89,2)&"-"&$D89,Rankings!$B:$G,6,FALSE),""),0) -> 0 | H89: =IF($D89>0,VLOOKUP($D89,Μητρώο!$A:$F,4,FALSE),"") -> 
A90: 88 | B90: 87 | E90: =IF($D90>0,VLOOKUP($D90,Μητρώο!$A:$F,3,FALSE),"") ->  | F90: =IF($D90>0,VLOOKUP($D90,Μητρώο!$A:$F,5,FALSE),"") ->  | G90: =IF(COUNTIF(Rankings!$B:$B,RIGHT($C90,2)&"-"&$D90)>0,IF($D90>0,VLOOKUP(RIGHT($C90,2)&"-"&$D90,Rankings!$B:$G,6,FALSE),""),0) -> 0 | H90: =IF($D90>0,VLOOKUP($D90,Μητρώο!$A:$F,4,FALSE),"") -> 
A91: 89 | B91: 88 | E91: =IF($D91>0,VLOOKUP($D91,Μητρώο!$A:$F,3,FALSE),"") ->  | F91: =IF($D91>0,VLOOKUP($D91,Μητρώο!$A:$F,5,FALSE),"") ->  | G91: =IF(COUNTIF(Rankings!$B:$B,RIGHT($C91,2)&"-"&$D91)>0,IF($D91>0,VLOOKUP(RIGHT($C91,2)&"-"&$D91,Rankings!$B:$G,6,FALSE),""),0) -> 0 | H91: =IF($D91>0,VLOOKUP($D91,Μητρώο!$A:$F,4,FALSE),"") -> 
A92: 90 | B92: 89 | E92: =IF($D92>0,VLOOKUP($D92,Μητρώο!$A:$F,3,FALSE),"") ->  | F92: =IF($D92>0,VLOOKUP($D92,Μητρώο!$A:$F,5,FALSE),"") ->  | G92: =IF(COUNTIF(Rankings!$B:$B,RIGHT($C92,2)&"-"&$D92)>0,IF($D92>0,VLOOKUP(RIGHT($C92,2)&"-"&$D92,Rankings!$B:$G,6,FALSE),""),0) -> 0 | H92: =IF($D92>0,VLOOKUP($D92,Μητρώο!$A:$F,4,FALSE),"") -> 
A93: 91 | B93: 90 | E93: =IF($D93>0,VLOOKUP($D93,Μητρώο!$A:$F,3,FALSE),"") ->  | F93: =IF($D93>0,VLOOKUP($D93,Μητρώο!$A:$F,5,FALSE),"") ->  | G93: =IF(COUNTIF(Rankings!$B:$B,RIGHT($C93,2)&"-"&$D93)>0,IF($D93>0,VLOOKUP(RIGHT($C93,2)&"-"&$D93,Rankings!$B:$G,6,FALSE),""),0) -> 0 | H93: =IF($D93>0,VLOOKUP($D93,Μητρώο!$A:$F,4,FALSE),"") -> 
A94: 92 | B94: 91 | E94: =IF($D94>0,VLOOKUP($D94,Μητρώο!$A:$F,3,FALSE),"") ->  | F94: =IF($D94>0,VLOOKUP($D94,Μητρώο!$A:$F,5,FALSE),"") ->  | G94: =IF(COUNTIF(Rankings!$B:$B,RIGHT($C94,2)&"-"&$D94)>0,IF($D94>0,VLOOKUP(RIGHT($C94,2)&"-"&$D94,Rankings!$B:$G,6,FALSE),""),0) -> 0 | H94: =IF($D94>0,VLOOKUP($D94,Μητρώο!$A:$F,4,FALSE),"") -> 
A95: 93 | B95: 92 | E95: =IF($D95>0,VLOOKUP($D95,Μητρώο!$A:$F,3,FALSE),"") ->  | F95: =IF($D95>0,VLOOKUP($D95,Μητρώο!$A:$F,5,FALSE),"") ->  | G95: =IF(COUNTIF(Rankings!$B:$B,RIGHT($C95,2)&"-"&$D95)>0,IF($D95>0,VLOOKUP(RIGHT($C95,2)&"-"&$D95,Rankings!$B:$G,6,FALSE),""),0) -> 0 | H95: =IF($D95>0,VLOOKUP($D95,Μητρώο!$A:$F,4,FALSE),"") -> 
A96: 94 | B96: 93 | E96: =IF($D96>0,VLOOKUP($D96,Μητρώο!$A:$F,3,FALSE),"") ->  | F96: =IF($D96>0,VLOOKUP($D96,Μητρώο!$A:$F,5,FALSE),"") ->  | G96: =IF(COUNTIF(Rankings!$B:$B,RIGHT($C96,2)&"-"&$D96)>0,IF($D96>0,VLOOKUP(RIGHT($C96,2)&"-"&$D96,Rankings!$B:$G,6,FALSE),""),0) -> 0 | H96: =IF($D96>0,VLOOKUP($D96,Μητρώο!$A:$F,4,FALSE),"") -> 
A97: 95 | B97: 94 | E97: =IF($D97>0,VLOOKUP($D97,Μητρώο!$A:$F,3,FALSE),"") ->  | F97: =IF($D97>0,VLOOKUP($D97,Μητρώο!$A:$F,5,FALSE),"") ->  | G97: =IF(COUNTIF(Rankings!$B:$B,RIGHT($C97,2)&"-"&$D97)>0,IF($D97>0,VLOOKUP(RIGHT($C97,2)&"-"&$D97,Rankings!$B:$G,6,FALSE),""),0) -> 0 | H97: =IF($D97>0,VLOOKUP($D97,Μητρώο!$A:$F,4,FALSE),"") -> 
A98: 96 | B98: 95 | E98: =IF($D98>0,VLOOKUP($D98,Μητρώο!$A:$F,3,FALSE),"") ->  | F98: =IF($D98>0,VLOOKUP($D98,Μητρώο!$A:$F,5,FALSE),"") ->  | G98: =IF(COUNTIF(Rankings!$B:$B,RIGHT($C98,2)&"-"&$D98)>0,IF($D98>0,VLOOKUP(RIGHT($C98,2)&"-"&$D98,Rankings!$B:$G,6,FALSE),""),0) -> 0 | H98: =IF($D98>0,VLOOKUP($D98,Μητρώο!$A:$F,4,FALSE),"") -> 
A99: 97 | B99: 96 | E99: =IF($D99>0,VLOOKUP($D99,Μητρώο!$A:$F,3,FALSE),"") ->  | F99: =IF($D99>0,VLOOKUP($D99,Μητρώο!$A:$F,5,FALSE),"") ->  | G99: =IF(COUNTIF(Rankings!$B:$B,RIGHT($C99,2)&"-"&$D99)>0,IF($D99>0,VLOOKUP(RIGHT($C99,2)&"-"&$D99,Rankings!$B:$G,6,FALSE),""),0) -> 0 | H99: =IF($D99>0,VLOOKUP($D99,Μητρώο!$A:$F,4,FALSE),"") -> 
A100: 98 | B100: 97 | E100: =IF($D100>0,VLOOKUP($D100,Μητρώο!$A:$F,3,FALSE),"") ->  | F100: =IF($D100>0,VLOOKUP($D100,Μητρώο!$A:$F,5,FALSE),"") ->  | G100: =IF(COUNTIF(Rankings!$B:$B,RIGHT($C100,2)&"-"&$D100)>0,IF($D100>0,VLOOKUP(RIGHT($C100,2)&"-"&$D100,Rankings!$B:$G,6,FALSE),""),0) -> 0 | H100: =IF($D100>0,VLOOKUP($D100,Μητρώο!$A:$F,4,FALSE),"") -> 
A101: 99 | B101: 98 | E101: =IF($D101>0,VLOOKUP($D101,Μητρώο!$A:$F,3,FALSE),"") ->  | F101: =IF($D101>0,VLOOKUP($D101,Μητρώο!$A:$F,5,FALSE),"") ->  | G101: =IF(COUNTIF(Rankings!$B:$B,RIGHT($C101,2)&"-"&$D101)>0,IF($D101>0,VLOOKUP(RIGHT($C101,2)&"-"&$D101,Rankings!$B:$G,6,FALSE),""),0) -> 0 | H101: =IF($D101>0,VLOOKUP($D101,Μητρώο!$A:$F,4,FALSE),"") -> 
A102: 100 | B102: 99 | E102: =IF($D102>0,VLOOKUP($D102,Μητρώο!$A:$F,3,FALSE),"") ->  | F102: =IF($D102>0,VLOOKUP($D102,Μητρώο!$A:$F,5,FALSE),"") ->  | G102: =IF(COUNTIF(Rankings!$B:$B,RIGHT($C102,2)&"-"&$D102)>0,IF($D102>0,VLOOKUP(RIGHT($C102,2)&"-"&$D102,Rankings!$B:$G,6,FALSE),""),0) -> 0 | H102: =IF($D102>0,VLOOKUP($D102,Μητρώο!$A:$F,4,FALSE),"") -> 
A103: 101 | B103: 100 | E103: =IF($D103>0,VLOOKUP($D103,Μητρώο!$A:$F,3,FALSE),"") ->  | F103: =IF($D103>0,VLOOKUP($D103,Μητρώο!$A:$F,5,FALSE),"") ->  | G103: =IF(COUNTIF(Rankings!$B:$B,RIGHT($C103,2)&"-"&$D103)>0,IF($D103>0,VLOOKUP(RIGHT($C103,2)&"-"&$D103,Rankings!$B:$G,6,FALSE),""),0) -> 0 | H103: =IF($D103>0,VLOOKUP($D103,Μητρώο!$A:$F,4,FALSE),"") -> 
A104: 102 | B104: 101 | E104: =IF($D104>0,VLOOKUP($D104,Μητρώο!$A:$F,3,FALSE),"") ->  | F104: =IF($D104>0,VLOOKUP($D104,Μητρώο!$A:$F,5,FALSE),"") ->  | G104: =IF(COUNTIF(Rankings!$B:$B,RIGHT($C104,2)&"-"&$D104)>0,IF($D104>0,VLOOKUP(RIGHT($C104,2)&"-"&$D104,Rankings!$B:$G,6,FALSE),""),0) -> 0 | H104: =IF($D104>0,VLOOKUP($D104,Μητρώο!$A:$F,4,FALSE),"") -> 
A105: 103 | B105: 102 | E105: =IF($D105>0,VLOOKUP($D105,Μητρώο!$A:$F,3,FALSE),"") ->  | F105: =IF($D105>0,VLOOKUP($D105,Μητρώο!$A:$F,5,FALSE),"") ->  | G105: =IF(COUNTIF(Rankings!$B:$B,RIGHT($C105,2)&"-"&$D105)>0,IF($D105>0,VLOOKUP(RIGHT($C105,2)&"-"&$D105,Rankings!$B:$G,6,FALSE),""),0) -> 0 | H105: =IF($D105>0,VLOOKUP($D105,Μητρώο!$A:$F,4,FALSE),"") -> 
A106: 104 | B106: 103 | E106: =IF($D106>0,VLOOKUP($D106,Μητρώο!$A:$F,3,FALSE),"") ->  | F106: =IF($D106>0,VLOOKUP($D106,Μητρώο!$A:$F,5,FALSE),"") ->  | G106: =IF(COUNTIF(Rankings!$B:$B,RIGHT($C106,2)&"-"&$D106)>0,IF($D106>0,VLOOKUP(RIGHT($C106,2)&"-"&$D106,Rankings!$B:$G,6,FALSE),""),0) -> 0 | H106: =IF($D106>0,VLOOKUP($D106,Μητρώο!$A:$F,4,FALSE),"") -> 
A107: 105 | B107: 104 | E107: =IF($D107>0,VLOOKUP($D107,Μητρώο!$A:$F,3,FALSE),"") ->  | F107: =IF($D107>0,VLOOKUP($D107,Μητρώο!$A:$F,5,FALSE),"") ->  | G107: =IF(COUNTIF(Rankings!$B:$B,RIGHT($C107,2)&"-"&$D107)>0,IF($D107>0,VLOOKUP(RIGHT($C107,2)&"-"&$D107,Rankings!$B:$G,6,FALSE),""),0) -> 0 | H107: =IF($D107>0,VLOOKUP($D107,Μητρώο!$A:$F,4,FALSE),"") -> 
A108: 106 | B108: 105 | E108: =IF($D108>0,VLOOKUP($D108,Μητρώο!$A:$F,3,FALSE),"") ->  | F108: =IF($D108>0,VLOOKUP($D108,Μητρώο!$A:$F,5,FALSE),"") ->  | G108: =IF(COUNTIF(Rankings!$B:$B,RIGHT($C108,2)&"-"&$D108)>0,IF($D108>0,VLOOKUP(RIGHT($C108,2)&"-"&$D108,Rankings!$B:$G,6,FALSE),""),0) -> 0 | H108: =IF($D108>0,VLOOKUP($D108,Μητρώο!$A:$F,4,FALSE),"") -> 
A109: 107 | B109: 106 | E109: =IF($D109>0,VLOOKUP($D109,Μητρώο!$A:$F,3,FALSE),"") ->  | F109: =IF($D109>0,VLOOKUP($D109,Μητρώο!$A:$F,5,FALSE),"") ->  | G109: =IF(COUNTIF(Rankings!$B:$B,RIGHT($C109,2)&"-"&$D109)>0,IF($D109>0,VLOOKUP(RIGHT($C109,2)&"-"&$D109,Rankings!$B:$G,6,FALSE),""),0) -> 0 | H109: =IF($D109>0,VLOOKUP($D109,Μητρώο!$A:$F,4,FALSE),"") -> 
A110: 108 | B110: 107 | E110: =IF($D110>0,VLOOKUP($D110,Μητρώο!$A:$F,3,FALSE),"") ->  | F110: =IF($D110>0,VLOOKUP($D110,Μητρώο!$A:$F,5,FALSE),"") ->  | G110: =IF(COUNTIF(Rankings!$B:$B,RIGHT($C110,2)&"-"&$D110)>0,IF($D110>0,VLOOKUP(RIGHT($C110,2)&"-"&$D110,Rankings!$B:$G,6,FALSE),""),0) -> 0 | H110: =IF($D110>0,VLOOKUP($D110,Μητρώο!$A:$F,4,FALSE),"") -> 
A111: 109 | B111: 108 | E111: =IF($D111>0,VLOOKUP($D111,Μητρώο!$A:$F,3,FALSE),"") ->  | F111: =IF($D111>0,VLOOKUP($D111,Μητρώο!$A:$F,5,FALSE),"") ->  | G111: =IF(COUNTIF(Rankings!$B:$B,RIGHT($C111,2)&"-"&$D111)>0,IF($D111>0,VLOOKUP(RIGHT($C111,2)&"-"&$D111,Rankings!$B:$G,6,FALSE),""),0) -> 0 | H111: =IF($D111>0,VLOOKUP($D111,Μητρώο!$A:$F,4,FALSE),"") -> 
A112: 110 | B112: 109 | E112: =IF($D112>0,VLOOKUP($D112,Μητρώο!$A:$F,3,FALSE),"") ->  | F112: =IF($D112>0,VLOOKUP($D112,Μητρώο!$A:$F,5,FALSE),"") ->  | G112: =IF(COUNTIF(Rankings!$B:$B,RIGHT($C112,2)&"-"&$D112)>0,IF($D112>0,VLOOKUP(RIGHT($C112,2)&"-"&$D112,Rankings!$B:$G,6,FALSE),""),0) -> 0 | H112: =IF($D112>0,VLOOKUP($D112,Μητρώο!$A:$F,4,FALSE),"") -> 
A113: 111 | B113: 110 | E113: =IF($D113>0,VLOOKUP($D113,Μητρώο!$A:$F,3,FALSE),"") ->  | F113: =IF($D113>0,VLOOKUP($D113,Μητρώο!$A:$F,5,FALSE),"") ->  | G113: =IF(COUNTIF(Rankings!$B:$B,RIGHT($C113,2)&"-"&$D113)>0,IF($D113>0,VLOOKUP(RIGHT($C113,2)&"-"&$D113,Rankings!$B:$G,6,FALSE),""),0) -> 0 | H113: =IF($D113>0,VLOOKUP($D113,Μητρώο!$A:$F,4,FALSE),"") -> 
A114: 112 | B114: 111 | E114: =IF($D114>0,VLOOKUP($D114,Μητρώο!$A:$F,3,FALSE),"") ->  | F114: =IF($D114>0,VLOOKUP($D114,Μητρώο!$A:$F,5,FALSE),"") ->  | G114: =IF(COUNTIF(Rankings!$B:$B,RIGHT($C114,2)&"-"&$D114)>0,IF($D114>0,VLOOKUP(RIGHT($C114,2)&"-"&$D114,Rankings!$B:$G,6,FALSE),""),0) -> 0 | H114: =IF($D114>0,VLOOKUP($D114,Μητρώο!$A:$F,4,FALSE),"") -> 
A115: 113 | B115: 112 | E115: =IF($D115>0,VLOOKUP($D115,Μητρώο!$A:$F,3,FALSE),"") ->  | F115: =IF($D115>0,VLOOKUP($D115,Μητρώο!$A:$F,5,FALSE),"") ->  | G115: =IF(COUNTIF(Rankings!$B:$B,RIGHT($C115,2)&"-"&$D115)>0,IF($D115>0,VLOOKUP(RIGHT($C115,2)&"-"&$D115,Rankings!$B:$G,6,FALSE),""),0) -> 0 | H115: =IF($D115>0,VLOOKUP($D115,Μητρώο!$A:$F,4,FALSE),"") -> 
A116: 114 | B116: 113 | E116: =IF($D116>0,VLOOKUP($D116,Μητρώο!$A:$F,3,FALSE),"") ->  | F116: =IF($D116>0,VLOOKUP($D116,Μητρώο!$A:$F,5,FALSE),"") ->  | G116: =IF(COUNTIF(Rankings!$B:$B,RIGHT($C116,2)&"-"&$D116)>0,IF($D116>0,VLOOKUP(RIGHT($C116,2)&"-"&$D116,Rankings!$B:$G,6,FALSE),""),0) -> 0 | H116: =IF($D116>0,VLOOKUP($D116,Μητρώο!$A:$F,4,FALSE),"") -> 
A117: 115 | B117: 114 | E117: =IF($D117>0,VLOOKUP($D117,Μητρώο!$A:$F,3,FALSE),"") ->  | F117: =IF($D117>0,VLOOKUP($D117,Μητρώο!$A:$F,5,FALSE),"") ->  | G117: =IF(COUNTIF(Rankings!$B:$B,RIGHT($C117,2)&"-"&$D117)>0,IF($D117>0,VLOOKUP(RIGHT($C117,2)&"-"&$D117,Rankings!$B:$G,6,FALSE),""),0) -> 0 | H117: =IF($D117>0,VLOOKUP($D117,Μητρώο!$A:$F,4,FALSE),"") -> 
A118: 116 | B118: 115 | E118: =IF($D118>0,VLOOKUP($D118,Μητρώο!$A:$F,3,FALSE),"") ->  | F118: =IF($D118>0,VLOOKUP($D118,Μητρώο!$A:$F,5,FALSE),"") ->  | G118: =IF(COUNTIF(Rankings!$B:$B,RIGHT($C118,2)&"-"&$D118)>0,IF($D118>0,VLOOKUP(RIGHT($C118,2)&"-"&$D118,Rankings!$B:$G,6,FALSE),""),0) -> 0 | H118: =IF($D118>0,VLOOKUP($D118,Μητρώο!$A:$F,4,FALSE),"") -> 
A119: 117 | B119: 116 | E119: =IF($D119>0,VLOOKUP($D119,Μητρώο!$A:$F,3,FALSE),"") ->  | F119: =IF($D119>0,VLOOKUP($D119,Μητρώο!$A:$F,5,FALSE),"") ->  | G119: =IF(COUNTIF(Rankings!$B:$B,RIGHT($C119,2)&"-"&$D119)>0,IF($D119>0,VLOOKUP(RIGHT($C119,2)&"-"&$D119,Rankings!$B:$G,6,FALSE),""),0) -> 0 | H119: =IF($D119>0,VLOOKUP($D119,Μητρώο!$A:$F,4,FALSE),"") -> 
A120: 118 | B120: 117 | E120: =IF($D120>0,VLOOKUP($D120,Μητρώο!$A:$F,3,FALSE),"") ->  | F120: =IF($D120>0,VLOOKUP($D120,Μητρώο!$A:$F,5,FALSE),"") ->  | G120: =IF(COUNTIF(Rankings!$B:$B,RIGHT($C120,2)&"-"&$D120)>0,IF($D120>0,VLOOKUP(RIGHT($C120,2)&"-"&$D120,Rankings!$B:$G,6,FALSE),""),0) -> 0 | H120: =IF($D120>0,VLOOKUP($D120,Μητρώο!$A:$F,4,FALSE),"") -> 
A121: 119 | B121: 118 | E121: =IF($D121>0,VLOOKUP($D121,Μητρώο!$A:$F,3,FALSE),"") ->  | F121: =IF($D121>0,VLOOKUP($D121,Μητρώο!$A:$F,5,FALSE),"") ->  | G121: =IF(COUNTIF(Rankings!$B:$B,RIGHT($C121,2)&"-"&$D121)>0,IF($D121>0,VLOOKUP(RIGHT($C121,2)&"-"&$D121,Rankings!$B:$G,6,FALSE),""),0) -> 0 | H121: =IF($D121>0,VLOOKUP($D121,Μητρώο!$A:$F,4,FALSE),"") -> 
A122: 120 | B122: 119 | E122: =IF($D122>0,VLOOKUP($D122,Μητρώο!$A:$F,3,FALSE),"") ->  | F122: =IF($D122>0,VLOOKUP($D122,Μητρώο!$A:$F,5,FALSE),"") ->  | G122: =IF(COUNTIF(Rankings!$B:$B,RIGHT($C122,2)&"-"&$D122)>0,IF($D122>0,VLOOKUP(RIGHT($C122,2)&"-"&$D122,Rankings!$B:$G,6,FALSE),""),0) -> 0 | H122: =IF($D122>0,VLOOKUP($D122,Μητρώο!$A:$F,4,FALSE),"") -> 
A123: 121 | B123: 120 | E123: =IF($D123>0,VLOOKUP($D123,Μητρώο!$A:$F,3,FALSE),"") ->  | F123: =IF($D123>0,VLOOKUP($D123,Μητρώο!$A:$F,5,FALSE),"") ->  | G123: =IF(COUNTIF(Rankings!$B:$B,RIGHT($C123,2)&"-"&$D123)>0,IF($D123>0,VLOOKUP(RIGHT($C123,2)&"-"&$D123,Rankings!$B:$G,6,FALSE),""),0) -> 0 | H123: =IF($D123>0,VLOOKUP($D123,Μητρώο!$A:$F,4,FALSE),"") -> 
A124: 122 | B124: 121 | E124: =IF($D124>0,VLOOKUP($D124,Μητρώο!$A:$F,3,FALSE),"") ->  | F124: =IF($D124>0,VLOOKUP($D124,Μητρώο!$A:$F,5,FALSE),"") ->  | G124: =IF(COUNTIF(Rankings!$B:$B,RIGHT($C124,2)&"-"&$D124)>0,IF($D124>0,VLOOKUP(RIGHT($C124,2)&"-"&$D124,Rankings!$B:$G,6,FALSE),""),0) -> 0 | H124: =IF($D124>0,VLOOKUP($D124,Μητρώο!$A:$F,4,FALSE),"") -> 
A125: 123 | B125: 122 | E125: =IF($D125>0,VLOOKUP($D125,Μητρώο!$A:$F,3,FALSE),"") ->  | F125: =IF($D125>0,VLOOKUP($D125,Μητρώο!$A:$F,5,FALSE),"") ->  | G125: =IF(COUNTIF(Rankings!$B:$B,RIGHT($C125,2)&"-"&$D125)>0,IF($D125>0,VLOOKUP(RIGHT($C125,2)&"-"&$D125,Rankings!$B:$G,6,FALSE),""),0) -> 0 | H125: =IF($D125>0,VLOOKUP($D125,Μητρώο!$A:$F,4,FALSE),"") -> 
A126: 124 | B126: 123 | E126: =IF($D126>0,VLOOKUP($D126,Μητρώο!$A:$F,3,FALSE),"") ->  | F126: =IF($D126>0,VLOOKUP($D126,Μητρώο!$A:$F,5,FALSE),"") ->  | G126: =IF(COUNTIF(Rankings!$B:$B,RIGHT($C126,2)&"-"&$D126)>0,IF($D126>0,VLOOKUP(RIGHT($C126,2)&"-"&$D126,Rankings!$B:$G,6,FALSE),""),0) -> 0 | H126: =IF($D126>0,VLOOKUP($D126,Μητρώο!$A:$F,4,FALSE),"") -> 
A127: 125 | B127: 124 | E127: =IF($D127>0,VLOOKUP($D127,Μητρώο!$A:$F,3,FALSE),"") ->  | F127: =IF($D127>0,VLOOKUP($D127,Μητρώο!$A:$F,5,FALSE),"") ->  | G127: =IF(COUNTIF(Rankings!$B:$B,RIGHT($C127,2)&"-"&$D127)>0,IF($D127>0,VLOOKUP(RIGHT($C127,2)&"-"&$D127,Rankings!$B:$G,6,FALSE),""),0) -> 0 | H127: =IF($D127>0,VLOOKUP($D127,Μητρώο!$A:$F,4,FALSE),"") -> 
A128: 126 | B128: 125 | E128: =IF($D128>0,VLOOKUP($D128,Μητρώο!$A:$F,3,FALSE),"") ->  | F128: =IF($D128>0,VLOOKUP($D128,Μητρώο!$A:$F,5,FALSE),"") ->  | G128: =IF(COUNTIF(Rankings!$B:$B,RIGHT($C128,2)&"-"&$D128)>0,IF($D128>0,VLOOKUP(RIGHT($C128,2)&"-"&$D128,Rankings!$B:$G,6,FALSE),""),0) -> 0 | H128: =IF($D128>0,VLOOKUP($D128,Μητρώο!$A:$F,4,FALSE),"") -> 
A129: 127 | B129: 126 | E129: =IF($D129>0,VLOOKUP($D129,Μητρώο!$A:$F,3,FALSE),"") ->  | F129: =IF($D129>0,VLOOKUP($D129,Μητρώο!$A:$F,5,FALSE),"") ->  | G129: =IF(COUNTIF(Rankings!$B:$B,RIGHT($C129,2)&"-"&$D129)>0,IF($D129>0,VLOOKUP(RIGHT($C129,2)&"-"&$D129,Rankings!$B:$G,6,FALSE),""),0) -> 0 | H129: =IF($D129>0,VLOOKUP($D129,Μητρώο!$A:$F,4,FALSE),"") -> 
A130: 128 | B130: 127 | E130: =IF($D130>0,VLOOKUP($D130,Μητρώο!$A:$F,3,FALSE),"") ->  | F130: =IF($D130>0,VLOOKUP($D130,Μητρώο!$A:$F,5,FALSE),"") ->  | G130: =IF(COUNTIF(Rankings!$B:$B,RIGHT($C130,2)&"-"&$D130)>0,IF($D130>0,VLOOKUP(RIGHT($C130,2)&"-"&$D130,Rankings!$B:$G,6,FALSE),""),0) -> 0 | H130: =IF($D130>0,VLOOKUP($D130,Μητρώο!$A:$F,4,FALSE),"") -> 
A131: 129 | B131: 128 | E131: =IF($D131>0,VLOOKUP($D131,Μητρώο!$A:$F,3,FALSE),"") ->  | F131: =IF($D131>0,VLOOKUP($D131,Μητρώο!$A:$F,5,FALSE),"") ->  | G131: =IF(COUNTIF(Rankings!$B:$B,RIGHT($C131,2)&"-"&$D131)>0,IF($D131>0,VLOOKUP(RIGHT($C131,2)&"-"&$D131,Rankings!$B:$G,6,FALSE),""),0) -> 0 | H131: =IF($D131>0,VLOOKUP($D131,Μητρώο!$A:$F,4,FALSE),"") -> 
A132: 130 | B132: =IF(C132=C131,B131+1,1) -> 129 | E132: =IF($D132>0,VLOOKUP($D132,Μητρώο!$A:$F,3,FALSE),"") ->  | F132: =IF($D132>0,VLOOKUP($D132,Μητρώο!$A:$F,5,FALSE),"") ->  | G132: =IF(COUNTIF(Rankings!$B:$B,RIGHT($C132,2)&"-"&$D132)>0,IF($D132>0,VLOOKUP(RIGHT($C132,2)&"-"&$D132,Rankings!$B:$G,6,FALSE),""),0) -> 0 | H132: =IF($D132>0,VLOOKUP($D132,Μητρώο!$A:$F,4,FALSE),"") -> 
A133: 131 | B133: 130 | E133: =IF($D133>0,VLOOKUP($D133,Μητρώο!$A:$F,3,FALSE),"") ->  | F133: =IF($D133>0,VLOOKUP($D133,Μητρώο!$A:$F,5,FALSE),"") ->  | G133: =IF(COUNTIF(Rankings!$B:$B,RIGHT($C133,2)&"-"&$D133)>0,IF($D133>0,VLOOKUP(RIGHT($C133,2)&"-"&$D133,Rankings!$B:$G,6,FALSE),""),0) -> 0 | H133: =IF($D133>0,VLOOKUP($D133,Μητρώο!$A:$F,4,FALSE),"") -> 
A134: 132 | B134: 131 | E134: =IF($D134>0,VLOOKUP($D134,Μητρώο!$A:$F,3,FALSE),"") ->  | F134: =IF($D134>0,VLOOKUP($D134,Μητρώο!$A:$F,5,FALSE),"") ->  | G134: =IF(COUNTIF(Rankings!$B:$B,RIGHT($C134,2)&"-"&$D134)>0,IF($D134>0,VLOOKUP(RIGHT($C134,2)&"-"&$D134,Rankings!$B:$G,6,FALSE),""),0) -> 0 | H134: =IF($D134>0,VLOOKUP($D134,Μητρώο!$A:$F,4,FALSE),"") -> 
A135: 133 | B135: 132 | E135: =IF($D135>0,VLOOKUP($D135,Μητρώο!$A:$F,3,FALSE),"") ->  | F135: =IF($D135>0,VLOOKUP($D135,Μητρώο!$A:$F,5,FALSE),"") ->  | G135: =IF(COUNTIF(Rankings!$B:$B,RIGHT($C135,2)&"-"&$D135)>0,IF($D135>0,VLOOKUP(RIGHT($C135,2)&"-"&$D135,Rankings!$B:$G,6,FALSE),""),0) -> 0 | H135: =IF($D135>0,VLOOKUP($D135,Μητρώο!$A:$F,4,FALSE),"") -> 
A136: 134 | B136: 133 | E136: =IF($D136>0,VLOOKUP($D136,Μητρώο!$A:$F,3,FALSE),"") ->  | F136: =IF($D136>0,VLOOKUP($D136,Μητρώο!$A:$F,5,FALSE),"") ->  | G136: =IF(COUNTIF(Rankings!$B:$B,RIGHT($C136,2)&"-"&$D136)>0,IF($D136>0,VLOOKUP(RIGHT($C136,2)&"-"&$D136,Rankings!$B:$G,6,FALSE),""),0) -> 0 | H136: =IF($D136>0,VLOOKUP($D136,Μητρώο!$A:$F,4,FALSE),"") -> 
A137: 135 | B137: 134 | E137: =IF($D137>0,VLOOKUP($D137,Μητρώο!$A:$F,3,FALSE),"") ->  | F137: =IF($D137>0,VLOOKUP($D137,Μητρώο!$A:$F,5,FALSE),"") ->  | G137: =IF(COUNTIF(Rankings!$B:$B,RIGHT($C137,2)&"-"&$D137)>0,IF($D137>0,VLOOKUP(RIGHT($C137,2)&"-"&$D137,Rankings!$B:$G,6,FALSE),""),0) -> 0 | H137: =IF($D137>0,VLOOKUP($D137,Μητρώο!$A:$F,4,FALSE),"") -> 
A138: 136 | B138: 135 | E138: =IF($D138>0,VLOOKUP($D138,Μητρώο!$A:$F,3,FALSE),"") ->  | F138: =IF($D138>0,VLOOKUP($D138,Μητρώο!$A:$F,5,FALSE),"") ->  | G138: =IF(COUNTIF(Rankings!$B:$B,RIGHT($C138,2)&"-"&$D138)>0,IF($D138>0,VLOOKUP(RIGHT($C138,2)&"-"&$D138,Rankings!$B:$G,6,FALSE),""),0) -> 0 | H138: =IF($D138>0,VLOOKUP($D138,Μητρώο!$A:$F,4,FALSE),"") -> 
A139: 137 | B139: 136 | E139: =IF($D139>0,VLOOKUP($D139,Μητρώο!$A:$F,3,FALSE),"") ->  | F139: =IF($D139>0,VLOOKUP($D139,Μητρώο!$A:$F,5,FALSE),"") ->  | G139: =IF(COUNTIF(Rankings!$B:$B,RIGHT($C139,2)&"-"&$D139)>0,IF($D139>0,VLOOKUP(RIGHT($C139,2)&"-"&$D139,Rankings!$B:$G,6,FALSE),""),0) -> 0 | H139: =IF($D139>0,VLOOKUP($D139,Μητρώο!$A:$F,4,FALSE),"") -> 
A140: 138 | B140: 137 | E140: =IF($D140>0,VLOOKUP($D140,Μητρώο!$A:$F,3,FALSE),"") ->  | F140: =IF($D140>0,VLOOKUP($D140,Μητρώο!$A:$F,5,FALSE),"") ->  | G140: =IF(COUNTIF(Rankings!$B:$B,RIGHT($C140,2)&"-"&$D140)>0,IF($D140>0,VLOOKUP(RIGHT($C140,2)&"-"&$D140,Rankings!$B:$G,6,FALSE),""),0) -> 0 | H140: =IF($D140>0,VLOOKUP($D140,Μητρώο!$A:$F,4,FALSE),"") -> 
A141: 139 | B141: 138 | E141: =IF($D141>0,VLOOKUP($D141,Μητρώο!$A:$F,3,FALSE),"") ->  | F141: =IF($D141>0,VLOOKUP($D141,Μητρώο!$A:$F,5,FALSE),"") ->  | G141: =IF(COUNTIF(Rankings!$B:$B,RIGHT($C141,2)&"-"&$D141)>0,IF($D141>0,VLOOKUP(RIGHT($C141,2)&"-"&$D141,Rankings!$B:$G,6,FALSE),""),0) -> 0 | H141: =IF($D141>0,VLOOKUP($D141,Μητρώο!$A:$F,4,FALSE),"") -> 
A142: 140 | B142: 139 | E142: =IF($D142>0,VLOOKUP($D142,Μητρώο!$A:$F,3,FALSE),"") ->  | F142: =IF($D142>0,VLOOKUP($D142,Μητρώο!$A:$F,5,FALSE),"") ->  | G142: =IF(COUNTIF(Rankings!$B:$B,RIGHT($C142,2)&"-"&$D142)>0,IF($D142>0,VLOOKUP(RIGHT($C142,2)&"-"&$D142,Rankings!$B:$G,6,FALSE),""),0) -> 0 | H142: =IF($D142>0,VLOOKUP($D142,Μητρώο!$A:$F,4,FALSE),"") -> 
A143: 141 | B143: 140 | E143: =IF($D143>0,VLOOKUP($D143,Μητρώο!$A:$F,3,FALSE),"") ->  | F143: =IF($D143>0,VLOOKUP($D143,Μητρώο!$A:$F,5,FALSE),"") ->  | G143: =IF(COUNTIF(Rankings!$B:$B,RIGHT($C143,2)&"-"&$D143)>0,IF($D143>0,VLOOKUP(RIGHT($C143,2)&"-"&$D143,Rankings!$B:$G,6,FALSE),""),0) -> 0 | H143: =IF($D143>0,VLOOKUP($D143,Μητρώο!$A:$F,4,FALSE),"") -> 
A144: 142 | B144: 141 | E144: =IF($D144>0,VLOOKUP($D144,Μητρώο!$A:$F,3,FALSE),"") ->  | F144: =IF($D144>0,VLOOKUP($D144,Μητρώο!$A:$F,5,FALSE),"") ->  | G144: =IF(COUNTIF(Rankings!$B:$B,RIGHT($C144,2)&"-"&$D144)>0,IF($D144>0,VLOOKUP(RIGHT($C144,2)&"-"&$D144,Rankings!$B:$G,6,FALSE),""),0) -> 0 | H144: =IF($D144>0,VLOOKUP($D144,Μητρώο!$A:$F,4,FALSE),"") -> 
A145: 143 | B145: 142 | E145: =IF($D145>0,VLOOKUP($D145,Μητρώο!$A:$F,3,FALSE),"") ->  | F145: =IF($D145>0,VLOOKUP($D145,Μητρώο!$A:$F,5,FALSE),"") ->  | G145: =IF(COUNTIF(Rankings!$B:$B,RIGHT($C145,2)&"-"&$D145)>0,IF($D145>0,VLOOKUP(RIGHT($C145,2)&"-"&$D145,Rankings!$B:$G,6,FALSE),""),0) -> 0 | H145: =IF($D145>0,VLOOKUP($D145,Μητρώο!$A:$F,4,FALSE),"") -> 
A146: 144 | B146: 143 | E146: =IF($D146>0,VLOOKUP($D146,Μητρώο!$A:$F,3,FALSE),"") ->  | F146: =IF($D146>0,VLOOKUP($D146,Μητρώο!$A:$F,5,FALSE),"") ->  | G146: =IF(COUNTIF(Rankings!$B:$B,RIGHT($C146,2)&"-"&$D146)>0,IF($D146>0,VLOOKUP(RIGHT($C146,2)&"-"&$D146,Rankings!$B:$G,6,FALSE),""),0) -> 0 | H146: =IF($D146>0,VLOOKUP($D146,Μητρώο!$A:$F,4,FALSE),"") -> 
A147: 145 | B147: 144 | E147: =IF($D147>0,VLOOKUP($D147,Μητρώο!$A:$F,3,FALSE),"") ->  | F147: =IF($D147>0,VLOOKUP($D147,Μητρώο!$A:$F,5,FALSE),"") ->  | G147: =IF(COUNTIF(Rankings!$B:$B,RIGHT($C147,2)&"-"&$D147)>0,IF($D147>0,VLOOKUP(RIGHT($C147,2)&"-"&$D147,Rankings!$B:$G,6,FALSE),""),0) -> 0 | H147: =IF($D147>0,VLOOKUP($D147,Μητρώο!$A:$F,4,FALSE),"") -> 
A148: 146 | B148: 145 | E148: =IF($D148>0,VLOOKUP($D148,Μητρώο!$A:$F,3,FALSE),"") ->  | F148: =IF($D148>0,VLOOKUP($D148,Μητρώο!$A:$F,5,FALSE),"") ->  | G148: =IF(COUNTIF(Rankings!$B:$B,RIGHT($C148,2)&"-"&$D148)>0,IF($D148>0,VLOOKUP(RIGHT($C148,2)&"-"&$D148,Rankings!$B:$G,6,FALSE),""),0) -> 0 | H148: =IF($D148>0,VLOOKUP($D148,Μητρώο!$A:$F,4,FALSE),"") -> 
A149: 147 | B149: 146 | E149: =IF($D149>0,VLOOKUP($D149,Μητρώο!$A:$F,3,FALSE),"") ->  | F149: =IF($D149>0,VLOOKUP($D149,Μητρώο!$A:$F,5,FALSE),"") ->  | G149: =IF(COUNTIF(Rankings!$B:$B,RIGHT($C149,2)&"-"&$D149)>0,IF($D149>0,VLOOKUP(RIGHT($C149,2)&"-"&$D149,Rankings!$B:$G,6,FALSE),""),0) -> 0 | H149: =IF($D149>0,VLOOKUP($D149,Μητρώο!$A:$F,4,FALSE),"") -> 
A150: 148 | B150: 147 | E150: =IF($D150>0,VLOOKUP($D150,Μητρώο!$A:$F,3,FALSE),"") ->  | F150: =IF($D150>0,VLOOKUP($D150,Μητρώο!$A:$F,5,FALSE),"") ->  | G150: =IF(COUNTIF(Rankings!$B:$B,RIGHT($C150,2)&"-"&$D150)>0,IF($D150>0,VLOOKUP(RIGHT($C150,2)&"-"&$D150,Rankings!$B:$G,6,FALSE),""),0) -> 0 | H150: =IF($D150>0,VLOOKUP($D150,Μητρώο!$A:$F,4,FALSE),"") -> 
A151: 149 | B151: 148 | E151: =IF($D151>0,VLOOKUP($D151,Μητρώο!$A:$F,3,FALSE),"") ->  | F151: =IF($D151>0,VLOOKUP($D151,Μητρώο!$A:$F,5,FALSE),"") ->  | G151: =IF(COUNTIF(Rankings!$B:$B,RIGHT($C151,2)&"-"&$D151)>0,IF($D151>0,VLOOKUP(RIGHT($C151,2)&"-"&$D151,Rankings!$B:$G,6,FALSE),""),0) -> 0 | H151: =IF($D151>0,VLOOKUP($D151,Μητρώο!$A:$F,4,FALSE),"") -> 
A152: 150 | B152: 149 | E152: =IF($D152>0,VLOOKUP($D152,Μητρώο!$A:$F,3,FALSE),"") ->  | F152: =IF($D152>0,VLOOKUP($D152,Μητρώο!$A:$F,5,FALSE),"") ->  | G152: =IF(COUNTIF(Rankings!$B:$B,RIGHT($C152,2)&"-"&$D152)>0,IF($D152>0,VLOOKUP(RIGHT($C152,2)&"-"&$D152,Rankings!$B:$G,6,FALSE),""),0) -> 0 | H152: =IF($D152>0,VLOOKUP($D152,Μητρώο!$A:$F,4,FALSE),"") -> 
A153: 151 | B153: 150 | E153: =IF($D153>0,VLOOKUP($D153,Μητρώο!$A:$F,3,FALSE),"") ->  | F153: =IF($D153>0,VLOOKUP($D153,Μητρώο!$A:$F,5,FALSE),"") ->  | G153: =IF(COUNTIF(Rankings!$B:$B,RIGHT($C153,2)&"-"&$D153)>0,IF($D153>0,VLOOKUP(RIGHT($C153,2)&"-"&$D153,Rankings!$B:$G,6,FALSE),""),0) -> 0 | H153: =IF($D153>0,VLOOKUP($D153,Μητρώο!$A:$F,4,FALSE),"") -> 
A154: 152 | B154: 151 | E154: =IF($D154>0,VLOOKUP($D154,Μητρώο!$A:$F,3,FALSE),"") ->  | F154: =IF($D154>0,VLOOKUP($D154,Μητρώο!$A:$F,5,FALSE),"") ->  | G154: =IF(COUNTIF(Rankings!$B:$B,RIGHT($C154,2)&"-"&$D154)>0,IF($D154>0,VLOOKUP(RIGHT($C154,2)&"-"&$D154,Rankings!$B:$G,6,FALSE),""),0) -> 0 | H154: =IF($D154>0,VLOOKUP($D154,Μητρώο!$A:$F,4,FALSE),"") -> 
A155: 153 | B155: 152 | E155: =IF($D155>0,VLOOKUP($D155,Μητρώο!$A:$F,3,FALSE),"") ->  | F155: =IF($D155>0,VLOOKUP($D155,Μητρώο!$A:$F,5,FALSE),"") ->  | G155: =IF(COUNTIF(Rankings!$B:$B,RIGHT($C155,2)&"-"&$D155)>0,IF($D155>0,VLOOKUP(RIGHT($C155,2)&"-"&$D155,Rankings!$B:$G,6,FALSE),""),0) -> 0 | H155: =IF($D155>0,VLOOKUP($D155,Μητρώο!$A:$F,4,FALSE),"") -> 
A156: 154 | B156: 153 | E156: =IF($D156>0,VLOOKUP($D156,Μητρώο!$A:$F,3,FALSE),"") ->  | F156: =IF($D156>0,VLOOKUP($D156,Μητρώο!$A:$F,5,FALSE),"") ->  | G156: =IF(COUNTIF(Rankings!$B:$B,RIGHT($C156,2)&"-"&$D156)>0,IF($D156>0,VLOOKUP(RIGHT($C156,2)&"-"&$D156,Rankings!$B:$G,6,FALSE),""),0) -> 0 | H156: =IF($D156>0,VLOOKUP($D156,Μητρώο!$A:$F,4,FALSE),"") -> 
A157: 155 | B157: 154 | E157: =IF($D157>0,VLOOKUP($D157,Μητρώο!$A:$F,3,FALSE),"") ->  | F157: =IF($D157>0,VLOOKUP($D157,Μητρώο!$A:$F,5,FALSE),"") ->  | G157: =IF(COUNTIF(Rankings!$B:$B,RIGHT($C157,2)&"-"&$D157)>0,IF($D157>0,VLOOKUP(RIGHT($C157,2)&"-"&$D157,Rankings!$B:$G,6,FALSE),""),0) -> 0 | H157: =IF($D157>0,VLOOKUP($D157,Μητρώο!$A:$F,4,FALSE),"") -> 
A158: 156 | B158: 155 | E158: =IF($D158>0,VLOOKUP($D158,Μητρώο!$A:$F,3,FALSE),"") ->  | F158: =IF($D158>0,VLOOKUP($D158,Μητρώο!$A:$F,5,FALSE),"") ->  | G158: =IF(COUNTIF(Rankings!$B:$B,RIGHT($C158,2)&"-"&$D158)>0,IF($D158>0,VLOOKUP(RIGHT($C158,2)&"-"&$D158,Rankings!$B:$G,6,FALSE),""),0) -> 0 | H158: =IF($D158>0,VLOOKUP($D158,Μητρώο!$A:$F,4,FALSE),"") -> 
A159: 157 | B159: 156 | E159: =IF($D159>0,VLOOKUP($D159,Μητρώο!$A:$F,3,FALSE),"") ->  | F159: =IF($D159>0,VLOOKUP($D159,Μητρώο!$A:$F,5,FALSE),"") ->  | G159: =IF(COUNTIF(Rankings!$B:$B,RIGHT($C159,2)&"-"&$D159)>0,IF($D159>0,VLOOKUP(RIGHT($C159,2)&"-"&$D159,Rankings!$B:$G,6,FALSE),""),0) -> 0 | H159: =IF($D159>0,VLOOKUP($D159,Μητρώο!$A:$F,4,FALSE),"") -> 
A160: 158 | B160: 157 | E160: =IF($D160>0,VLOOKUP($D160,Μητρώο!$A:$F,3,FALSE),"") ->  | F160: =IF($D160>0,VLOOKUP($D160,Μητρώο!$A:$F,5,FALSE),"") ->  | G160: =IF(COUNTIF(Rankings!$B:$B,RIGHT($C160,2)&"-"&$D160)>0,IF($D160>0,VLOOKUP(RIGHT($C160,2)&"-"&$D160,Rankings!$B:$G,6,FALSE),""),0) -> 0 | H160: =IF($D160>0,VLOOKUP($D160,Μητρώο!$A:$F,4,FALSE),"") -> 
A161: 159 | B161: 158 | E161: =IF($D161>0,VLOOKUP($D161,Μητρώο!$A:$F,3,FALSE),"") ->  | F161: =IF($D161>0,VLOOKUP($D161,Μητρώο!$A:$F,5,FALSE),"") ->  | G161: =IF(COUNTIF(Rankings!$B:$B,RIGHT($C161,2)&"-"&$D161)>0,IF($D161>0,VLOOKUP(RIGHT($C161,2)&"-"&$D161,Rankings!$B:$G,6,FALSE),""),0) -> 0 | H161: =IF($D161>0,VLOOKUP($D161,Μητρώο!$A:$F,4,FALSE),"") -> 
A162: 160 | B162: 159 | E162: =IF($D162>0,VLOOKUP($D162,Μητρώο!$A:$F,3,FALSE),"") ->  | F162: =IF($D162>0,VLOOKUP($D162,Μητρώο!$A:$F,5,FALSE),"") ->  | G162: =IF(COUNTIF(Rankings!$B:$B,RIGHT($C162,2)&"-"&$D162)>0,IF($D162>0,VLOOKUP(RIGHT($C162,2)&"-"&$D162,Rankings!$B:$G,6,FALSE),""),0) -> 0 | H162: =IF($D162>0,VLOOKUP($D162,Μητρώο!$A:$F,4,FALSE),"") -> 
A163: 161 | B163: 160 | E163: =IF($D163>0,VLOOKUP($D163,Μητρώο!$A:$F,3,FALSE),"") ->  | F163: =IF($D163>0,VLOOKUP($D163,Μητρώο!$A:$F,5,FALSE),"") ->  | G163: =IF(COUNTIF(Rankings!$B:$B,RIGHT($C163,2)&"-"&$D163)>0,IF($D163>0,VLOOKUP(RIGHT($C163,2)&"-"&$D163,Rankings!$B:$G,6,FALSE),""),0) -> 0 | H163: =IF($D163>0,VLOOKUP($D163,Μητρώο!$A:$F,4,FALSE),"") -> 
A164: 162 | B164: 161 | E164: =IF($D164>0,VLOOKUP($D164,Μητρώο!$A:$F,3,FALSE),"") ->  | F164: =IF($D164>0,VLOOKUP($D164,Μητρώο!$A:$F,5,FALSE),"") ->  | G164: =IF(COUNTIF(Rankings!$B:$B,RIGHT($C164,2)&"-"&$D164)>0,IF($D164>0,VLOOKUP(RIGHT($C164,2)&"-"&$D164,Rankings!$B:$G,6,FALSE),""),0) -> 0 | H164: =IF($D164>0,VLOOKUP($D164,Μητρώο!$A:$F,4,FALSE),"") -> 
A165: 163 | B165: 162 | E165: =IF($D165>0,VLOOKUP($D165,Μητρώο!$A:$F,3,FALSE),"") ->  | F165: =IF($D165>0,VLOOKUP($D165,Μητρώο!$A:$F,5,FALSE),"") ->  | G165: =IF(COUNTIF(Rankings!$B:$B,RIGHT($C165,2)&"-"&$D165)>0,IF($D165>0,VLOOKUP(RIGHT($C165,2)&"-"&$D165,Rankings!$B:$G,6,FALSE),""),0) -> 0 | H165: =IF($D165>0,VLOOKUP($D165,Μητρώο!$A:$F,4,FALSE),"") -> 
A166: 164 | B166: 163 | E166: =IF($D166>0,VLOOKUP($D166,Μητρώο!$A:$F,3,FALSE),"") ->  | F166: =IF($D166>0,VLOOKUP($D166,Μητρώο!$A:$F,5,FALSE),"") ->  | G166: =IF(COUNTIF(Rankings!$B:$B,RIGHT($C166,2)&"-"&$D166)>0,IF($D166>0,VLOOKUP(RIGHT($C166,2)&"-"&$D166,Rankings!$B:$G,6,FALSE),""),0) -> 0 | H166: =IF($D166>0,VLOOKUP($D166,Μητρώο!$A:$F,4,FALSE),"") -> 
A167: 165 | B167: 164 | E167: =IF($D167>0,VLOOKUP($D167,Μητρώο!$A:$F,3,FALSE),"") ->  | F167: =IF($D167>0,VLOOKUP($D167,Μητρώο!$A:$F,5,FALSE),"") ->  | G167: =IF(COUNTIF(Rankings!$B:$B,RIGHT($C167,2)&"-"&$D167)>0,IF($D167>0,VLOOKUP(RIGHT($C167,2)&"-"&$D167,Rankings!$B:$G,6,FALSE),""),0) -> 0 | H167: =IF($D167>0,VLOOKUP($D167,Μητρώο!$A:$F,4,FALSE),"") -> 
A168: 166 | B168: 165 | E168: =IF($D168>0,VLOOKUP($D168,Μητρώο!$A:$F,3,FALSE),"") ->  | F168: =IF($D168>0,VLOOKUP($D168,Μητρώο!$A:$F,5,FALSE),"") ->  | G168: =IF(COUNTIF(Rankings!$B:$B,RIGHT($C168,2)&"-"&$D168)>0,IF($D168>0,VLOOKUP(RIGHT($C168,2)&"-"&$D168,Rankings!$B:$G,6,FALSE),""),0) -> 0 | H168: =IF($D168>0,VLOOKUP($D168,Μητρώο!$A:$F,4,FALSE),"") -> 
A169: 167 | B169: 166 | E169: =IF($D169>0,VLOOKUP($D169,Μητρώο!$A:$F,3,FALSE),"") ->  | F169: =IF($D169>0,VLOOKUP($D169,Μητρώο!$A:$F,5,FALSE),"") ->  | G169: =IF(COUNTIF(Rankings!$B:$B,RIGHT($C169,2)&"-"&$D169)>0,IF($D169>0,VLOOKUP(RIGHT($C169,2)&"-"&$D169,Rankings!$B:$G,6,FALSE),""),0) -> 0 | H169: =IF($D169>0,VLOOKUP($D169,Μητρώο!$A:$F,4,FALSE),"") -> 
A170: 168 | B170: 167 | E170: =IF($D170>0,VLOOKUP($D170,Μητρώο!$A:$F,3,FALSE),"") ->  | F170: =IF($D170>0,VLOOKUP($D170,Μητρώο!$A:$F,5,FALSE),"") ->  | G170: =IF(COUNTIF(Rankings!$B:$B,RIGHT($C170,2)&"-"&$D170)>0,IF($D170>0,VLOOKUP(RIGHT($C170,2)&"-"&$D170,Rankings!$B:$G,6,FALSE),""),0) -> 0 | H170: =IF($D170>0,VLOOKUP($D170,Μητρώο!$A:$F,4,FALSE),"") -> 
A171: 169 | B171: 168 | E171: =IF($D171>0,VLOOKUP($D171,Μητρώο!$A:$F,3,FALSE),"") ->  | F171: =IF($D171>0,VLOOKUP($D171,Μητρώο!$A:$F,5,FALSE),"") ->  | G171: =IF(COUNTIF(Rankings!$B:$B,RIGHT($C171,2)&"-"&$D171)>0,IF($D171>0,VLOOKUP(RIGHT($C171,2)&"-"&$D171,Rankings!$B:$G,6,FALSE),""),0) -> 0 | H171: =IF($D171>0,VLOOKUP($D171,Μητρώο!$A:$F,4,FALSE),"") -> 
A172: 170 | B172: 169 | E172: =IF($D172>0,VLOOKUP($D172,Μητρώο!$A:$F,3,FALSE),"") ->  | F172: =IF($D172>0,VLOOKUP($D172,Μητρώο!$A:$F,5,FALSE),"") ->  | G172: =IF(COUNTIF(Rankings!$B:$B,RIGHT($C172,2)&"-"&$D172)>0,IF($D172>0,VLOOKUP(RIGHT($C172,2)&"-"&$D172,Rankings!$B:$G,6,FALSE),""),0) -> 0 | H172: =IF($D172>0,VLOOKUP($D172,Μητρώο!$A:$F,4,FALSE),"") -> 
A173: 171 | B173: 170 | E173: =IF($D173>0,VLOOKUP($D173,Μητρώο!$A:$F,3,FALSE),"") ->  | F173: =IF($D173>0,VLOOKUP($D173,Μητρώο!$A:$F,5,FALSE),"") ->  | G173: =IF(COUNTIF(Rankings!$B:$B,RIGHT($C173,2)&"-"&$D173)>0,IF($D173>0,VLOOKUP(RIGHT($C173,2)&"-"&$D173,Rankings!$B:$G,6,FALSE),""),0) -> 0 | H173: =IF($D173>0,VLOOKUP($D173,Μητρώο!$A:$F,4,FALSE),"") -> 
A174: 172 | B174: 171 | E174: =IF($D174>0,VLOOKUP($D174,Μητρώο!$A:$F,3,FALSE),"") ->  | F174: =IF($D174>0,VLOOKUP($D174,Μητρώο!$A:$F,5,FALSE),"") ->  | G174: =IF(COUNTIF(Rankings!$B:$B,RIGHT($C174,2)&"-"&$D174)>0,IF($D174>0,VLOOKUP(RIGHT($C174,2)&"-"&$D174,Rankings!$B:$G,6,FALSE),""),0) -> 0 | H174: =IF($D174>0,VLOOKUP($D174,Μητρώο!$A:$F,4,FALSE),"") -> 
A175: 173 | B175: 172 | E175: =IF($D175>0,VLOOKUP($D175,Μητρώο!$A:$F,3,FALSE),"") ->  | F175: =IF($D175>0,VLOOKUP($D175,Μητρώο!$A:$F,5,FALSE),"") ->  | G175: =IF(COUNTIF(Rankings!$B:$B,RIGHT($C175,2)&"-"&$D175)>0,IF($D175>0,VLOOKUP(RIGHT($C175,2)&"-"&$D175,Rankings!$B:$G,6,FALSE),""),0) -> 0 | H175: =IF($D175>0,VLOOKUP($D175,Μητρώο!$A:$F,4,FALSE),"") -> 
A176: 174 | B176: 173 | E176: =IF($D176>0,VLOOKUP($D176,Μητρώο!$A:$F,3,FALSE),"") ->  | F176: =IF($D176>0,VLOOKUP($D176,Μητρώο!$A:$F,5,FALSE),"") ->  | G176: =IF(COUNTIF(Rankings!$B:$B,RIGHT($C176,2)&"-"&$D176)>0,IF($D176>0,VLOOKUP(RIGHT($C176,2)&"-"&$D176,Rankings!$B:$G,6,FALSE),""),0) -> 0 | H176: =IF($D176>0,VLOOKUP($D176,Μητρώο!$A:$F,4,FALSE),"") -> 
A177: 175 | B177: 174 | E177: =IF($D177>0,VLOOKUP($D177,Μητρώο!$A:$F,3,FALSE),"") ->  | F177: =IF($D177>0,VLOOKUP($D177,Μητρώο!$A:$F,5,FALSE),"") ->  | G177: =IF(COUNTIF(Rankings!$B:$B,RIGHT($C177,2)&"-"&$D177)>0,IF($D177>0,VLOOKUP(RIGHT($C177,2)&"-"&$D177,Rankings!$B:$G,6,FALSE),""),0) -> 0 | H177: =IF($D177>0,VLOOKUP($D177,Μητρώο!$A:$F,4,FALSE),"") -> 
A178: 176 | B178: 175 | E178: =IF($D178>0,VLOOKUP($D178,Μητρώο!$A:$F,3,FALSE),"") ->  | F178: =IF($D178>0,VLOOKUP($D178,Μητρώο!$A:$F,5,FALSE),"") ->  | G178: =IF(COUNTIF(Rankings!$B:$B,RIGHT($C178,2)&"-"&$D178)>0,IF($D178>0,VLOOKUP(RIGHT($C178,2)&"-"&$D178,Rankings!$B:$G,6,FALSE),""),0) -> 0 | H178: =IF($D178>0,VLOOKUP($D178,Μητρώο!$A:$F,4,FALSE),"") -> 
A179: 177 | B179: 176 | E179: =IF($D179>0,VLOOKUP($D179,Μητρώο!$A:$F,3,FALSE),"") ->  | F179: =IF($D179>0,VLOOKUP($D179,Μητρώο!$A:$F,5,FALSE),"") ->  | G179: =IF(COUNTIF(Rankings!$B:$B,RIGHT($C179,2)&"-"&$D179)>0,IF($D179>0,VLOOKUP(RIGHT($C179,2)&"-"&$D179,Rankings!$B:$G,6,FALSE),""),0) -> 0 | H179: =IF($D179>0,VLOOKUP($D179,Μητρώο!$A:$F,4,FALSE),"") -> 
A180: 178 | B180: 177 | E180: =IF($D180>0,VLOOKUP($D180,Μητρώο!$A:$F,3,FALSE),"") ->  | F180: =IF($D180>0,VLOOKUP($D180,Μητρώο!$A:$F,5,FALSE),"") ->  | G180: =IF(COUNTIF(Rankings!$B:$B,RIGHT($C180,2)&"-"&$D180)>0,IF($D180>0,VLOOKUP(RIGHT($C180,2)&"-"&$D180,Rankings!$B:$G,6,FALSE),""),0) -> 0 | H180: =IF($D180>0,VLOOKUP($D180,Μητρώο!$A:$F,4,FALSE),"") -> 
A181: 179 | B181: 178 | E181: =IF($D181>0,VLOOKUP($D181,Μητρώο!$A:$F,3,FALSE),"") ->  | F181: =IF($D181>0,VLOOKUP($D181,Μητρώο!$A:$F,5,FALSE),"") ->  | G181: =IF(COUNTIF(Rankings!$B:$B,RIGHT($C181,2)&"-"&$D181)>0,IF($D181>0,VLOOKUP(RIGHT($C181,2)&"-"&$D181,Rankings!$B:$G,6,FALSE),""),0) -> 0 | H181: =IF($D181>0,VLOOKUP($D181,Μητρώο!$A:$F,4,FALSE),"") -> 
A182: 180 | B182: 179 | E182: =IF($D182>0,VLOOKUP($D182,Μητρώο!$A:$F,3,FALSE),"") ->  | F182: =IF($D182>0,VLOOKUP($D182,Μητρώο!$A:$F,5,FALSE),"") ->  | G182: =IF(COUNTIF(Rankings!$B:$B,RIGHT($C182,2)&"-"&$D182)>0,IF($D182>0,VLOOKUP(RIGHT($C182,2)&"-"&$D182,Rankings!$B:$G,6,FALSE),""),0) -> 0 | H182: =IF($D182>0,VLOOKUP($D182,Μητρώο!$A:$F,4,FALSE),"") -> 
A183: 181 | B183: 180 | E183: =IF($D183>0,VLOOKUP($D183,Μητρώο!$A:$F,3,FALSE),"") ->  | F183: =IF($D183>0,VLOOKUP($D183,Μητρώο!$A:$F,5,FALSE),"") ->  | G183: =IF(COUNTIF(Rankings!$B:$B,RIGHT($C183,2)&"-"&$D183)>0,IF($D183>0,VLOOKUP(RIGHT($C183,2)&"-"&$D183,Rankings!$B:$G,6,FALSE),""),0) -> 0 | H183: =IF($D183>0,VLOOKUP($D183,Μητρώο!$A:$F,4,FALSE),"") -> 
A184: 182 | B184: 181 | E184: =IF($D184>0,VLOOKUP($D184,Μητρώο!$A:$F,3,FALSE),"") ->  | F184: =IF($D184>0,VLOOKUP($D184,Μητρώο!$A:$F,5,FALSE),"") ->  | G184: =IF(COUNTIF(Rankings!$B:$B,RIGHT($C184,2)&"-"&$D184)>0,IF($D184>0,VLOOKUP(RIGHT($C184,2)&"-"&$D184,Rankings!$B:$G,6,FALSE),""),0) -> 0 | H184: =IF($D184>0,VLOOKUP($D184,Μητρώο!$A:$F,4,FALSE),"") -> 
A185: 183 | B185: 182 | E185: =IF($D185>0,VLOOKUP($D185,Μητρώο!$A:$F,3,FALSE),"") ->  | F185: =IF($D185>0,VLOOKUP($D185,Μητρώο!$A:$F,5,FALSE),"") ->  | G185: =IF(COUNTIF(Rankings!$B:$B,RIGHT($C185,2)&"-"&$D185)>0,IF($D185>0,VLOOKUP(RIGHT($C185,2)&"-"&$D185,Rankings!$B:$G,6,FALSE),""),0) -> 0 | H185: =IF($D185>0,VLOOKUP($D185,Μητρώο!$A:$F,4,FALSE),"") -> 
A186: 184 | B186: 183 | E186: =IF($D186>0,VLOOKUP($D186,Μητρώο!$A:$F,3,FALSE),"") ->  | F186: =IF($D186>0,VLOOKUP($D186,Μητρώο!$A:$F,5,FALSE),"") ->  | G186: =IF(COUNTIF(Rankings!$B:$B,RIGHT($C186,2)&"-"&$D186)>0,IF($D186>0,VLOOKUP(RIGHT($C186,2)&"-"&$D186,Rankings!$B:$G,6,FALSE),""),0) -> 0 | H186: =IF($D186>0,VLOOKUP($D186,Μητρώο!$A:$F,4,FALSE),"") -> 
A187: 185 | B187: 184 | E187: =IF($D187>0,VLOOKUP($D187,Μητρώο!$A:$F,3,FALSE),"") ->  | F187: =IF($D187>0,VLOOKUP($D187,Μητρώο!$A:$F,5,FALSE),"") ->  | G187: =IF(COUNTIF(Rankings!$B:$B,RIGHT($C187,2)&"-"&$D187)>0,IF($D187>0,VLOOKUP(RIGHT($C187,2)&"-"&$D187,Rankings!$B:$G,6,FALSE),""),0) -> 0 | H187: =IF($D187>0,VLOOKUP($D187,Μητρώο!$A:$F,4,FALSE),"") -> 
A188: 186 | B188: 185 | E188: =IF($D188>0,VLOOKUP($D188,Μητρώο!$A:$F,3,FALSE),"") ->  | F188: =IF($D188>0,VLOOKUP($D188,Μητρώο!$A:$F,5,FALSE),"") ->  | G188: =IF(COUNTIF(Rankings!$B:$B,RIGHT($C188,2)&"-"&$D188)>0,IF($D188>0,VLOOKUP(RIGHT($C188,2)&"-"&$D188,Rankings!$B:$G,6,FALSE),""),0) -> 0 | H188: =IF($D188>0,VLOOKUP($D188,Μητρώο!$A:$F,4,FALSE),"") -> 
A189: 187 | B189: 186 | E189: =IF($D189>0,VLOOKUP($D189,Μητρώο!$A:$F,3,FALSE),"") ->  | F189: =IF($D189>0,VLOOKUP($D189,Μητρώο!$A:$F,5,FALSE),"") ->  | G189: =IF(COUNTIF(Rankings!$B:$B,RIGHT($C189,2)&"-"&$D189)>0,IF($D189>0,VLOOKUP(RIGHT($C189,2)&"-"&$D189,Rankings!$B:$G,6,FALSE),""),0) -> 0 | H189: =IF($D189>0,VLOOKUP($D189,Μητρώο!$A:$F,4,FALSE),"") -> 
A190: 188 | B190: 187 | E190: =IF($D190>0,VLOOKUP($D190,Μητρώο!$A:$F,3,FALSE),"") ->  | F190: =IF($D190>0,VLOOKUP($D190,Μητρώο!$A:$F,5,FALSE),"") ->  | G190: =IF(COUNTIF(Rankings!$B:$B,RIGHT($C190,2)&"-"&$D190)>0,IF($D190>0,VLOOKUP(RIGHT($C190,2)&"-"&$D190,Rankings!$B:$G,6,FALSE),""),0) -> 0 | H190: =IF($D190>0,VLOOKUP($D190,Μητρώο!$A:$F,4,FALSE),"") -> 
A191: 189 | B191: 188 | E191: =IF($D191>0,VLOOKUP($D191,Μητρώο!$A:$F,3,FALSE),"") ->  | F191: =IF($D191>0,VLOOKUP($D191,Μητρώο!$A:$F,5,FALSE),"") ->  | G191: =IF(COUNTIF(Rankings!$B:$B,RIGHT($C191,2)&"-"&$D191)>0,IF($D191>0,VLOOKUP(RIGHT($C191,2)&"-"&$D191,Rankings!$B:$G,6,FALSE),""),0) -> 0 | H191: =IF($D191>0,VLOOKUP($D191,Μητρώο!$A:$F,4,FALSE),"") -> 
A192: 190 | B192: 189 | E192: =IF($D192>0,VLOOKUP($D192,Μητρώο!$A:$F,3,FALSE),"") ->  | F192: =IF($D192>0,VLOOKUP($D192,Μητρώο!$A:$F,5,FALSE),"") ->  | G192: =IF(COUNTIF(Rankings!$B:$B,RIGHT($C192,2)&"-"&$D192)>0,IF($D192>0,VLOOKUP(RIGHT($C192,2)&"-"&$D192,Rankings!$B:$G,6,FALSE),""),0) -> 0 | H192: =IF($D192>0,VLOOKUP($D192,Μητρώο!$A:$F,4,FALSE),"") -> 
A193: 191 | B193: 190 | E193: =IF($D193>0,VLOOKUP($D193,Μητρώο!$A:$F,3,FALSE),"") ->  | F193: =IF($D193>0,VLOOKUP($D193,Μητρώο!$A:$F,5,FALSE),"") ->  | G193: =IF(COUNTIF(Rankings!$B:$B,RIGHT($C193,2)&"-"&$D193)>0,IF($D193>0,VLOOKUP(RIGHT($C193,2)&"-"&$D193,Rankings!$B:$G,6,FALSE),""),0) -> 0 | H193: =IF($D193>0,VLOOKUP($D193,Μητρώο!$A:$F,4,FALSE),"") -> 
A194: 192 | B194: 191 | E194: =IF($D194>0,VLOOKUP($D194,Μητρώο!$A:$F,3,FALSE),"") ->  | F194: =IF($D194>0,VLOOKUP($D194,Μητρώο!$A:$F,5,FALSE),"") ->  | G194: =IF(COUNTIF(Rankings!$B:$B,RIGHT($C194,2)&"-"&$D194)>0,IF($D194>0,VLOOKUP(RIGHT($C194,2)&"-"&$D194,Rankings!$B:$G,6,FALSE),""),0) -> 0 | H194: =IF($D194>0,VLOOKUP($D194,Μητρώο!$A:$F,4,FALSE),"") -> 
A195: 193 | B195: 192 | E195: =IF($D195>0,VLOOKUP($D195,Μητρώο!$A:$F,3,FALSE),"") ->  | F195: =IF($D195>0,VLOOKUP($D195,Μητρώο!$A:$F,5,FALSE),"") ->  | G195: =IF(COUNTIF(Rankings!$B:$B,RIGHT($C195,2)&"-"&$D195)>0,IF($D195>0,VLOOKUP(RIGHT($C195,2)&"-"&$D195,Rankings!$B:$G,6,FALSE),""),0) -> 0 | H195: =IF($D195>0,VLOOKUP($D195,Μητρώο!$A:$F,4,FALSE),"") -> 
A196: 194 | B196: =IF(C196=C195,B195+1,1) -> 193 | E196: =IF($D196>0,VLOOKUP($D196,Μητρώο!$A:$F,3,FALSE),"") ->  | F196: =IF($D196>0,VLOOKUP($D196,Μητρώο!$A:$F,5,FALSE),"") ->  | G196: =IF(COUNTIF(Rankings!$B:$B,RIGHT($C196,2)&"-"&$D196)>0,IF($D196>0,VLOOKUP(RIGHT($C196,2)&"-"&$D196,Rankings!$B:$G,6,FALSE),""),0) -> 0 | H196: =IF($D196>0,VLOOKUP($D196,Μητρώο!$A:$F,4,FALSE),"") -> 
A197: 195 | B197: 194 | E197: =IF($D197>0,VLOOKUP($D197,Μητρώο!$A:$F,3,FALSE),"") ->  | F197: =IF($D197>0,VLOOKUP($D197,Μητρώο!$A:$F,5,FALSE),"") ->  | G197: =IF(COUNTIF(Rankings!$B:$B,RIGHT($C197,2)&"-"&$D197)>0,IF($D197>0,VLOOKUP(RIGHT($C197,2)&"-"&$D197,Rankings!$B:$G,6,FALSE),""),0) -> 0 | H197: =IF($D197>0,VLOOKUP($D197,Μητρώο!$A:$F,4,FALSE),"") -> 
A198: 196 | B198: 195 | E198: =IF($D198>0,VLOOKUP($D198,Μητρώο!$A:$F,3,FALSE),"") ->  | F198: =IF($D198>0,VLOOKUP($D198,Μητρώο!$A:$F,5,FALSE),"") ->  | G198: =IF(COUNTIF(Rankings!$B:$B,RIGHT($C198,2)&"-"&$D198)>0,IF($D198>0,VLOOKUP(RIGHT($C198,2)&"-"&$D198,Rankings!$B:$G,6,FALSE),""),0) -> 0 | H198: =IF($D198>0,VLOOKUP($D198,Μητρώο!$A:$F,4,FALSE),"") -> 
A199: 197 | B199: 196 | E199: =IF($D199>0,VLOOKUP($D199,Μητρώο!$A:$F,3,FALSE),"") ->  | F199: =IF($D199>0,VLOOKUP($D199,Μητρώο!$A:$F,5,FALSE),"") ->  | G199: =IF(COUNTIF(Rankings!$B:$B,RIGHT($C199,2)&"-"&$D199)>0,IF($D199>0,VLOOKUP(RIGHT($C199,2)&"-"&$D199,Rankings!$B:$G,6,FALSE),""),0) -> 0 | H199: =IF($D199>0,VLOOKUP($D199,Μητρώο!$A:$F,4,FALSE),"") -> 
A200: 198 | B200: 197 | E200: =IF($D200>0,VLOOKUP($D200,Μητρώο!$A:$F,3,FALSE),"") ->  | F200: =IF($D200>0,VLOOKUP($D200,Μητρώο!$A:$F,5,FALSE),"") ->  | G200: =IF(COUNTIF(Rankings!$B:$B,RIGHT($C200,2)&"-"&$D200)>0,IF($D200>0,VLOOKUP(RIGHT($C200,2)&"-"&$D200,Rankings!$B:$G,6,FALSE),""),0) -> 0 | H200: =IF($D200>0,VLOOKUP($D200,Μητρώο!$A:$F,4,FALSE),"") -> 
... 552 more rows

Sheet Validations
A1: Groups
A3: MS

Sheet Rankings (hidden)
A1: ΑΜ | B1: Group+ΑΜ | C1: Ονοματεπώνυμο | D1: Έτος | E1: Σύλλογος | F1: ΕΝ | G1: w30
A2: 25681 | B2: WD-25681 | C2: ΑΓΓΕΛΑΤΟΥ-ΡΑΦΤΟΠΟΥΛΟΥ ΑΝΑΣΤΑΣΙΑ | D2: 1999 | E2: Α.Ο.Α.ΗΛΙΟΥΠΟΛΗΣ | F2: ΙΑ | G2: 6
A3: 10759 | B3: MD-10759 | C3: ΑΓΓΕΛΙΝΟΣ ΘΕΟΔΩΡΟΣ | D3: 1984 | E3: Ο.Α.ΓΛΥΦΑΔΑΣ | F3: ΙΑ | G3: 10
A4: 10759 | B4: MS-10759 | C4: ΑΓΓΕΛΙΝΟΣ ΘΕΟΔΩΡΟΣ | D4: 1984 | E4: Ο.Α.ΓΛΥΦΑΔΑΣ | F4: ΙΑ | G4: 32.75
A5: 26297 | B5: MS-26297 | C5: ΑΓΙΟΥΣ ΓΕΩΡΓΙΟΣ | D5: 1999 | E5: ΚΕΡΚΥΡΑΪΚΗ Λ.Τ. | F5: Δ | G5: 0.75
A6: 22833 | B6: WS-22833 | C6: ΑΔΑΛΟΓΛΟΥ ΜΑΓΔΑΛΗΝΗ | D6: 1999 | E6: Ο.Α.ΠΕΤΡΟΥΠΟΛΗΣ | F6: Θ | G6: 0.5
A7: 14203 | B7: MS-14203 | C7: ΑΛΕΞΟΠΟΥΛΟΣ ΠΑΝΑΓΙΩΤΗΣ | D7: 1988 | E7: Α.Ο.Α.ΑΙΓΑΛΕΩ 92 | F7: Θ | G7: 0.1
A8: 29942 | B8: WS-29942 | C8: ΑΛΦΑΝΤΗ ΑΝΑΣΤΑΣΙΑ | D8: 2000 | E8: Ο.Α.ΠΕΤΡΟΥΠΟΛΗΣ | F8: Θ | G8: 0.75
A9: 5006 | B9: MS-5006 | C9: ΑΝΑΣΤΑΣΙΟΥ ΓΙΩΡΓΗΣ | D9: 1980 | E9: Α.Σ.ΟΡΦΕΑΣ ΛΑΡΙΣΑΣ | F9: Ε | G9: 1.5
A10: 30563 | B10: WS-30563 | C10: ΑΝΔΡΙΟΠΟΥΛΟΥ ΑΓΓΕΛΙΚΗ-ΑΘΑΝΑΣΙΑ | D10: 2002 | E10: Α.Ε.Τ.ΝΙΚΗ ΠΑΤΡΩΝ | F10: ΣΤ | G10: 1
A11: 23357 | B11: MS-23357 | C11: ΑΝΔΡΟΥΤΣΕΛΗΣ ΑΛΕΞΙΟΣ | D11: 1996 | E11: Α.Ο.Α.ΠΑΤΡΩΝ | F11: ΣΤ | G11: 0.5
A12: 17656 | B12: MD-17656 | C12: ΑΝΔΡΟΥΤΣΕΛΗΣ ΙΩΑΝΝΗΣ | D12: 1992 | E12: Α.Ο.Α.ΠΑΤΡΩΝ | F12: ΣΤ | G12: 6
A13: 17656 | B13: MS-17656 | C13: ΑΝΔΡΟΥΤΣΕΛΗΣ ΙΩΑΝΝΗΣ | D13: 1992 | E13: Α.Ο.Α.ΠΑΤΡΩΝ | F13: ΣΤ | G13: 0.5
A14: 549 | B14: MS-549 | C14: ΑΝΤΖΟΥΛΑΚΟΣ ΝΙΚΟΛΑΟΣ | D14: 1964 | E14: Ο.Α.ΛΑΡΙΣΑΣ | F14: Ε | G14: 0.75
A15: 26107 | B15: WD-26107 | C15: ΑΝΤΩΝΑΚΗ ΕΜΜΑΝΟΥΕΛΑ | D15: 2000 | E15: Α.Ο.Α.ΑΤΤΙΚΟΣ ΗΛΙΟΣ | F15: Η | G15: 12
A16: 26107 | B16: WS-26107 | C16: ΑΝΤΩΝΑΚΗ ΕΜΜΑΝΟΥΕΛΑ | D16: 2000 | E16: Α.Ο.Α.ΑΤΤΙΚΟΣ ΗΛΙΟΣ | F16: Η | G16: 3
A17: 22546 | B17: WD-22546 | C17: ΑΝΤΩΝΙΟΥ ΑΝΑΣΤΑΣΙΑ | D17: 1999 | E17: Α.Ε.Κ.ΤΡΙΠΟΛΗΣ | F17: ΣΤ | G17: 1
A18: 22546 | B18: WS-22546 | C18: ΑΝΤΩΝΙΟΥ ΑΝΑΣΤΑΣΙΑ | D18: 1999 | E18: Α.Ε.Κ.ΤΡΙΠΟΛΗΣ | F18: ΣΤ | G18: 0.75
A19: 28937 | B19: WD-28937 | C19: ΑΝΤΩΝΙΟΥ ΘΕΟΔΩΡΑ | D19: 1999 | E19: Ο.Α.ΜΑΓΝΗΣΙΑΣ | F19: Ε | G19: 1
A20: 23775 | B20: MD-23775 | C20: ΑΝΤΩΝΟΠΟΥΛΟΣ ΧΡΗΣΤΟΣ | D20: 1998 | E20: Ο.Α.ΚΕΡΑΤΣΙΝΙΟΥ | F20: Θ | G20: 12
A21: 23775 | B21: MS-23775 | C21: ΑΝΤΩΝΟΠΟΥΛΟΣ ΧΡΗΣΤΟΣ | D21: 1998 | E21: Ο.Α.ΚΕΡΑΤΣΙΝΙΟΥ | F21: Θ | G21: 13
A22: 36678 | B22: WS-36678 | C22: ΑΝΤΩΝΟΠΟΥΛΟΥ ΕΥΑΓΓΕΛΙΑ | D22: 2000 | E22: Α.Ο.Α.ΧΑΪΔΑΡΙΟΥ | F22: Θ | G22: 0.5
A23: 26457 | B23: MS-26457 | C23: ΑΡΕΤΑΚΗΣ ΙΩΑΝΝΗΣ | D23: 1999 | E23: Ο.Α.ΧΑΝΙΩΝ | F23: Ζ | G23: 0.75
A24: 30051 | B24: WD-30051 | C24: ΑΡΚΑΔΙΑΝΟΥ ΑΝΝΑ | D24: 2001 | E24: Α.Ο.Α.ΧΑΪΔΑΡΙΟΥ | F24: Θ | G24: 3
A25: 30051 | B25: WS-30051 | C25: ΑΡΚΑΔΙΑΝΟΥ ΑΝΝΑ | D25: 2001 | E25: Α.Ο.Α.ΧΑΪΔΑΡΙΟΥ | F25: Θ | G25: 6
A26: 24938 | B26: WD-24938 | C26: ΑΥΓΕΡΗ ΑΣΠΑΣΙΑ | D26: 1998 | E26: Α.Ο.Α.ΗΛΙΟΥΠΟΛΗΣ | F26: ΙΑ | G26: 1
A27: 38570 | B27: WS-38570 | C27: ΒΑΛΑΖΙΩΤΗ ΧΡΙΣΤΟΥΛΑ | D27: 2000 | E27: Α.Σ.Α.ΠΑΡΝΗΘΑΣ | F27: Η | G27: 0.1
A28: 23935 | B28: MS-23935 | C28: ΒΑΝΙΔΗΣ ΙΩΑΝΝΗΣ | D28: 1989 | E28: Α.Σ.ΤΕΝΙΣ ΚΛΑΜΠ ΚΟΖΑΝΗΣ | F28: Γ | G28: 1.5
A29: 26389 | B29: MD-26389 | C29: ΒΑΡΔΑΚΗΣ ΒΑΣΙΛΕΙΟΣ | D29: 1999 | E29: Ο.Α.ΙΩΑΝΝΙΝΩΝ | F29: Δ | G29: 1.5
A30: 26389 | B30: MS-26389 | C30: ΒΑΡΔΑΚΗΣ ΒΑΣΙΛΕΙΟΣ | D30: 1999 | E30: Ο.Α.ΙΩΑΝΝΙΝΩΝ | F30: Δ | G30: 1
A31: 17604 | B31: MD-17604 | C31: ΒΑΡΦΗΣ ΙΑΣΩΝ | D31: 1992 | E31: Ο.Α.ΓΟΥΔΙΟΥ | F31: ΙΑ | G31: 1
A32: 17604 | B32: MS-17604 | C32: ΒΑΡΦΗΣ ΙΑΣΩΝ | D32: 1992 | E32: Ο.Α.ΓΟΥΔΙΟΥ | F32: ΙΑ | G32: 1
A33: 31641 | B33: WS-31641 | C33: ΒΑΣΙΛΕΙΑΔΗ ΔΕΣΠΟΙΝΑ | D33: 2001 | E33: Α.Σ.ΚΟΛΛΕΓΙΟΥ ΝΤΕΡΗ | F33: Η | G33: 0.75
A34: 22007 | B34: WD-22007 | C34: ΒΑΣΙΛΕΙΟΥ ΑΝΑΣΤΑΣΙΑ | D34: 1996 | E34: Α.Ο.Α.ΗΛΙΟΥΠΟΛΗΣ | F34: ΙΑ | G34: 3
A35: 22007 | B35: WS-22007 | C35: ΒΑΣΙΛΕΙΟΥ ΑΝΑΣΤΑΣΙΑ | D35: 1996 | E35: Α.Ο.Α.ΗΛΙΟΥΠΟΛΗΣ | F35: ΙΑ | G35: 0.75
A36: 16767 | B36: MS-16767 | C36: ΒΛΑΒΙΑΝΟΣ ΙΑΣΩΝ | D36: 1991 | E36: Α.Ο.Α.ΠΑΠΑΓΟΥ | F36: ΙΑ | G36: 0.1
A37: 20649 | B37: WD-20649 | C37: ΒΟΓΑΣΑΡΗ ΔΕΣΠΟΙΝΑ | D37: 1995 | E37: Ο.Α.ΑΘΗΝΩΝ | F37: Η | G37: 12
A38: 31372 | B38: MS-31372 | C38: ΒΟΓΙΑΤΖΗΣ ΙΩΑΝΝΗΣ | D38: 2000 | E38: Α.Σ.ΟΡΦΕΑΣ ΛΑΡΙΣΑΣ | F38: Ε | G38: 0.5
A39: 24516 | B39: MD-24516 | C39: ΒΟΙΝΕΑ ΑΛΕΞΑΝΔΡΟΣ | D39: 1998 | E39: Α.Ο.Α.ΗΛΙΟΥΠΟΛΗΣ | F39: ΙΑ | G39: 6
A40: 24516 | B40: MS-24516 | C40: ΒΟΪΝΕΑ ΑΛΕΞΑΝΔΡΟΣ | D40: 1998 | E40: Α.Ο.Α.ΗΛΙΟΥΠΟΛΗΣ | F40: ΙΑ | G40: 1.25
A41: 29038 | B41: WD-29038 | C41: ΓΑΚΗ ΕΛΕΝΑ | D41: 2000 | E41: Α.Ο.Α.ΠΑΠΑΓΟΥ | F41: ΙΑ | G41: 6
A42: 29038 | B42: WS-29038 | C42: ΓΑΚΗ ΕΛΕΝΑ | D42: 2000 | E42: Α.Ο.Α.ΠΑΠΑΓΟΥ | F42: ΙΑ | G42: 1
A43: 14059 | B43: MD-14059 | C43: ΓΕΜΟΥΧΙΔΗΣ ΠΑΡΙΣ | D43: 1988 | E43: Ο.Α.ΓΛΥΦΑΔΑΣ | F43: ΙΑ | G43: 3
A44: 14059 | B44: MS-14059 | C44: ΓΕΜΟΥΧΙΔΗΣ ΠΑΡΙΣ | D44: 1988 | E44: Ο.Α.ΓΛΥΦΑΔΑΣ | F44: ΙΑ | G44: 6
A45: 22914 | B45: WS-22914 | C45: ΓΕΝΝΗΜΑΤΑ ΜΑΡΙΝΑ | D45: 1997 | E45: Α.Κ.Α.ΜΑΡΑΘΩΝΑ | F45: Η | G45: 0.75
A46: 36928 | B46: MS-36928 | C46: ΓΕΡΑΡΔΟΣ ΠΑΥΛΟΣ | D46: 1975 | E46: Ο.Α.ΚΟΡΙΝΘΟΥ | F46: ΣΤ | G46: 0.5
A47: 22876 | B47: MS-22876 | C47: ΓΕΡΟΥΚΗΣ ΒΑΣΙΛΕΙΟΣ | D47: 1998 | E47: Ο.Α.ΝΙΚΑΙΑ ΛΑΡΙΣΑΣ | F47: Ε | G47: 0.75
A48: 16731 | B48: MD-16731 | C48: ΓΕΩΡΓΟΥΔΑΣ ΑΛΕΞΑΝΔΡΟΣ-ΦΕΡΔΙΝΑΝΔΟΣ | D48: 1991 | E48: ΗΡΑΚΛΕΙΟ Ο.Α.& Α. | F48: Ζ | G48: 3
A49: 16731 | B49: MS-16731 | C49: ΓΕΩΡΓΟΥΔΑΣ ΑΛΕΞΑΝΔΡΟΣ-ΦΕΡΔΙΝΑΝΔΟΣ | D49: 1991 | E49: ΗΡΑΚΛΕΙΟ Ο.Α.& Α. | F49: Ζ | G49: 0.75
A50: 33530 | B50: MD-33530 | C50: ΓΙΑΚΟΥΜΑΚΗΣ ΙΩΑΝΝΗΣ | D50: 1999 | E50: Ο.Α.ΧΑΝΙΩΝ | F50: Ζ | G50: 0.75
A51: 33530 | B51: MS-33530 | C51: ΓΙΑΚΟΥΜΑΚΗΣ ΙΩΑΝΝΗΣ | D51: 1999 | E51: Ο.Α.ΧΑΝΙΩΝ | F51: Ζ | G51: 0.5
A52: 6655 | B52: MD-6655 | C52: ΓΙΑΚΟΥΜΠΟΒΙΤΣ ΑΛΕΞΑΝΔΡΟΣ | D52: 1981 | E52: Ο.Α.ΑΘΗΝΩΝ | F52: Η | G52: 26
A53: 6655 | B53: MS-6655 | C53: ΓΙΑΚΟΥΜΠΟΒΙΤΣ ΑΛΕΞΑΝΔΡΟΣ | D53: 1981 | E53: Ο.Α.ΑΘΗΝΩΝ | F53: Η | G53: 1
A54: 15522 | B54: MD-15522 | C54: ΓΙΑΝΝΑΚΑΚΗΣ ΗΛΙΑΣ | D54: 1991 | E54: Ο.Α.ΑΘΗΝΩΝ | F54: Η | G54: 6
A55: 15522 | B55: MS-15522 | C55: ΓΙΑΝΝΑΚΑΚΗΣ ΗΛΙΑΣ | D55: 1991 | E55: Ο.Α.ΑΘΗΝΩΝ | F55: Η | G55: 1
A56: 22549 | B56: WD-22549 | C56: ΓΚΟΥΝΤΑΝΗ ΓΕΩΡΓΙΑ | D56: 1992 | E56: Α.Ε.Κ.ΤΡΙΠΟΛΗΣ | F56: ΣΤ | G56: 1
A57: 22549 | B57: WS-22549 | C57: ΓΚΟΥΝΤΑΝΗ ΓΕΩΡΓΙΑ | D57: 1992 | E57: Α.Ε.Κ.ΤΡΙΠΟΛΗΣ | F57: ΣΤ | G57: 0.5
A58: 28284 | B58: WD-28284 | C58: ΓΚΟΥΣΚΟΥ ΚΑΛΛΙΟΠΗ | D58: 2000 | E58: Α.Ο.Α.ΦΙΛΟΘΕΗΣ | F58: Η | G58: 1
A59: 28284 | B59: WS-28284 | C59: ΓΚΟΥΣΚΟΥ ΚΑΛΛΙΟΠΗ | D59: 2000 | E59: Α.Ο.Α.ΦΙΛΟΘΕΗΣ | F59: Η | G59: 0.5
A60: 36184 | B60: WS-36184 | C60: ΓΚΡΕΚΑ ΓΕΩΡΓΙΑ-ΕΙΡΗΝΗ | D60: 2001 | E60: Ο.Α.ΑΓΙΑΣ ΠΑΡΑΣΚΕΥΗΣ | F60: Η | G60: 0.5
A61: 14657 | B61: MS-14657 | C61: ΓΛΕΖΟΣ ΜΑΝΩΛΗΣ | D61: 1990 | E61: Α.Ο.Α.ΦΙΛΟΘΕΗΣ | F61: Η | G61: 1
A62: 23953 | B62: WD-23953 | C62: ΓΡΑΜΜΑΤΙΚΟΠΟΥΛΟΥ ΒΑΛΕΝΤΙΝΗ | D62: 1997 | E62: Ο.Α.ΘΕΣΣΑΛΟΝΙΚΗΣ | F62: Β | G62: 80
A63: 23953 | B63: WS-23953 | C63: ΓΡΑΜΜΑΤΙΚΟΠΟΥΛΟΥ ΒΑΛΕΝΤΙΝΗ | D63: 1997 | E63: Ο.Α.ΘΕΣΣΑΛΟΝΙΚΗΣ | F63: Β | G63: 112
A64: 28631 | B64: WD-28631 | C64: ΓΡΙΒΑ ΒΑΡΒΑΡΑ | D64: 2000 | E64: ΑΙΟΛΟΣ Α.Λ.ΙΛΙΟΥ | F64: Θ | G64: 6
A65: 28631 | B65: WS-28631 | C65: ΓΡΙΒΑ ΒΑΡΒΑΡΑ | D65: 2000 | E65: ΑΙΟΛΟΣ Α.Λ.ΙΛΙΟΥ | F65: Θ | G65: 0.5
A66: 38608 | B66: WS-38608 | C66: ΔΑΝΙΑ ΠΑΝΑΓΙΩΤΑ | D66: 1986 | E66: Ο.Α.ΑΓΡΙΝΙΟΥ | F66: Δ | G66: 0.1
A67: 5845 | B67: WD-5845 | C67: ΔΑΝΙΗΛΙΔΟΥ ΕΛΕΝΗ | D67: 1982 | E67: Ο.Α.ΘΕΣΣΑΛΟΝΙΚΗΣ | F67: Β | G67: 37
A68: 5845 | B68: WS-5845 | C68: ΔΑΝΙΗΛΙΔΟΥ ΕΛΕΝΗ | D68: 1982 | E68: Ο.Α.ΘΕΣΣΑΛΟΝΙΚΗΣ | F68: Β | G68: 14
A69: 26603 | B69: MD-26603 | C69: ΔΕΛΗΣ ΑΝΔΡΕΑΣ-ΑΛΕΞΑΝΔΡΟΣ | D69: 1997 | E69: Α.Ο.Α.ΦΙΛΟΘΕΗΣ | F69: Η | G69: 1
A70: 26603 | B70: MS-26603 | C70: ΔΕΛΗΣ ΑΝΔΡΕΑΣ-ΑΛΕΞΑΝΔΡΟΣ | D70: 1997 | E70: Α.Ο.Α.ΦΙΛΟΘΕΗΣ | F70: Η | G70: 2
A71: 24142 | B71: WD-24142 | C71: ΔΕΜΕΝΕΓΑ ΔΑΦΝΗ | D71: 1998 | E71: Α.Κ.Α.ΜΑΡΑΘΩΝΑ | F71: Η | G71: 3
A72: 27414 | B72: WD-27414 | C72: ΔΕΤΣΗ ΜΑΡΙΑΝ | D72: 2000 | E72: Α.Ο.ΒΟΥΛΙΑΓΜΕΝΗΣ | F72: ΙΑ | G72: 12
A73: 27414 | B73: WS-27414 | C73: ΔΕΤΣΗ ΜΑΡΙΑΝ | D73: 2000 | E73: Α.Ο.ΒΟΥΛΙΑΓΜΕΝΗΣ | F73: ΙΑ | G73: 0.5
A74: 18875 | B74: MD-18875 | C74: ΔΗΜΑΣ ΑΛΕΞΙΟΣ | D74: 1992 | E74: Α.Ο.Α.ΦΙΛΟΘΕΗΣ | F74: Η | G74: 6
A75: 32158 | B75: WS-32158 | C75: ΔΙΟΛΗ ΣΤΑΜΑΤΙΝΑ | D75: 2001 | E75: Ο.Α.ΣΑΛΑΜΙΝΑΣ | F75: Θ | G75: 0.5
A76: 2254 | B76: MS-2254 | C76: ΔΟΥΒΗΣ ΙΩΑΝΝΗΣ | D76: 1974 | E76: Α.Σ.ΠΕΡΑ | F76: ΙΑ | G76: 0.5
A77: 27264 | B77: WS-27264 | C77: ΔΟΥΚΑ ΜΑΡΙΑ | D77: 2001 | E77: Α.Α.ΑΙΓΑΛΕΩ | F77: Θ | G77: 0.1
A78: 10341 | B78: MD-10341 | C78: ΔΟΥΛΓΕΡΑΚΗΣ ΣΤΑΥΡΟΣ | D78: 1984 | E78: Α.Ο.ΚΥΔΩΝΙΑΣ | F78: Ζ | G78: 0.75
A79: 10341 | B79: MS-10341 | C79: ΔΟΥΛΓΕΡΑΚΗΣ ΣΤΑΥΡΟΣ | D79: 1984 | E79: Α.Ο.ΚΥΔΩΝΙΑΣ | F79: Ζ | G79: 0.75
A80: 30043 | B80: WD-30043 | C80: ΔΟΥΡΟΥ ΑΝΑΣΤΑΣΙΑ | D80: 1999 | E80: Ο.Α.ΤΟΥΜΠΑΣ | F80: Β | G80: 1
A81: 30043 | B81: WS-30043 | C81: ΔΟΥΡΟΥ ΑΝΑΣΤΑΣΙΑ | D81: 1999 | E81: Ο.Α.ΤΟΥΜΠΑΣ | F81: Β | G81: 0.5
A82: 31476 | B82: MS-31476 | C82: ΔΡΑΚΟΣ ΑΘΑΝΑΣΙΟΣ | D82: 2001 | E82: Ο.Α.ΑΘΗΝΩΝ | F82: Η | G82: 0.1
A83: 22611 | B83: MS-22611 | C83: ΕΠΙΒΑΤΙΝΟΣ ΚΩΝΣΤΑΝΤΙΝΟΣ | D83: 1994 | E83: Ο.Α.ΚΟΡΙΝΘΟΥ | F83: ΣΤ | G83: 0.5
A84: 31693 | B84: MS-31693 | C84: ΕΣΚΙΟΓΛΟΥ ΣΤΕΦΑΝΟΣ | D84: 1999 | E84: Α.Π.Ο.ΣΑΝΝΥ ΣΠΟΡΤΣ ΚΛΑΜΠ | F84: Η | G84: 0.75
A85: 32623 | B85: MS-32623 | C85: ΖΑΧΙΩΤΗΣ ΦΙΛΙΠΠΟΣ | D85: 2002 | E85: Γ.Ο.ΠΕΡΙΣΤΕΡΙΟΥ Γ.ΠΑΛΑΣΚΑΣ | F85: Θ | G85: 0.5
A86: 22576 | B86: WD-22576 | C86: ΖΑΧΟΠΟΥΛΟΥ ΑΘΑΝΑΣΙΑ | D86: 1998 | E86: Ο.Α.ΦΟΙΒΟΣ ΛΑΡΙΣΑΣ | F86: Ε | G86: 18
A87: 22576 | B87: WS-22576 | C87: ΖΑΧΟΠΟΥΛΟΥ ΑΘΑΝΑΣΙΑ | D87: 1998 | E87: Ο.Α.ΦΟΙΒΟΣ ΛΑΡΙΣΑΣ | F87: Ε | G87: 0.75
A88: 26533 | B88: MS-26533 | C88: ΖΕΡΔΙΛΑΣ ΑΙΤΟΡ | D88: 2000 | E88: Α.Ο.ΑΡΓΥΡΟΥΠΟΛΗΣ | F88: ΙΑ | G88: 0.5
A89: 13432 | B89: MS-13432 | C89: ΖΗΣΗΣ ΔΗΜΗΤΡΗΣ | D89: 1989 | E89: Ο.Α.ΑΓΡΙΝΙΟΥ | F89: Δ | G89: 0.6
A90: 25602 | B90: MS-25602 | C90: ΖΩΓΡΑΦΑΚΗΣ ΔΑΥΙΔ | D90: 1977 | E90: Α.Ε.Κ.ΤΡΙΠΟΛΗΣ | F90: ΣΤ | G90: 0.5
A91: 24845 | B91: MD-24845 | C91: ΗΛΙΟΠΟΥΛΟΣ ΒΑΣΙΛΗΣ | D91: 1998 | E91: Α.Ο.Α.ΦΙΛΟΘΕΗΣ | F91: Η | G91: 1
A92: 24845 | B92: MS-24845 | C92: ΗΛΙΟΠΟΥΛΟΣ ΒΑΣΙΛΗΣ | D92: 1998 | E92: Α.Ο.Α.ΦΙΛΟΘΕΗΣ | F92: Η | G92: 3
A93: 21565 | B93: MD-21565 | C93: ΘΕΟΔΩΡΟΥ ΕΛΕΥΘΕΡΙΟΣ | D93: 1996 | E93: Α.Ο.Α.ΦΙΛΟΘΕΗΣ | F93: Η | G93: 20
A94: 21565 | B94: MS-21565 | C94: ΘΕΟΔΩΡΟΥ ΕΛΕΥΘΕΡΙΟΣ | D94: 1996 | E94: Α.Ο.Α.ΦΙΛΟΘΕΗΣ | F94: Η | G94: 1
A95: 14611 | B95: MD-14611 | C95: ΙΑΤΡΟΠΟΥΛΟΣ ΔΗΜΗΤΡΗΣ | D95: 1988 | E95: Σ.Α.ΡΑΦΗΝΑΣ | F95: Η | G95: 1
A96: 14611 | B96: MS-14611 | C96: ΙΑΤΡΟΠΟΥΛΟΣ ΔΗΜΗΤΡΗΣ | D96: 1988 | E96: Σ.Α.ΡΑΦΗΝΑΣ | F96: Η | G96: 0.5
A97: 24053 | B97: MD-24053 | C97: ΙΩΑΝΝΙΔΗΣ ΙΩΑΝΝΗΣ | D97: 1997 | E97: Ο.Α.ΑΓΙΑΣ ΠΑΡΑΣΚΕΥΗΣ | F97: Η | G97: 1.5
A98: 24053 | B98: MS-24053 | C98: ΙΩΑΝΝΙΔΗΣ ΙΩΑΝΝΗΣ | D98: 1997 | E98: Ο.Α.ΑΓΙΑΣ ΠΑΡΑΣΚΕΥΗΣ | F98: Η | G98: 1
A99: 24054 | B99: MD-24054 | C99: ΙΩΑΝΝΙΔΗΣ ΠΑΝΤΕΛΕΗΜΩΝ | D99: 1996 | E99: Ο.Α.ΑΓΙΑΣ ΠΑΡΑΣΚΕΥΗΣ | F99: Η | G99: 1.5
A100: 24054 | B100: MS-24054 | C100: ΙΩΑΝΝΙΔΗΣ ΠΑΝΤΕΛΕΗΜΩΝ | D100: 1996 | E100: Ο.Α.ΑΓΙΑΣ ΠΑΡΑΣΚΕΥΗΣ | F100: Η | G100: 1
A101: 14594 | B101: MD-14594 | C101: ΚΑΖΑΝΙΔΗΣ ΠΑΝΑΓΙΩΤΗΣ | D101: 1989 | E101: Ο.Α.ΚΕΡΚΥΡΑΣ | F101: Δ | G101: 23
A102: 14594 | B102: MS-14594 | C102: ΚΑΖΑΝΙΔΗΣ ΠΑΝΑΓΙΩΤΗΣ | D102: 1989 | E102: Ο.Α.ΚΕΡΚΥΡΑΣ | F102: Δ | G102: 2.25
A103: 21937 | B103: WD-21937 | C103: ΚΑΪΡΗ ΑΓΓΕΛΙΚΗ | D103: 1996 | E103: Ο.Α.ΑΘΗΝΩΝ | F103: Η | G103: 8
A104: 21937 | B104: WS-21937 | C104: ΚΑΪΡΗ ΑΓΓΕΛΙΚΗ | D104: 1996 | E104: Ο.Α.ΑΘΗΝΩΝ | F104: Η | G104: 4.5
A105: 17433 | B105: MS-17433 | C105: ΚΑΛΛΙΝΙΚΟΣ ΝΙΚΟΛΑΟΣ | D105: 1993 | E105: Α.Ο.ΑΤΛΑΝΤΙΣ | F105: Η | G105: 1
A106: 22999 | B106: MS-22999 | C106: ΚΑΛΝΤΓΟΥΕΛ ΑΛΕΞΑΝΔΡΟΣ-ΒΑΣΙΛΕΙΟΣ | D106: 1997 | E106: Α.Κ.Α.ΜΑΡΑΘΩΝΑ | F106: Η | G106: 0.5
A107: 21744 | B107: MD-21744 | C107: ΚΑΛΟΒΕΛΩΝΗΣ ΜΑΡΚΟΣ | D107: 1994 | E107: Ο.Α.ΑΘΗΝΩΝ | F107: Η | G107: 70
A108: 33389 | B108: MS-33389 | C108: ΚΑΜΗΛΑΡΑΚΗΣ ΙΩΑΝΝΗΣ | D108: 1996 | E108: Ο.Α.ΝΙΚΑΙΑ ΛΑΡΙΣΑΣ | F108: Ε | G108: 0.75
A109: 27702 | B109: WS-27702 | C109: ΚΑΜΠΑΝΤΑΗ ΕΛΕΝΗ | D109: 2000 | E109: Α.Ο.ΜΕΓΑΣ ΑΛΕΞΑΝΔΡΟΣ | F109: ΙΑ | G109: 0.75
A110: 18758 | B110: MS-18758 | C110: ΚΑΝΑΡΗΣ ΑΛΕΞΑΝΔΡΟΣ | D110: 1993 | E110: Α.Ο.ΚΑΒΑΛΑΣ ΜΑΚΕΔΟΝΙΚΟΣ | F110: Α | G110: 1.5
A111: 26982 | B111: WS-26982 | C111: ΚΑΝΕΛΛΟΠΟΥΛΟΥ ΜΑΡΙΛΗ | D111: 2000 | E111: Α.Ο.ΤΑΤΟΪΟΥ | F111: Η | G111: 0.5
A112: 25297 | B112: MD-25297 | C112: ΚΑΠΙΡΗΣ ΣΤΑΜΑΤΗΣ | D112: 1999 | E112: Α.Ο.Α.ΗΛΙΟΥΠΟΛΗΣ | F112: ΙΑ | G112: 6
A113: 25297 | B113: MS-25297 | C113: ΚΑΠΙΡΗΣ ΣΤΑΜΑΤΗΣ | D113: 1999 | E113: Α.Ο.Α.ΗΛΙΟΥΠΟΛΗΣ | F113: ΙΑ | G113: 1.25
A114: 4835 | B114: WS-4835 | C114: ΚΑΠΙΤΣΑΚΗ ΕΛΕΝΗ | D114: 1972 | E114: Ο.Α.ΚΕΡΑΤΣΙΝΙΟΥ | F114: Θ | G114: 0.1
A115: 5514 | B115: WD-5514 | C115: ΚΑΠΛΑΝΗ ΑΣΗΜΙΝΑ | D115: 1983 | E115: Α.Ο.Α.ΦΙΛΟΘΕΗΣ | F115: Η | G115: 12
A116: 15691 | B116: MD-15691 | C116: ΚΑΠΟΓΙΑΝΝΗΣ ΧΑΡΗΣ | D116: 1990 | E116: ΗΡΑΚΛΕΙΟ Ο.Α.& Α. | F116: Ζ | G116: 6.75
A117: 15691 | B117: MS-15691 | C117: ΚΑΠΟΓΙΑΝΝΗΣ ΧΑΡΗΣ | D117: 1990 | E117: ΗΡΑΚΛΕΙΟ Ο.Α.& Α. | F117: Ζ | G117: 26
A118: 34093 | B118: MS-34093 | C118: ΚΑΠΠΑΤΟΣ-ΧΑΛΙΩΤΗΣ ΑΝΤΩΝΗΣ | D118: 1992 | E118: ΚΕΦΑΛΛΗΝΙΑΚΟΣ Ο.Α. | F118: ΣΤ | G118: 0.75
A119: 22951 | B119: MD-22951 | C119: ΚΑΠΤΕΚΙ-ΚΑΠΑΝΔΡΙΤΟΥ ΑΛΕΞΑΝΔΡΟΣ | D119: 1995 | E119: Ο.Α.ΑΘΗΝΩΝ | F119: Η | G119: 6
A120: 28387 | B120: WS-28387 | C120: ΚΑΡΒΟΥΝΗ ΒΑΣΙΛΙΚΗ | D120: 2000 | E120: Α.Σ.ΑΚΡΟΠΟΛΙΣ | F120: Η | G120: 18
A121: 28092 | B121: WS-28092 | C121: ΚΑΡΠΟΥΖΗ ΟΛΥΜΠΙΑ | D121: 1999 | E121: Α.Σ.ΠΕΡΑ | F121: ΙΑ | G121: 1
A122: 24335 | B122: WD-24335 | C122: ΚΑΦΦΕ ΖΩΗ | D122: 1998 | E122: Ο.Α.ΝΙΚΑΙΑ ΛΑΡΙΣΑΣ | F122: Ε | G122: 1
A123: 24335 | B123: WS-24335 | C123: ΚΑΦΦΕ ΖΩΗ | D123: 1998 | E123: Ο.Α.ΝΙΚΑΙΑ ΛΑΡΙΣΑΣ | F123: Ε | G123: 0.75
A124: 28903 | B124: MS-28903 | C124: ΚΕΪΣΙΔΗΣ ΧΡΙΣΤΟΣ | D124: 1992 | E124: Α.Σ.ΟΡΦΕΑΣ ΛΑΡΙΣΑΣ | F124: Ε | G124: 8
A125: 29128 | B125: MS-29128 | C125: ΚΕΜΕΡΛΗΣ ΑΡΓΥΡΗΣ | D125: 1995 | E125: Ο.Α.ΚΟΡΙΝΘΟΥ | F125: ΣΤ | G125: 0.75
A126: 29201 | B126: WD-29201 | C126: ΚΙΖΙΡΑΚΟΥ ΔΗΜΗΤΡΑ | D126: 2000 | E126: Α.Ο.ΜΕΓΑΣ ΑΛΕΞΑΝΔΡΟΣ | F126: ΙΑ | G126: 3
A127: 29201 | B127: WS-29201 | C127: ΚΙΖΙΡΑΚΟΥ ΔΗΜΗΤΡΑ | D127: 2000 | E127: Α.Ο.ΜΕΓΑΣ ΑΛΕΞΑΝΔΡΟΣ | F127: ΙΑ | G127: 0.5
A128: 27879 | B128: MS-27879 | C128: ΚΙΣΣΑΣ ΧΡΗΣΤΟΣ-ΕΥΑΓΓΕΛΟΣ | D128: 1998 | E128: Α.Ο.ΣΙΚΥΩΝΟΣ ΚΙΑΤΟΥ | F128: ΣΤ | G128: 0.75
A129: 24078 | B129: MS-24078 | C129: ΚΟΚΚΑΛΗΣ ΕΜΜΑΝΟΥΗΛ | D129: 1978 | E129: Γ.Σ.ΛΙΒΥΚΟΣ ΙΕΡΑΠΕΤΡΑΣ | F129: Ζ | G129: 0.5
A130: 27857 | B130: WS-27857 | C130: ΚΟΚΚΙΝΑΚΗ ΕΥΑΓΓΕΛΙΑ | D130: 2000 | E130: Ο.Α.ΧΑΝΙΩΝ | F130: Ζ | G130: 0.5
A131: 27858 | B131: WS-27858 | C131: ΚΟΚΚΙΝΑΚΗ ΕΥΓΕΝΙΑ | D131: 2000 | E131: Ο.Α.ΧΑΝΙΩΝ | F131: Ζ | G131: 0.5
A132: 32201 | B132: WS-32201 | C132: ΚΟΚΚΟΡΗ ΕΙΡΗΝΗ-ΕΛΕΝΗ | D132: 2000 | E132: Ο.Α.ΣΥΡΟΥ | F132: Η | G132: 0.1
A133: 20527 | B133: WD-20527 | C133: ΚΟΚΚΟΤΑ ΑΓΓΕΛΙΚΗ | D133: 1995 | E133: Α.Ο.Α.ΧΑΪΔΑΡΙΟΥ | F133: Θ | G133: 6
A134: 20527 | B134: WS-20527 | C134: ΚΟΚΚΟΤΑ ΑΓΓΕΛΙΚΗ | D134: 1995 | E134: Α.Ο.Α.ΧΑΪΔΑΡΙΟΥ | F134: Θ | G134: 3
A135: 17595 | B135: MD-17595 | C135: ΚΟΚΚΟΤΑΣ ΝΙΚΟΛΑΟΣ | D135: 1992 | E135: Α.Ο.Α.ΦΙΛΟΘΕΗΣ | F135: Η | G135: 6
A136: 17595 | B136: MS-17595 | C136: ΚΟΚΚΟΤΑΣ ΝΙΚΟΛΑΟΣ | D136: 1992 | E136: Α.Ο.Α.ΦΙΛΟΘΕΗΣ | F136: Η | G136: 3
A137: 28477 | B137: WS-28477 | C137: ΚΟΛΛΙΟΥ ΝΙΚΗ | D137: 2000 | E137: Ο.Α.ΑΓΙΑΣ ΠΑΡΑΣΚΕΥΗΣ | F137: Η | G137: 0.1
A138: 26824 | B138: WD-26824 | C138: ΚΟΛΟΥΤΣΟΥ ΜΑΡΙΑ-ΕΥΑΓΓΕΛΙΑ | D138: 1998 | E138: Ο.Α.ΚΕΡΑΤΣΙΝΙΟΥ | F138: Θ | G138: 4
A139: 26824 | B139: WS-26824 | C139: ΚΟΛΟΥΤΣΟΥ ΜΑΡΙΑ-ΕΥΑΓΓΕΛΙΑ | D139: 1998 | E139: Ο.Α.ΚΕΡΑΤΣΙΝΙΟΥ | F139: Θ | G139: 0.5
A140: 13378 | B140: MS-13378 | C140: ΚΟΝΤΑΞΑΚΗΣ ΤΑΣΟΣ | D140: 1981 | E140: Ο.Α.ΣΟΥΔΑΣ | F140: Ζ | G140: 0.75
A141: 22866 | B141: MD-22866 | C141: ΚΟΝΤΟΠΟΥΛΟΣ ΘΕΟΦΑΝΗΣ | D141: 1998 | E141: Ο.Α.ΚΕΡΑΤΣΙΝΙΟΥ | F141: Θ | G141: 12
A142: 22866 | B142: MS-22866 | C142: ΚΟΝΤΟΠΟΥΛΟΣ ΘΕΟΦΑΝΗΣ | D142: 1998 | E142: Ο.Α.ΚΕΡΑΤΣΙΝΙΟΥ | F142: Θ | G142: 1.5
A143: 26210 | B143: MS-26210 | C143: ΚΟΝΤΩΣΗΣ ΓΕΩΡΓΙΟΣ | D143: 1997 | E143: Α.Ο.Α.ΦΙΛΟΘΕΗΣ | F143: Η | G143: 0.1
A144: 11302 | B144: MD-11302 | C144: ΚΟΡΑΚΑΣ ΑΝΑΣΤΑΣΙΟΣ | D144: 1985 | E144: Ο.Α.ΑΘΛΗΤ.ΠΑΙΔΕΙΑ | F144: Η | G144: 1
A145: 16262 | B145: WD-16262 | C145: ΚΟΡΔΟΛΑΙΜΗ ΕΛΕΝΗ | D145: 1993 | E145: ΦΘΙΩΤΙΚΟΣ Ο.Α. | F145: Ε | G145: 47
A146: 16262 | B146: WS-16262 | C146: ΚΟΡΔΟΛΑΙΜΗ ΕΛΕΝΗ | D146: 1993 | E146: ΦΘΙΩΤΙΚΟΣ Ο.Α. | F146: Ε | G146: 26
A147: 23214 | B147: MS-23214 | C147: ΚΟΡΩΝΙΟΣ ΑΝΤΩΝΙΟΣ | D147: 1997 | E147: Α.Ο.ΑΡΓΥΡΟΥΠΟΛΗΣ | F147: ΙΑ | G147: 0.1
A148: 28465 | B148: MD-28465 | C148: ΚΟΥΔΟΥΝΑΣ ΜΙΛΤΙΑΔΗΣ | D148: 2000 | E148: Α.Ο.Α.ΦΙΛΟΘΕΗΣ | F148: Η | G148: 1
A149: 28465 | B149: MS-28465 | C149: ΚΟΥΔΟΥΝΑΣ ΜΙΛΤΙΑΔΗΣ | D149: 2000 | E149: Α.Ο.Α.ΦΙΛΟΘΕΗΣ | F149: Η | G149: 0.5
A150: 23033 | B150: WD-23033 | C150: ΚΟΥΚΟΥΒΙΤΑΚΗ ΕΛΕΝΗ-ΑΝΝΑ | D150: 1997 | E150: Ο.Α.ΑΘΛΗΤ.ΠΑΙΔΕΙΑ | F150: Η | G150: 1
A151: 23033 | B151: WS-23033 | C151: ΚΟΥΚΟΥΒΙΤΑΚΗ ΕΛΕΝΗ-ΑΝΝΑ | D151: 1997 | E151: Ο.Α.ΑΘΛΗΤ.ΠΑΙΔΕΙΑ | F151: Η | G151: 0.5
A152: 38607 | B152: MS-38607 | C152: ΚΟΥΚΟΥΝΙΑΣ ΧΡΗΣΤΟΣ | D152: 1984 | E152: Ο.Α.ΑΓΡΙΝΙΟΥ | F152: Δ | G152: 0.5
A153: 11402 | B153: MS-11402 | C153: ΚΥΡΙΑΚΑΚΗΣ ΦΙΛΑΡΕΤΟΣ | D153: 1980 | E153: Α.Σ.Α.ΛΑΡΙΣΑΣ | F153: Ε | G153: 0.75
A154: 26219 | B154: WS-26219 | C154: ΚΩΣΤΑ ΑΓΓΕΛΙΚΗ | D154: 1999 | E154: ΚΕΦΑΛΛΗΝΙΑΚΟΣ Ο.Α. | F154: ΣΤ | G154: 0.5
A155: 26317 | B155: MS-26317 | C155: ΚΩΣΤΑΡΑΣ ΠΑΝΑΓΙΩΤΗΣ | D155: 1999 | E155: Ο.Α.ΠΕΤΡΟΥΠΟΛΗΣ | F155: Θ | G155: 0.75
A156: 29544 | B156: MD-29544 | C156: ΚΩΣΤΙΚΟΓΛΟΥ ΜΙΧΑΛΗΣ | D156: 1995 | E156: Α.Ο.Α.ΦΙΛΟΘΕΗΣ | F156: Η | G156: 0.75
A157: 29544 | B157: MS-29544 | C157: ΚΩΣΤΙΚΟΓΛΟΥ ΜΙΧΑΛΗΣ | D157: 1995 | E157: Α.Ο.Α.ΦΙΛΟΘΕΗΣ | F157: Η | G157: 2
A158: 24169 | B158: WD-24169 | C158: ΛΑΘΟΥΡΗ ΙΩΑΝΝΑ | D158: 1999 | E158: Α.Ο.ΑΡΓΥΡΟΥΠΟΛΗΣ | F158: ΙΑ | G158: 18
A159: 37030 | B159: MD-37030 | C159: ΛΑΜΠΡΟΚΩΣΤΟΠΟΥΛΟΣ ΝΙΚΟΑΛΟΣ | D159: 1999 | E159: Α.Τ.ΧΑΝΙΩΝ | F159: Ζ | G159: 0.75
A160: 29863 | B160: WS-29863 | C160: ΛΑΝΤΖΗ ΛΟΥΙΖΑ | D160: 2000 | E160: Ο.Α.ΓΛΥΦΑΔΑΣ | F160: ΙΑ | G160: 0.5
A161: 28593 | B161: WS-28593 | C161: ΜΑΓΓΙΝΑ ΔΗΜΗΤΡΑ | D161: 2000 | E161: Α.Κ.Α.ΜΑΡΑΘΩΝΑ | F161: Η | G161: 0.5
A162: 26506 | B162: WD-26506 | C162: ΜΑΓΚΛΑΡΑ ΣΤΑΥΡΟΥΛΑ | D162: 1999 | E162: Α.Γ.Ο.ΦΙΛΙΠΠΙΑΔΑΣ | F162: Δ | G162: 3
A163: 31862 | B163: MS-31862 | C163: ΜΑΛΑΚΗΣ ΝΙΚΟΛΑΟΣ | D163: 1977 | E163: Α.Σ.ΟΡΦΕΑΣ ΛΑΡΙΣΑΣ | F163: Ε | G163: 0.75
A164: 20548 | B164: WS-20548 | C164: ΜΑΝΕΚΑ ΑΡΤΕΜΙΣ | D164: 1995 | E164: Ο.Α.ΙΩΑΝΝΙΝΩΝ | F164: Δ | G164: 0.75
A165: 24547 | B165: MD-24547 | C165: ΜΑΝΕΚΑΣ ΑΘΑΝΑΣΙΟΣ | D165: 1998 | E165: Ο.Α.ΙΩΑΝΝΙΝΩΝ | F165: Δ | G165: 19.5
A166: 24547 | B166: MS-24547 | C166: ΜΑΝΕΚΑΣ ΑΘΑΝΑΣΙΟΣ | D166: 1998 | E166: Ο.Α.ΙΩΑΝΝΙΝΩΝ | F166: Δ | G166: 2.5
A167: 32472 | B167: MS-32472 | C167: ΜΑΝΟΥΣΑΚΗΣ ΔΗΜΗΤΡΙΟΣ-ΠΑΝΑΓΙΩΤΗΣ | D167: 2000 | E167: Α.Κ.Α.ΜΑΡΑΘΩΝΑ | F167: Η | G167: 1.25
A168: 23838 | B168: WD-23838 | C168: ΜΑΤΟΥΛΑ ΜΑΡΘΑ | D168: 1997 | E168: Ο.Α.ΤΟΥΜΠΑΣ | F168: Β | G168: 6
A169: 30530 | B169: MD-30530 | C169: ΜΑΥΡΟΜΜΑΤΗΣ ΚΩΝΣΤΑΝΤΙΝΟΣ | D169: 2002 | E169: Α.Τ.ΧΑΝΙΩΝ | F169: Ζ | G169: 0.75
A170: 30530 | B170: MS-30530 | C170: ΜΑΥΡΟΜΜΑΤΗΣ ΚΩΝΣΤΑΝΤΙΝΟΣ | D170: 2002 | E170: Α.Τ.ΧΑΝΙΩΝ | F170: Ζ | G170: 0.5
A171: 25128 | B171: MD-25128 | C171: ΜΑΥΡΟΝΙΚΟΛΑΣ ΛΟΥΔΟΒΙΚΟΣ | D171: 1991 | E171: Α.Ο.Α.ΦΙΛΟΘΕΗΣ | F171: Η | G171: 0.75
A172: 25128 | B172: MS-25128 | C172: ΜΑΥΡΟΝΙΚΟΛΑΣ ΛΟΥΔΟΒΙΚΟΣ | D172: 1991 | E172: Α.Ο.Α.ΦΙΛΟΘΕΗΣ | F172: Η | G172: 0.75
A173: 25584 | B173: WS-25584 | C173: ΜΑΥΡΟΠΟΥΛΟΥ ΕΛΕΝΗ | D173: 1997 | E173: Ο.Α.ΑΝΑΦΛΥΣΤΟΣ ΣΑΡΩΝΙΔΑΣ | F173: Η | G173: 0.5
A174: 18333 | B174: MS-18333 | C174: ΜΕΣΟΡΟΠΙΑΝ ΘΗΣΕΑΣ | D174: 1992 | E174: ΚΕΦΑΛΛΗΝΙΑΚΟΣ Ο.Α. | F174: ΣΤ | G174: 0.5
A175: 29694 | B175: WD-29694 | C175: ΜΕΤΑΞΑ ΔΙΟΝΥΣΙΑ-ΜΥΡΤΩ | D175: 2000 | E175: Α.Σ.ΚΟΛΛΕΓΙΟΥ ΝΤΕΡΗ | F175: Η | G175: 1
A176: 29694 | B176: WS-29694 | C176: ΜΕΤΑΞΑ ΔΙΟΝΥΣΙΑ-ΜΥΡΤΩ | D176: 2000 | E176: Α.Σ.ΚΟΛΛΕΓΙΟΥ ΝΤΕΡΗ | F176: Η | G176: 0.5
A177: 29695 | B177: WD-29695 | C177: ΜΕΤΑΞΑ ΚΛΕΙΩ | D177: 2000 | E177: Α.Σ.ΚΟΛΛΕΓΙΟΥ ΝΤΕΡΗ | F177: Η | G177: 1
A178: 29695 | B178: WS-29695 | C178: ΜΕΤΑΞΑ ΚΛΕΙΩ | D178: 2000 | E178: Α.Σ.ΚΟΛΛΕΓΙΟΥ ΝΤΕΡΗ | F178: Η | G178: 0.5
A179: 17568 | B179: MD-17568 | C179: ΜΙΚΟΣ ΚΩΝΣΤΑΝΤΙΝΟΣ | D179: 1992 | E179: Α.Ο.Α.ΦΙΛΟΘΕΗΣ | F179: Η | G179: 20
A180: 17568 | B180: MS-17568 | C180: ΜΙΚΟΣ ΚΩΝΣΤΑΝΤΙΝΟΣ | D180: 1992 | E180: Α.Ο.Α.ΦΙΛΟΘΕΗΣ | F180: Η | G180: 3
A181: 10888 | B181: MS-10888 | C181: ΜΟΥΡΑΤΟΓΛΟΥ ΑΡΙΣΤΟΤΕΛΗΣ | D181: 1984 | E181: Α.Κ.Α.ΜΑΡΑΘΩΝΑ | F181: Η | G181: 0.75
A182: 28378 | B182: MD-28378 | C182: ΜΟΥΣΑΣ ΔΗΜΟΣΘΕΝΗΣ | D182: 1999 | E182: Α.Ο.Α.ΦΙΛΟΘΕΗΣ | F182: Η | G182: 3
A183: 20127 | B183: WD-20127 | C183: ΜΠΑΚΑ ΑΙΚΑΤΕΡΙΝΗ | D183: 1995 | E183: Ο.Α.ΠΕΤΡΟΥΠΟΛΗΣ | F183: Θ | G183: 3
A184: 23777 | B184: MS-23777 | C184: ΜΠΙΚΑΣ ΑΝΤΩΝΙΟΣ | D184: 1997 | E184: Ο.Α.ΚΕΡΑΤΣΙΝΙΟΥ | F184: Θ | G184: 0.75
A185: 7335 | B185: MS-7335 | C185: ΜΠΙΛΙΑΛΗΣ ΕΛΕΥΘΕΡΙΟΣ | D185: 1980 | E185: Ο.Α.ΤΡΙΚΑΛΩΝ | F185: Ε | G185: 0.5
A186: 16369 | B186: MS-16369 | C186: ΜΠΙΣΜΠΙΚΟΣ ΠΙΕΡ | D186: 1990 | E186: Ο.Α.ΑΓΙΑΣ ΠΑΡΑΣΚΕΥΗΣ | F186: Η | G186: 0.75
A187: 31475 | B187: WD-31475 | C187: ΜΥΛΩΝΑ ΛΗΔΑ-ΣΤΥΛΙΑΝΗ | D187: 2000 | E187: Ο.Α.ΓΛΥΦΑΔΑΣ | F187: ΙΑ | G187: 1
A188: 26455 | B188: WD-26455 | C188: ΝΑΟΥΜ ΜΑΡΙΑ | D188: 1999 | E188: Ο.Α.ΧΑΝΙΩΝ | F188: Ζ | G188: 3
A189: 34979 | B189: WS-34979 | C189: ΝΑΟΥΜ ΝΕΦΕΛΗ-ΙΦΙΓΕΝΕΙΑ | D189: 2001 | E189: Ο.Α.ΑΓΙΑΣ ΠΑΡΑΣΚΕΥΗΣ | F189: Η | G189: 0.5
A190: 26459 | B190: MD-26459 | C190: ΝΑΟΥΜ ΣΠΥΡΙΔΩΝ | D190: 1999 | E190: Ο.Α.ΧΑΝΙΩΝ | F190: Ζ | G190: 0.75
A191: 26459 | B191: MS-26459 | C191: ΝΑΟΥΜ ΣΠΥΡΙΔΩΝ | D191: 1999 | E191: Ο.Α.ΧΑΝΙΩΝ | F191: Ζ | G191: 1
A192: 27657 | B192: WD-27657 | C192: ΝΑΣΙΟΠΟΥΛΟΥ ΑΓΓΕΛΙΚΗ | D192: 1999 | E192: Ο.Α.ΑΘΗΝΩΝ | F192: Η | G192: 1
A193: 29817 | B193: MS-29817 | C193: ΝΙΑΡΧΟΣ ΝΙΚΗΤΑΣ | D193: 1999 | E193: Α.Σ.ΚΟΛΛΕΓΙΟΥ ΝΤΕΡΗ | F193: Η | G193: 0.75
A194: 28259 | B194: MS-28259 | C194: ΝΙΚΟΛΑΚΟΠΟΥΛΟΣ ΒΑΣΙΛΕΙΟΣ | D194: 1999 | E194: Σ.Α.ΣΕΡΡΩΝ | F194: Α | G194: 0.75
A195: 27688 | B195: WD-27688 | C195: ΝΙΚΟΛΟΠΟΥΛΟΥ ΝΑΤΑΛΙΑ | D195: 2000 | E195: Α.Ο.Α.ΦΙΛΟΘΕΗΣ | F195: Η | G195: 24
A196: 27688 | B196: WS-27688 | C196: ΝΙΚΟΛΟΠΟΥΛΟΥ ΝΑΤΑΛΙΑ | D196: 2000 | E196: Α.Ο.Α.ΦΙΛΟΘΕΗΣ | F196: Η | G196: 3
A197: 29169 | B197: WS-29169 | C197: ΝΤΑΝΟΥ ΧΡΙΣΤΙΝΑ | D197: 2002 | E197: Ο.Α.ΓΟΥΔΙΟΥ | F197: ΙΑ | G197: 0.1
A198: 16350 | B198: MD-16350 | C198: ΝΤΙΡΖΟΥ ΑΝΤΡΕΙ | D198: 1987 | E198: Σ.Φ.Α.ΜΕΛΙΣΣΙΩΝ Ο ΦΟΙΒΟΣ | F198: Η | G198: 1
A199: 25728 | B199: WS-25728 | C199: ΝΤΟΥΜΑ ΔΑΦΝΗ | D199: 1998 | E199: Α.Ο.Α.ΦΙΛΟΘΕΗΣ | F199: Η | G199: 0.75
A200: 2515 | B200: MD-2515 | C200: ΟΙΚΟΝΟΜΙΔΗΣ ΚΩΝΣΤΑΝΤΙΝΟΣ | D200: 1977 | E200: Ο.Α.ΘΕΣΣΑΛΟΝΙΚΗΣ | F200: Β | G200: 113
... 113 more rows

Sheet Μητρώο (hidden)
A1: ΑΜ | B1: Φ | C1: Ονοματεπώνυμο | D1: YOB | E1: Σύλλογος | F1: Εν
A2: 12680 | B2: F | C2: ALTHAUS DIANA | D2: 1983 | E2: Α.Ο.Α.ΡΕΘΥΜΝΟ Τ.Κ. | F2: Ζ
A3: 15178 | B3: F | C3: BILENNE ANNE-LAURENCE | D3: 1978 | E3: Ε.Φ.Τ.ΑΙΟΛΙΚΗ | F3: Β
A4: 13913 | B4: F | C4: GRAIG EMILI-ΑΛΕΞΑΝΔΡΑ | D4: 1988 | E4: Ο.Α.ΣΚΙΑΘΟΥ | F4: Ε
A5: 13912 | B5: F | C5: GRAIG ΛΩΡΑ-ΘΕΟΔΩΡΑ | D5: 1986 | E5: Ο.Α.ΣΚΙΑΘΟΥ | F5: Ε
A6: 6250 | B6: F | C6: JELIAZKOVA VESSELINA | D6: 1973 | E6: Ο.Α.ΧΑΝΙΩΝ | F6: Ζ
A7: 3616 | B7: M | C7: LINDSTROM-THORSTEN GRAHAM | D7: 1975 | E7: Ο.Α.ΓΛΥΦΑΔΑΣ | F7: ΙΑ
A8: 3692 | B8: F | C8: MAFFRE SANDRINE | D8: 1977 | E8: Ο.Α.ΖΩΓΡΑΦΟΥ | F8: Η
A9: 3660 | B9: M | C9: OHAYON SAMUEL | D9: 1972 | E9: Ο.Α.ΖΩΓΡΑΦΟΥ | F9: Η
A10: 14695 | B10: M | C10: RANDELL ΜΑΡΚΟΣ | D10: 1984 | E10: ΖΑΚΥΝΘΙΝΟΣ Α.Ο. | F10: ΣΤ
A11: 15069 | B11: M | C11: SAVINO STEVEN-JASON | D11: 1975 | E11: Ο.Α.ΘΕΣΣΑΛΟΝΙΚΗΣ | F11: Β
A12: 14954 | B12: M | C12: SCIDONE PAOLO | D12: 1967 | E12: Ο.Α.ΣΥΡΟΥ | F12: Η
A13: 10846 | B13: M | C13: SHLUTER THOMAS | D13: 1966 | E13: Ε.Φ.Τ.ΑΙΟΛΙΚΗ | F13: Β
A14: 8425 | B14: M | C14: VAN-SEEGELEN JAN | D14: 1982 | E14: Α.Ν.Ο.ΓΛΥΦΑΔΑΣ | F14: ΙΑ
A15: 11669 | B15: F | C15: WOODCOCK MICAH | D15: 1988 | E15: Α.Ε.ΠΟΡΤΟ ΡΑΦΤΗ | F15: Η
A16: 11668 | B16: M | C16: WOODCOCK STEPHEN-MICHEL | D16: 1985 | E16: Α.Ε.ΠΟΡΤΟ ΡΑΦΤΗ | F16: Η
A17: 33811 | B17: M | C17: ΑΑΡΩΝ ΙΩΣΗΦ | D17: 1999 | E17: Α.Ο.ΤΑΤΟΪΟΥ | F17: Η
A18: 1401 | B18: F | C18: ΑΒΑΒΙΑΝ ΣΙΡΑΡΠΗ | D18: 1968 | E18: Α.Κ.ΖΩΓΡΑΦΟΥ | F18: ΙΑ
A19: 7294 | B19: M | C19: ΑΒΑΓΙΑΝΝΟΣ ΔΗΜΗΤΡΙΟΣ | D19: 1967 | E19: Α.Ο.ΜΥΤΙΛΗΝΗΣ | F19: Θ
A20: 9164 | B20: M | C20: ΑΒΑΓΙΑΝΟΣ ΧΡΗΣΤΟΣ | D20: 1980 | E20: Ο.Α.ΑΘΗΝΩΝ | F20: Η
A21: 12943 | B21: F | C21: ΑΒΑΓΙΑΝΟΥ ΘΑΛΙΑ | D21: 1983 | E21: Α.Ο.ΜΥΤΙΛΗΝΗΣ | F21: Θ
A22: 37876 | B22: F | C22: ΑΒΑΓΙΑΝΟΥ ΜΑΡΙΑ | D22: 2001 | E22: Α.Ο.ΜΕΓΑΣ ΑΛΕΞΑΝΔΡΟΣ | F22: ΙΑ
A23: 33258 | B23: F | C23: ΑΒΑΚΙΑΝ ΙΩΑΝΝΑ | D23: 1996 | E23: Α.Ο.Α.ΚΑΤΕΡΙΝΗΣ | F23: Γ
A24: 33257 | B24: F | C24: ΑΒΑΚΙΑΝ ΜΑΡΙΑ | D24: 1991 | E24: Α.Ο.Α.ΚΑΤΕΡΙΝΗΣ | F24: Γ
A25: 31383 | B25: M | C25: ΑΒΑΤΑΓΓΕΛΟΣ ΓΕΩΡΓΙΟΣ | D25: 2002 | E25: Σ.Α.ΣΕΡΡΩΝ | F25: Α
A26: 32009 | B26: M | C26: ΑΒΑΤΑΓΓΕΛΟΣ ΧΡΗΣΤΟΣ | D26: 1998 | E26: Σ.Α.ΣΕΡΡΩΝ | F26: Α
A27: 2975 | B27: M | C27: ΑΒΒΟΤΤ ΦΙΛΙΠΠΟΣ | D27: 1976 | E27: Ο.Α.ΚΑΣΤΟΡΙΑΣ ΚΕΛΕΤΡΟΝ | F27: Γ
A28: 15896 | B28: M | C28: ΑΒΔΑΛΑΣ ΙΩΑΝΝΗΣ | D28: 1988 | E28: Ο.Α.ΙΩΛΚΟΣ ΒΟΛΟΥ | F28: Ε
A29: 28282 | B29: M | C29: ΑΒΔΗΜΙΩΤΗΣ ΔΗΜΗΤΡΙΟΣ | D29: 1998 | E29: Ο.Α.ΤΟΥΜΠΑΣ | F29: Β
A30: 22676 | B30: M | C30: ΑΒΔΗΜΙΩΤΗΣ ΘΩΜΑΣ | D30: 1997 | E30: Ο.Α.ΤΟΥΜΠΑΣ | F30: Β
A31: 28281 | B31: M | C31: ΑΒΔΗΜΙΩΤΗΣ ΚΩΝΣΤΑΝΤΙΝΟΣ | D31: 1994 | E31: Ο.Α.ΤΟΥΜΠΑΣ | F31: Β
A32: 25780 | B32: F | C32: ΑΒΔΙΚΟΥ ΜΑΤΙΝΑ | D32: 1993 | E32: Γ.Ο.ΠΕΡΙΣΤΕΡΙΟΥ Γ.ΠΑΛΑΣΚΑΣ | F32: Θ
A33: 7672 | B33: M | C33: ΑΒΟΥΡΗΣ ΕΜΜΑΝΟΥΗΛ | D33: 1976 | E33: ΖΑΚΥΝΘΙΝΟΣ Α.Ο. | F33: ΣΤ
A34: 33755 | B34: M | C34: ΑΒΟΥΡΗΣ ΕΥΡΙΠΙΔΗΣ | D34: 1997 | E34: Ο.Α.ΡΙΟΥ | F34: ΣΤ
A35: 30634 | B35: F | C35: ΑΒΡΑΑΜ ΕΛΕΥΘΕΡΙΑ | D35: 2001 | E35: Α.Ο.Α.ΠΡΩΤΑΘΛ.ΚΑΒΑΛΑΣ | F35: Α
A36: 18558 | B36: F | C36: ΑΒΡΑΜΑΚΟΥ ΑΓΓΕΛΙΚΗ | D36: 1992 | E36: Γ.Ο.ΠΕΡΙΣΤΕΡΙΟΥ Γ.ΠΑΛΑΣΚΑΣ | F36: Θ
A37: 19612 | B37: F | C37: ΑΒΡΑΜΑΚΟΥ ΑΓΓΕΛΙΚΗ | D37: 1992 | E37: Γ.Ο.ΠΕΡΙΣΤΕΡΙΟΥ Γ.ΠΑΛΑΣΚΑΣ | F37: Θ
A38: 39107 | B38: M | C38: ΑΒΡΑΜΙΔΗΣ ΑΛΚΙΒΙΑΔΗΣ | D38: 2001 | E38: Α.Σ.Α.ΓΡΕΒΕΝΩΝ | F38: Γ
A39: 33543 | B39: M | C39: ΑΒΡΑΜΙΔΗΣ ΑΝΑΣΤΑΣΙΟΣ | D39: 1997 | E39: Ν.Ο.ΘΕΣΣΑΛΟΝΙΚΗΣ | F39: Β
A40: 25111 | B40: M | C40: ΑΒΡΑΜΙΔΗΣ ΒΥΡΩΝ | D40: 1996 | E40: Ο.Α.ΕΥΟΣΜΟΥ ΘΕΣΣΑΛΟΝΙΚΗΣ | F40: Β
A41: 6154 | B41: M | C41: ΑΒΡΑΜΙΔΗΣ ΓΕΩΡΓΙΟΣ | D41: 1967 | E41: Α.Ο.ΚΗΦΙΣΙΑΣ | F41: Η
A42: 32805 | B42: M | C42: ΑΒΡΑΜΙΔΗΣ ΙΩΑΝΝΗΣ | D42: 2002 | E42: Ο.Α.ΑΛΕΞΑΝΔΡΟΣ ΒΕΡΟΙΑΣ | F42: Γ
A43: 24892 | B43: M | C43: ΑΒΡΑΜΙΔΗΣ ΚΩΝΣΤΑΝΤΙΝΟΣ | D43: 1996 | E43: Σ.Α.ΔΡΑΜΑΣ | F43: Α
A44: 5691 | B44: M | C44: ΑΒΡΑΜΙΔΗΣ ΜΑΡΙΟΣ | D44: 1974 | E44: Ο.Α.ΒΙΚΕΛΑΣ ΒΕΡΟΙΑΣ | F44: Γ
A45: 4801 | B45: M | C45: ΑΒΡΑΜΙΔΗΣ ΝΙΚΟΛΑΟΣ | D45: 1981 | E45: Σ.Α.ΣΕΡΡΩΝ | F45: Α
A46: 9994 | B46: M | C46: ΑΒΡΑΜΙΔΗΣ ΠΑΝΤΕΛΗΣ-ΑΡΗΣ | D46: 1983 | E46: Λ.Α.ΚΟΜΟΤΗΝΗΣ | F46: Α
A47: 32724 | B47: F | C47: ΑΒΡΑΜΙΔΟΥ ΕΛΕΝΗ | D47: 2001 | E47: Ο.Α.ΠΑΝΟΡΑΜΑΤΟΣ | F47: Β
A48: 3326 | B48: F | C48: ΑΒΡΑΜΙΔΟΥ ΘΕΟΔΩΡΑ | D48: 1975 | E48: Ε.Φ.Τ.ΑΙΟΛΙΚΗ | F48: Β
A49: 8254 | B49: F | C49: ΑΒΡΑΜΙΔΟΥ ΙΩΑΝΝΑ | D49: 1985 | E49: Σ.Α.ΣΕΡΡΩΝ | F49: Α
A50: 15171 | B50: F | C50: ΑΒΡΑΜΙΔΟΥ ΜΑΡΙΑ | D50: 1988 | E50: Σ.Α.ΔΡΑΜΑΣ | F50: Α
A51: 26619 | B51: F | C51: ΑΒΡΑΜΙΔΟΥ ΜΑΡΙΑ | D51: 1998 | E51: Ο.Α.ΚΑΒΑΛΑΣ ΑΛΕΞΑΝΔΡΟΣ | F51: Α
A52: 34868 | B52: F | C52: ΑΒΡΑΜΙΔΟΥ ΠΑΝΑΓΙΩΤΑ | D52: 2001 | E52: Α.Ο.Α.ΣΤΑΥΡΟΥΠΟΛΗΣ ΙΦΙΤΟΣ | F52: Β
A53: 24893 | B53: F | C53: ΑΒΡΑΜΙΔΟΥ ΣΟΦΙΑ | D53: 1997 | E53: Σ.Α.ΔΡΑΜΑΣ | F53: Α
A54: 7368 | B54: F | C54: ΑΒΡΑΜΙΔΟΥ ΦΩΤΕΙΝΗ-ΜΑΡΙΑ | D54: 1981 | E54: Ο.Α.ΚΙΛΚΙΣ | F54: Β
A55: 18892 | B55: F | C55: ΑΒΡΑΜΙΩΤΗ ΕΛΕΝΗ | D55: 1993 | E55: Ο.Α.ΤΡΙΚΑΛΩΝ | F55: Ε
A56: 1982 | B56: M | C56: ΑΒΡΑΜΟΠΟΥΛΟΣ ΓΙΩΡΓΟΣ | D56: 1969 | E56: Ο.Α.ΚΑΛΑΜΑΤΑΣ | F56: ΣΤ
A57: 8748 | B57: F | C57: ΑΒΡΑΜΟΠΟΥΛΟΥ ΑΝΔΡΟΜΑΧΗ | D57: 1984 | E57: Ο.Α.ΕΔΕΣΣΑΣ | F57: Γ
A58: 21056 | B58: M | C58: ΑΒΡΑΜΟΥΔΗΣ ΧΡΗΣΤΟΣ | D58: 1989 | E58: Α.Ο.ΜΕΓΑΣ ΑΛΕΞΑΝΔΡΟΣ | F58: ΙΑ
A59: 9232 | B59: F | C59: ΑΒΡΑΝΑ ΑΓΛΑΪΑ | D59: 1983 | E59: Σ.Α.ΕΛΑΣΣΟΝΑΣ | F59: Ε
A60: 9230 | B60: F | C60: ΑΒΡΑΝΑ ΣΟΦΙΑ | D60: 1983 | E60: Σ.Α.ΕΛΑΣΣΟΝΑΣ | F60: Ε
A61: 9231 | B61: M | C61: ΑΒΡΑΝΑΣ ΔΗΜΗΤΡΙΟΣ | D61: 1982 | E61: Σ.Α.ΕΛΑΣΣΟΝΑΣ | F61: Ε
A62: 12202 | B62: F | C62: ΑΒΡΑΝΤΙΝΗ ΕΛΕΝΗ | D62: 1987 | E62: Α.Ο.Α.ΠΑΤΡΩΝ | F62: ΣΤ
A63: 9395 | B63: F | C63: ΑΒΡΑΠΟΓΛΟΥ ΕΙΡΗΝΗ | D63: 1987 | E63: Ο.Α.ΑΓΙΑΣ ΠΑΡΑΣΚΕΥΗΣ | F63: Η
A64: 16554 | B64: M | C64: ΑΒΡΑΤΟΓΛΟΥ ΜΙΧΑΗΛ | D64: 1989 | E64: Α.Ο.ΔΙΛΟΦΟ ΒΑΡΗΣ | F64: Η
A65: 3935 | B65: M | C65: ΑΒΡΟΝΙΔΑΚΗΣ ΚΩΝΣΤΑΝΤΙΝΟΣ | D65: 1978 | E65: Α.Σ.ΣΠΑΡΤΑΚΟΣ ΓΛΥΦΑΔΑΣ | F65: ΙΑ
A66: 26266 | B66: M | C66: ΑΒΤΖΗΣ ΘΕΟΔΩΡΟΣ | D66: 1970 | E66: Ο.Α.Ο ΦΙΛΑΘΛΟΣ | F66: Η
A67: 29846 | B67: M | C67: ΑΓΑΖΑΝΗΣ ΠΕΤΡΟΣ | D67: 1982 | E67: Ο.Α.ΚΑΙΣΑΡΙΑΝΗΣ | F67: Θ
A68: 38828 | B68: M | C68: ΑΓΑΘΑΓΓΕΛΙΔΗΣ ΚΩΝΣΤΑΝΤΙΝΟΣ | D68: 2001 | E68: Α.Σ.ΠΑΡΝΗΘΑΣ | F68: Θ
A69: 31453 | B69: F | C69: ΑΓΑΘΑΓΓΕΛΙΔΟΥ ΖΗΝΟΒΙΑ | D69: 2000 | E69: Γ.Α.Σ.ΚΑΡΑΤΕ ΕΡΜΗΣ | F69: Γ
A70: 37370 | B70: F | C70: ΑΓΑΘΑΓΓΕΛΟΥ ΜΑΡΙΑ | D70: 2001 | E70: Α.Σ.Α.ΖΕΦΥΡΟΣ | F70: Γ
A71: 7700 | B71: F | C71: ΑΓΑΘΟΝΙΚΙΑΔΟΥ ΑΝΝΑ | D71: 1980 | E71: Α.Ο.ΑΜΥΝΤΑΣ ΥΜΗΤΤΟΥ | F71: ΙΑ
A72: 26293 | B72: M | C72: ΑΓΑΘΟΣ ΔΗΜΗΤΡΙΟΣ | D72: 1995 | E72: ΚΕΡΚΥΡΑΪΚΗ Λ.Τ. | F72: Δ
A73: 29661 | B73: M | C73: ΑΓΑΘΟΣ ΙΩΑΝΝΗΣ | D73: 2000 | E73: Ο.Α.ΚΕΡΚΥΡΑΣ | F73: Δ
A74: 11715 | B74: M | C74: ΑΓΑΘΟΣ ΣΠΥΡΟΣ | D74: 1987 | E74: ΚΕΡΚΥΡΑΪΚΗ Λ.Τ. | F74: Δ
A75: 15403 | B75: F | C75: ΑΓΑΘΟΥ ΕΛΕΝΗ-ΑΛΙΚΗ | D75: 1985 | E75: Ο.Α.ΚΕΡΚΥΡΑΣ | F75: Δ
A76: 18725 | B76: F | C76: ΑΓΑΘΟΥ ΕΛΙΣΑΒΕΤ | D76: 1987 | E76: Α.Γ.Σ.ΜΥΛΩΝ Ο ΛΕΡΝΟΣ | F76: ΣΤ
A77: 12997 | B77: F | C77: ΑΓΑΘΟΥ ΝΑΤΑΛΙ | D77: 1985 | E77: Α.Α.Α.ΑΛΙΜΟΥ | F77: ΙΑ
A78: 12996 | B78: F | C78: ΑΓΑΘΟΥ ΣΥΛΒΙΑ | D78: 1988 | E78: Α.Α.Α.ΑΛΙΜΟΥ | F78: ΙΑ
A79: 30178 | B79: F | C79: ΑΓΑΚΕΧΑΓΙΑ ΖΩΗ | D79: 2001 | E79: Α.Ο.Α.ΣΤΑΥΡΟΥΠΟΛΗΣ ΙΦΙΤΟΣ | F79: Β
A80: 38610 | B80: F | C80: ΑΓΑΛΙΑ ΕΛΙΣΑΒΕΤ | D80: 2002 | E80: Ο.Α.ΑΓΡΙΝΙΟΥ | F80: Δ
A81: 18903 | B81: M | C81: ΑΓΑΛΙΑΝΟΣ ΑΘΑΝΑΣΙΟΣ | D81: 1989 | E81: ΖΑΚΥΝΘΙΝΟΣ Α.Ο. | F81: ΣΤ
A82: 28051 | B82: M | C82: ΑΓΑΛΙΑΝΟΣ ΑΛΕΞΑΝΔΡΟΣ | D82: 1966 | E82: ΦΙΛΑΘΛ.ΟΜΙΛΟΣ ΠΥΡΓΟΥ | F82: ΣΤ
A83: 14685 | B83: M | C83: ΑΓΑΛΙΑΝΟΣ ΣΠΥΡΟΣ | D83: 1986 | E83: ΖΑΚΥΝΘΙΝΟΣ Α.Ο. | F83: ΣΤ
A84: 11852 | B84: F | C84: ΑΓΑΛΙΑΝΟΥ ΕΥΔΟΚΙΑ | D84: 1984 | E84: ΖΑΚΥΝΘΙΝΟΣ Α.Ο. | F84: ΣΤ
A85: 29987 | B85: F | C85: ΑΓΑΛΙΩΤΗ ΣΟΦΙΑ | D85: 2000 | E85: Α.Ε.Τ.ΝΙΚΗ ΠΑΤΡΩΝ | F85: ΣΤ
A86: 25670 | B86: M | C86: ΑΓΑΛΙΩΤΗΣ ΓΕΡΑΣΙΜΟΣ | D86: 1997 | E86: ΖΑΚΥΝΘΙΝΟΣ Α.Ο. | F86: ΣΤ
A87: 28542 | B87: M | C87: ΑΓΑΛΙΩΤΗΣ ΘΕΟΔΟΣΗΣ | D87: 1999 | E87: Α.Ε.Τ.ΝΙΚΗ ΠΑΤΡΩΝ | F87: ΣΤ
A88: 18811 | B88: M | C88: ΑΓΑΛΙΩΤΗΣ ΧΑΡΑΛΑΜΠΟΣ | D88: 1991 | E88: Ο.Α.ΓΛΥΦΑΔΑΣ | F88: ΙΑ
A89: 6254 | B89: F | C89: ΑΓΑΠΑΚΗ ΟΡΣΑΛΙΑ | D89: 1982 | E89: Ο.Α.ΖΩΓΡΑΦΟΥ | F89: Η
A90: 38748 | B90: M | C90: ΑΓΑΠΑΚΗΣ ΧΡΗΣΤΟΣ | D90: 2000 | E90: Α.Σ.Α.ΛΑΡΙΣΑΣ | F90: Ε
A91: 9745 | B91: M | C91: ΑΓΑΠΗΤΟΣ ΓΕΩΡΓΙΟΣ | D91: 1977 | E91: Α.Κ.Α.ΜΑΡΑΘΩΝΑ | F91: Η
A92: 6336 | B92: M | C92: ΑΓΑΠΗΤΟΣ ΔΗΜΗΤΡΙΟΣ | D92: 1981 | E92: Α.Σ.Α.ΜΥΤΙΛΗΝΗΣ | F92: Θ
A93: 12099 | B93: M | C93: ΑΓΑΠΗΤΟΣ ΝΙΚΟΛΑΟΣ | D93: 1982 | E93: Α.Σ.Α.ΛΑΡΙΣΑΣ | F93: Ε
A94: 6334 | B94: F | C94: ΑΓΑΠΗΤΟΥ ΦΛΩΡΑ | D94: 1976 | E94: Α.Σ.Α.ΜΥΤΙΛΗΝΗΣ | F94: Θ
A95: 15064 | B95: F | C95: ΑΓΑΠΗΤΟΥ ΧΡΥΣΑ | D95: 1979 | E95: Ε.Φ.Τ.ΑΙΟΛΙΚΗ | F95: Β
A96: 11261 | B96: F | C96: ΑΓΑΠΙΟΥ ΗΡΩ | D96: 1986 | E96: Ο.Α.ΣΑΛΑΜΙΝΑΣ | F96: Θ
A97: 8226 | B97: M | C97: ΑΓΑΠΙΟΥ ΙΩΑΝΝΗΣ | D97: 1977 | E97: Ο.Α.ΣΑΛΑΜΙΝΑΣ | F97: Θ
A98: 8227 | B98: M | C98: ΑΓΑΠΙΟΥ ΣΤΑΥΡΟΣ | D98: 1977 | E98: Ο.Α.ΣΑΛΑΜΙΝΑΣ | F98: Θ
A99: 28008 | B99: M | C99: ΑΓΑΣ ΑΝΤΩΝΗΣ | D99: 1999 | E99: Σ.Φ.Α.ΜΕΛΙΣΣΙΩΝ Ο ΦΟΙΒΟΣ | F99: Η
A100: 18238 | B100: M | C100: ΑΓΑΤΣΙΩΤΗΣ ΑΝΤΩΝΙΟΣ | D100: 1992 | E100: Ο.Α.ΕΥΟΣΜΟΥ ΘΕΣΣΑΛΟΝΙΚΗΣ | F100: Β
A101: 24755 | B101: F | C101: ΑΓΓΕΛΑΚΗ ΑΝΝΑ | D101: 1999 | E101: Α.Σ.Α.ΛΑΡΙΣΑΣ | F101: Ε
A102: 21915 | B102: F | C102: ΑΓΓΕΛΑΚΗ ΓΑΡΕΦΑΛΙΑ | D102: 1996 | E102: Γ.Σ.ΛΙΒΥΚΟΣ ΙΕΡΑΠΕΤΡΑΣ | F102: Ζ
A103: 23628 | B103: F | C103: ΑΓΓΕΛΑΚΗ ΕΥΑΣΤΑΘΙΑ | D103: 1994 | E103: Γ.Σ.ΛΙΒΥΚΟΣ ΙΕΡΑΠΕΤΡΑΣ | F103: Ζ
A104: 23653 | B104: F | C104: ΑΓΓΕΛΑΚΗ ΙΩΑΝΝΑ | D104: 1996 | E104: Ο.Α.ΣΟΥΔΑΣ | F104: Ζ
A105: 37875 | B105: F | C105: ΑΓΓΕΛΑΚΗ ΚΑΤΕΡΙΝΑ | D105: 1980 | E105: Α.Ο.ΤΑΤΟΪΟΥ | F105: Η
A106: 22996 | B106: F | C106: ΑΓΓΕΛΑΚΗ ΚΥΡΙΑΚΗ-ΑΛΕΞΑΝΔΡΑ | D106: 1995 | E106: Α.Κ.Α.ΜΑΡΑΘΩΝΑ | F106: Η
A107: 7739 | B107: F | C107: ΑΓΓΕΛΑΚΗ ΜΑΡΙΑ | D107: 1982 | E107: Α.Ο.Α.ΗΛΙΟΥΠΟΛΗΣ | F107: ΙΑ
A108: 35117 | B108: F | C108: ΑΓΓΕΛΑΚΗ ΝΕΦΕΛΗ | D108: 2001 | E108: Α.Ο.ΤΑΤΟΪΟΥ | F108: Η
A109: 24748 | B109: F | C109: ΑΓΓΕΛΑΚΗ ΝΙΚΟΛΕΤΤΑ | D109: 2001 | E109: Ο.Α.ΝΙΚΑΙΑ ΛΑΡΙΣΑΣ | F109: Ε
A110: 16983 | B110: F | C110: ΑΓΓΕΛΑΚΗ ΣΟΦΙΑ | D110: 1990 | E110: Γ.Σ.ΛΙΒΥΚΟΣ ΙΕΡΑΠΕΤΡΑΣ | F110: Ζ
A111: 35118 | B111: F | C111: ΑΓΓΕΛΑΚΗ ΦΑΙΔΡΑ | D111: 2001 | E111: Α.Ο.ΤΑΤΟΪΟΥ | F111: Η
A112: 28187 | B112: M | C112: ΑΓΓΕΛΑΚΗΣ ΑΓΓΕΛΟΣ-ΣΑΒΒΑΣ | D112: 2000 | E112: Γ.Σ.ΛΙΒΥΚΟΣ ΙΕΡΑΠΕΤΡΑΣ | F112: Ζ
A113: 31175 | B113: M | C113: ΑΓΓΕΛΑΚΗΣ ΑΛΕΞΑΝΔΡΟΣ | D113: 1997 | E113: Α.Μ.Ε.Σ.Ν.ΕΡΥΘΡΑΙΑΣ | F113: Η
A114: 15785 | B114: M | C114: ΑΓΓΕΛΑΚΗΣ ΕΥΑΓΓΕΛΟΣ-ΣΤΥΛΙΑΝΟΣ | D114: 1991 | E114: Σ.Α.ΣΕΡΡΩΝ | F114: Α
A115: 24170 | B115: M | C115: ΑΓΓΕΛΑΚΗΣ ΙΩΣΗΦ | D115: 1995 | E115: Σ.Α.ΓΑΛΑΤΣΙΟΥ | F115: Θ
A116: 13170 | B116: M | C116: ΑΓΓΕΛΑΚΗΣ ΚΩΝΣΤΑΝΤΙΝΟΣ | D116: 1987 | E116: Α.Ο.ΒΑΡΗΣ ΑΝΑΓΥΡΟΥΣ | F116: Η
A117: 22997 | B117: M | C117: ΑΓΓΕΛΑΚΗΣ ΚΩΝΣΤΑΝΤΙΝΟΣ | D117: 1997 | E117: Α.Κ.Α.ΜΑΡΑΘΩΝΑ | F117: Η
A118: 17744 | B118: M | C118: ΑΓΓΕΛΑΚΗΣ ΚΩΝΣΤΑΝΤΙΝΟΣ-ΑΝΤΩΝΙΟΣ | D118: 1987 | E118: Α.Ο.Π.ΦΑΛΗΡΟΥ | F118: ΙΑ
A119: 18172 | B119: M | C119: ΑΓΓΕΛΑΚΗΣ ΜΙΛΤΙΑΔΗΣ | D119: 1994 | E119: Γ.Α.Σ.ΝΙΓΡΙΤΑΣ ΒΙΣΑΛΤΗΣ | F119: Α
A120: 34875 | B120: M | C120: ΑΓΓΕΛΑΚΗΣ ΝΙΚΟΛΑΟΣ | D120: 1969 | E120: Α.Ο.ΤΑΤΟΪΟΥ | F120: Η
A121: 22727 | B121: M | C121: ΑΓΓΕΛΑΚΗΣ ΟΡΕΣΤΗΣ | D121: 1994 | E121: Γ.Σ.ΛΙΒΥΚΟΣ ΙΕΡΑΠΕΤΡΑΣ | F121: Ζ
A122: 4226 | B122: M | C122: ΑΓΓΕΛΑΚΗΣ ΣΠΥΡΙΔΩΝ | D122: 1979 | E122: Ο.Α.ΞΑΝΘΗΣ | F122: Α
A123: 25034 | B123: F | C123: ΑΓΓΕΛΑΚΟΥ ΑΙΚΑΤΕΡΙΝΗ | D123: 1999 | E123: Ο.Α.ΠΕΙΡΑΙΑ | F123: Θ
A124: 31891 | B124: F | C124: ΑΓΓΕΛΑΚΟΥ ΠΑΡΑΣΚΕΥΗ | D124: 2001 | E124: Ο.Α.ΣΠΑΡΤΗΣ | F124: ΣΤ
A125: 11617 | B125: F | C125: ΑΓΓΕΛΑΣΟΠΟΥΛΟΥ ΕΥΑΓΓΕΛΙΑ | D125: 1982 | E125: Ο.Α.ΑΓΙΑΣ ΠΑΡΑΣΚΕΥΗΣ | F125: Η
A126: 25681 | B126: F | C126: ΑΓΓΕΛΑΤΟΥ-ΡΑΦΤΟΠΟΥΛΟΥ ΑΝΑΣΤΑΣΙΑ-ΑΛΕΞΑΝΔΡΑ | D126: 1999 | E126: Α.Ο.Α.ΗΛΙΟΥΠΟΛΗΣ | F126: ΙΑ
A127: 23858 | B127: M | C127: ΑΓΓΕΛΕΤΟΣ ΔΗΜΗΤΡΗΣ | D127: 1995 | E127: Σ.Φ.Α.ΜΕΛΙΣΣΙΩΝ Ο ΦΟΙΒΟΣ | F127: Η
A128: 24647 | B128: M | C128: ΑΓΓΕΛΕΤΟΣ ΛΕΩΝΙΔΑΣ | D128: 1996 | E128: Γ.Ο.ΠΕΡΙΣΤΕΡΙΟΥ Γ.ΠΑΛΑΣΚΑΣ | F128: Θ
A129: 3139 | B129: F | C129: ΑΓΓΕΛΗ ΑΘΗΝΑ | D129: 1974 | E129: Α.Κ.ΖΩΓΡΑΦΟΥ | F129: ΙΑ
A130: 24724 | B130: F | C130: ΑΓΓΕΛΗ ΑΛΚΜΗΝΗ | D130: 1999 | E130: Α.Σ.Α.ΛΑΡΙΣΑΣ | F130: Ε
A131: 3834 | B131: F | C131: ΑΓΓΕΛΗ ΑΡΓΥΡΟΥΛΑ | D131: 1980 | E131: Α.Ο.ΑΡΓΥΡΟΥΠΟΛΗΣ | F131: ΙΑ
A132: 12860 | B132: F | C132: ΑΓΓΕΛΗ ΒΑΣΙΛΙΚΗ | D132: 1985 | E132: Ο.Α.ΣΟΦΑΔΩΝ & ΚΑΡΔΙΤΣΑΣ ΟΛΥΜΠΙΑΔΑ | F132: Ε
A133: 9944 | B133: F | C133: ΑΓΓΕΛΗ ΓΕΩΡΓΙΑ | D133: 1977 | E133: Γ.Ε.ΑΤΑΛΑΝΤΗΣ | F133: Ε
A134: 32835 | B134: F | C134: ΑΓΓΕΛΗ ΔΑΝΑΗ | D134: 2000 | E134: Ο.Α.ΑΡΤΑΣ | F134: Δ
A135: 10646 | B135: F | C135: ΑΓΓΕΛΗ ΕΛΙΣΣΑΒΕΤ | D135: 1986 | E135: ΦΘΙΩΤΙΚΟΣ Ο.Α. | F135: Ε
A136: 5199 | B136: F | C136: ΑΓΓΕΛΗ ΕΥΑΓΓΕΛΙΑ | D136: 1979 | E136: Α.Γ.Ο.ΦΙΛΙΠΠΙΑΔΑΣ | F136: Δ
A137: 22654 | B137: F | C137: ΑΓΓΕΛΗ ΕΥΑΓΓΕΛΙΑ | D137: 1995 | E137: Α.Ο.Α.ΣΤΑΥΡΟΥΠΟΛΗΣ ΙΦΙΤΟΣ | F137: Β
A138: 16940 | B138: F | C138: ΑΓΓΕΛΗ ΙΟΥΛΙΑ | D138: 1987 | E138: Α.Σ.Α.ΛΑΡΙΣΑΣ | F138: Ε
A139: 24185 | B139: F | C139: ΑΓΓΕΛΗ ΜΑΡΙΑ | D139: 1993 | E139: Ο.Α.ΚΑΛΑΜΑΤΑΣ | F139: ΣΤ
A140: 10649 | B140: F | C140: ΑΓΓΕΛΗ ΠΑΝΑΓΙΩΤΑ | D140: 1985 | E140: ΦΘΙΩΤΙΚΟΣ Ο.Α. | F140: Ε
A141: 24186 | B141: F | C141: ΑΓΓΕΛΗ ΣΟΦΙΑ | D141: 1992 | E141: Ο.Α.ΚΑΛΑΜΑΤΑΣ | F141: ΣΤ
A142: 9624 | B142: F | C142: ΑΓΓΕΛΗ ΦΩΤΕΙΝΗ | D142: 1983 | E142: Α.Ο.Α.ΠΑΠΑΓΟΥ | F142: ΙΑ
A143: 1366 | B143: F | C143: ΑΓΓΕΛΗ ΧΑΡΙΚΛΕΙΑ | D143: 1968 | E143: Α.Κ.ΖΩΓΡΑΦΟΥ | F143: ΙΑ
A144: 25185 | B144: M | C144: ΑΓΓΕΛΗΣ ΑΛΕΞΑΝΔΡΟΣ | D144: 1994 | E144: Ο.Α.ΑΛΕΞΑΝΔΡΟΥΠΟΛΗΣ | F144: Α
A145: 17190 | B145: M | C145: ΑΓΓΕΛΗΣ ΒΑΪΟΣ | D145: 1990 | E145: Ο.Α.ΑΓ.ΣΟΥΛΑ ΣΟΡΩΝΗΣ ΡΟΔΟΥ | F145: Θ
A146: 19688 | B146: M | C146: ΑΓΓΕΛΗΣ ΒΑΣΙΛΕΙΟΣ | D146: 1995 | E146: ΑΚΑΔ.ΑΝΤΙΣΦ.ΙΩΑΝΝΙΝΩΝ | F146: Δ
A147: 11969 | B147: M | C147: ΑΓΓΕΛΗΣ ΓΙΩΡΓΟΣ | D147: 1982 | E147: Ο.Α.ΛΑΜΙΑΣ | F147: Ε
A148: 13824 | B148: M | C148: ΑΓΓΕΛΗΣ ΓΙΩΡΓΟΣ | D148: 1975 | E148: Α.Ο.Π.ΦΑΛΗΡΟΥ | F148: ΙΑ
A149: 19946 | B149: M | C149: ΑΓΓΕΛΗΣ ΔΗΜΗΤΡΙΟΣ | D149: 1993 | E149: Α.Ε.ΠΟΡΤΟ ΡΑΦΤΗ | F149: Η
A150: 6513 | B150: M | C150: ΑΓΓΕΛΗΣ ΕΥΑΓΓΕΛΟΣ | D150: 1978 | E150: Ο.Α.ΑΡΤΑΣ | F150: Δ
A151: 17189 | B151: M | C151: ΑΓΓΕΛΗΣ ΕΥΑΓΓΕΛΟΣ | D151: 1990 | E151: Ο.Α.ΑΓ.ΣΟΥΛΑ ΣΟΡΩΝΗΣ ΡΟΔΟΥ | F151: Θ
A152: 24666 | B152: M | C152: ΑΓΓΕΛΗΣ ΕΥΑΓΓΕΛΟΣ | D152: 1996 | E152: Α.Σ.Α.ΛΑΡΙΣΑΣ | F152: Ε
A153: 3137 | B153: M | C153: ΑΓΓΕΛΗΣ ΚΩΝΣΤΑΝΤΙΝΟΣ | D153: 1973 | E153: Α.Κ.ΖΩΓΡΑΦΟΥ | F153: ΙΑ
A154: 11831 | B154: M | C154: ΑΓΓΕΛΗΣ ΚΩΝΣΤΑΝΤΙΝΟΣ | D154: 1986 | E154: Α.Ο.Α.ΠΑΠΑΓΟΥ | F154: ΙΑ
A155: 32837 | B155: M | C155: ΑΓΓΕΛΗΣ ΚΩΝΣΤΑΝΤΙΝΟΣ | D155: 2002 | E155: Ο.Α.ΑΡΤΑΣ | F155: Δ
A156: 34371 | B156: M | C156: ΑΓΓΕΛΗΣ ΜΙΧΑΗΛ | D156: 2002 | E156: Α.Ο.Α.ΑΙΓΑΛΕΩ 92 | F156: Θ
A157: 28430 | B157: M | C157: ΑΓΓΕΛΗΣ ΣΠΥΡΙΔΩΝ | D157: 1969 | E157: ΚΕΝΤΡΟ ΑΝΤΙΣΦΑΙΡΙΣΗΣ ΛΙΒΑΔΕΙΑΣ | F157: Ε
A158: 22778 | B158: F | C158: ΑΓΓΕΛΙΔΗ ΓΑΒΡΙΕΛΑ-ΦΑΝΗ | D158: 1995 | E158: Α.Ν.Ο.ΓΛΥΦΑΔΑΣ | F158: ΙΑ
A159: 27981 | B159: F | C159: ΑΓΓΕΛΙΔΗ ΕΥΓΕΝΙΑ | D159: 1999 | E159: Γ.Σ.ΙΤΕΑΣ | F159: Ε
A160: 12622 | B160: F | C160: ΑΓΓΕΛΙΔΗ ΤΑΤΙΑΝΑ | D160: 1981 | E160: Α.Ο.ΤΑΤΑΥΛΑ ΚΩΝΣΤΑΝΤΙΝΟΥΠΟΛΕΩΣ | F160: ΙΑ
A161: 25237 | B161: M | C161: ΑΓΓΕΛΙΔΗΣ ΑΓΓΕΛΟΣ | D161: 1997 | E161: Ο.Α.ΑΘΗΝΩΝ | F161: Η
A162: 7120 | B162: M | C162: ΑΓΓΕΛΙΔΗΣ ΑΘΑΝΑΣΙΟΣ | D162: 1982 | E162: Α.Α.ΙΩΑΝΝΙΝΩΝ | F162: Δ
A163: 12621 | B163: M | C163: ΑΓΓΕΛΙΔΗΣ ΔΗΜΗΤΡΗΣ | D163: 1983 | E163: Α.Ο.ΤΑΤΑΥΛΑ ΚΩΝΣΤΑΝΤΙΝΟΥΠΟΛΕΩΣ | F163: ΙΑ
A164: 9787 | B164: M | C164: ΑΓΓΕΛΙΔΗΣ ΔΗΜΗΤΡΙΟΣ | D164: 1983 | E164: Ο.Α.ΑΛΕΞΑΝΔΡΟΥΠΟΛΗΣ | F164: Α
A165: 3786 | B165: M | C165: ΑΓΓΕΛΙΔΗΣ ΠΑΝΑΓΙΩΤΗΣ | D165: 1971 | E165: Λ.Α.ΚΟΜΟΤΗΝΗΣ | F165: Α
A166: 25611 | B166: F | C166: ΑΓΓΕΛΙΔΟΥ ΚΑΛΛΙΟΠΗ | D166: 1999 | E166: Σ.Α.ΔΡΑΜΑΣ | F166: Α
A167: 35058 | B167: F | C167: ΑΓΓΕΛΙΔΟΥ ΛΥΔΙΑ | D167: 2000 | E167: Ο.Α.ΠΕΤΡΟΥΠΟΛΗΣ | F167: Θ
A168: 15528 | B168: F | C168: ΑΓΓΕΛΙΔΟΥ ΜΑΡΙΑ | D168: 1988 | E168: Ο.Α.ΒΕΡΟΙΑΣ | F168: Γ
A169: 35772 | B169: F | C169: ΑΓΓΕΛΙΔΟΥ ΜΑΡΙΑ-ΙΩΑΝΝΑ | D169: 2001 | E169: Α.Π.Μ.Σ.ΑΣΚΗΣΗ ΗΡΑΚΛΕΙΟΥ | F169: Ζ
A170: 29215 | B170: F | C170: ΑΓΓΕΛΙΔΟΥ ΣΟΦΙΑ | D170: 1995 | E170: Ο.Α.ΞΑΝΘΗΣ | F170: Α
A171: 30811 | B171: F | C171: ΑΓΓΕΛΙΔΟΥ ΣΟΦΙΑ | D171: 2002 | E171: Α.Ο.Α.ΠΡΩΤΑΘΛ.ΚΑΒΑΛΑΣ | F171: Α
A172: 35657 | B172: F | C172: ΑΓΓΕΛΙΚΗ ΓΟΡΓΟΡΙΝΗ | D172: 1993 | E172: Α.Ε.Τ.ΝΙΚΗ ΠΑΤΡΩΝ | F172: ΣΤ
A173: 10759 | B173: M | C173: ΑΓΓΕΛΙΝΟΣ ΘΕΟΔΩΡΟΣ | D173: 1984 | E173: Ο.Α.ΓΛΥΦΑΔΑΣ | F173: ΙΑ
A174: 26165 | B174: M | C174: ΑΓΓΕΛΙΝΟΣ ΜΙΧΑΗΛ | D174: 1993 | E174: Α.Ο.ΜΥΤΙΛΗΝΗΣ | F174: Θ
A175: 13817 | B175: M | C175: ΑΓΓΕΛΟΠΟΥΛΟΣ ΑΓΓΕΛΟΣ | D175: 1986 | E175: Σ.Α.ΓΑΛΑΤΣΙΟΥ | F175: Θ
A176: 17388 | B176: M | C176: ΑΓΓΕΛΟΠΟΥΛΟΣ ΑΓΓΕΛΟΣ | D176: 1984 | E176: Α.Σ.ΠΕΡΑ | F176: ΙΑ
A177: 4849 | B177: M | C177: ΑΓΓΕΛΟΠΟΥΛΟΣ ΑΛΕΞΑΝΔΡΟΣ | D177: 1978 | E177: Ο.Α.ΑΘΗΝΩΝ | F177: Η
A178: 13273 | B178: M | C178: ΑΓΓΕΛΟΠΟΥΛΟΣ ΓΕΩΡΓΙΟΣ | D178: 1986 | E178: Ο.Α.ΜΑΓΝΗΣΙΑΣ | F178: Ε
A179: 23257 | B179: M | C179: ΑΓΓΕΛΟΠΟΥΛΟΣ ΓΕΩΡΓΙΟΣ | D179: 1993 | E179: Α.Ε.Κ.ΤΡΙΠΟΛΗΣ | F179: ΣΤ
A180: 36281 | B180: M | C180: ΑΓΓΕΛΟΠΟΥΛΟΣ ΔΗΜΗΤΡΗΣ | D180: 1999 | E180: Ο.Α.ΠΕΙΡΑΙΑ | F180: Θ
A181: 19378 | B181: M | C181: ΑΓΓΕΛΟΠΟΥΛΟΣ ΔΗΜΗΤΡΙΟΣ | D181: 1991 | E181: Ο.Α.ΖΩΓΡΑΦΟΥ | F181: Η
A182: 35163 | B182: M | C182: ΑΓΓΕΛΟΠΟΥΛΟΣ ΔΗΜΗΤΡΙΟΣ | D182: 1999 | E182: Ο.Α.ΠΕΙΡΑΙΑ | F182: Θ
A183: 33230 | B183: M | C183: ΑΓΓΕΛΟΠΟΥΛΟΣ ΕΥΑΓΓΕΛΟΣ | D183: 1999 | E183: Α.Σ.ΜΑΧΗΤΕΣ ΠΕΥΚΩΝ | F183: Β
A184: 4945 | B184: M | C184: ΑΓΓΕΛΟΠΟΥΛΟΣ ΗΛΙΑΣ | D184: 1973 | E184: ΚΕΦΑΛΛΗΝΙΑΚΟΣ Ο.Α. | F184: ΣΤ
A185: 32459 | B185: M | C185: ΑΓΓΕΛΟΠΟΥΛΟΣ ΙΩΑΝΝΗΣ-ΒΛΑΣΙΟΣ | D185: 1999 | E185: Α.Ο.Π.ΦΑΛΗΡΟΥ | F185: ΙΑ
A186: 10374 | B186: M | C186: ΑΓΓΕΛΟΠΟΥΛΟΣ ΚΩΝΣΤΑΝΤΙΝΟΣ | D186: 1983 | E186: Α.Ο.ΒΟΥΛΙΑΓΜΕΝΗΣ | F186: ΙΑ
A187: 20744 | B187: M | C187: ΑΓΓΕΛΟΠΟΥΛΟΣ ΚΩΝΣΤΑΝΤΙΝΟΣ | D187: 1988 | E187: Α.Ο.ΓΛΥΦΑΔΑΣ ΦΙΛΙΑ 2000 | F187: ΙΑ
A188: 26765 | B188: M | C188: ΑΓΓΕΛΟΠΟΥΛΟΣ ΚΩΝΣΤΑΝΤΙΝΟΣ | D188: 2001 | E188: Α.Ε.Κ.ΤΡΙΠΟΛΗΣ | F188: ΣΤ
A189: 28588 | B189: M | C189: ΑΓΓΕΛΟΠΟΥΛΟΣ ΜΙΛΤΙΑΔΗΣ | D189: 1999 | E189: ΠΕΥΚΗ Γ.ΚΑΛΟΒΕΛΩΝΗΣ | F189: Η
A190: 31396 | B190: M | C190: ΑΓΓΕΛΟΠΟΥΛΟΣ ΠΑΝΑΓΙΩΤΗΣ | D190: 2002 | E190: Α.Ο.ΣΙΚΥΩΝΟΣ ΚΙΑΤΟΥ | F190: ΣΤ
A191: 33090 | B191: M | C191: ΑΓΓΕΛΟΠΟΥΛΟΣ ΣΠΥΡΟΣ | D191: 2002 | E191: Ο.Α.ΧΟΛΑΡΓΟΥ | F191: ΙΑ
A192: 27576 | B192: M | C192: ΑΓΓΕΛΟΠΟΥΛΟΣ ΣΤΑΥΡΟΣ | D192: 2001 | E192: Α.Ο.ΒΑΡΗΣ ΑΝΑΓΥΡΟΥΣ | F192: Η
A193: 25468 | B193: M | C193: ΑΓΓΕΛΟΠΟΥΛΟΣ ΦΙΛΙΠΠΟΣ | D193: 1997 | E193: Α.Σ.ΠΕΡΑ | F193: ΙΑ
A194: 24873 | B194: M | C194: ΑΓΓΕΛΟΠΟΥΛΟΣ ΧΡΗΣΤΟΣ | D194: 1998 | E194: Γ.Σ.ΛΙΒΥΚΟΣ ΙΕΡΑΠΕΤΡΑΣ | F194: Ζ
A195: 35224 | B195: M | C195: ΑΓΓΕΛΟΠΟΥΛΟΣ ΧΡΗΣΤΟΣ | D195: 2001 | E195: Α.Ο.Α.ΧΑΪΔΑΡΙΟΥ | F195: Θ
A196: 10009 | B196: F | C196: ΑΓΓΕΛΟΠΟΥΛΟΥ ΑΘΗΝΑ | D196: 1980 | E196: Γ.Σ.ΗΛΙΟΥΠΟΛΗΣ | F196: ΙΑ
A197: 33172 | B197: F | C197: ΑΓΓΕΛΟΠΟΥΛΟΥ ΑΘΗΝΑ | D197: 2002 | E197: Σ.Α.ΔΡΑΜΑΣ | F197: Α
A198: 4313 | B198: F | C198: ΑΓΓΕΛΟΠΟΥΛΟΥ ΑΜΑΛΙΑ | D198: 1979 | E198: Α.Ο.ΑΜΥΝΤΑΣ ΥΜΗΤΤΟΥ | F198: ΙΑ
A199: 11247 | B199: F | C199: ΑΓΓΕΛΟΠΟΥΛΟΥ ΑΝΝΑ | D199: 1980 | E199: Α.Κ.Α.ΜΑΡΑΘΩΝΑ | F199: Η
A200: 32002 | B200: F | C200: ΑΓΓΕΛΟΠΟΥΛΟΥ ΑΝΝΑ | D200: 1998 | E200: Ο.Α.ΑΘΛΗΤ.ΠΑΙΔΕΙΑ | F200: Η
... 4300 more rows
